Workbook

Sheet Notes
A2: Inpatient Friends and Family Test (FFT) Data - September 2015

Sheet Summary
B6: FFT | C6: Number of organisations submitting | D6: Total responses to date | E6: Responses | G6: Response Rate | I6: Score (% recommend) | K6: Score (% not recommend)
C7: Sep 15 | D7: Sep 15 | E7: Sep 15 | F7: Aug 15 | G7: Sep 15 | H7: Aug 15 | I7: Sep 15 | J7: Aug 15 | K7: Sep 15 | L7: Aug 15
B8: Total | C8: 172 | D8: 4026589 | E8: 223848 | F8: 207156 | G8: 0.2513558854 | H8: 0.255451068 | I8: 0.9557601587 | J8: 0.9577082006 | K8: 0.01521568207 | L8: 0.01393152986
B9: NHS | C9: 154 | D9: 3792138 | E9: 207844 | F9: 191194 | G9: 0.2454104501 | H9: 0.2477626794 | I9: 0.9533688728 | J9: 0.9551764177 | K9: 0.01601682031 | L9: 0.01484879233
B10: IS | C10: 18 | D10: 234451 | E10: 16004 | F10: 15962 | G10: 0.3667445804 | H10: 0.4065715741 | I10: 0.9868157961 | J10: 0.9880340809 | K10: 0.004811297176 | L10: 0.002944493171

Sheet Region (Geography)
F6: −
F7: −
F8: −
A10: Region (Geo) Code | B10: Region (Geography) | C10: Total Responses | D10: Total Eligible | E10: Response Rate | F10: Percentage Recommended | G10: Percentage Not Recommended | H10: Breakdown of Responses
H11: Extremely Likely | I11: Likely | J11: Neither | K11: Unlikely | L11: Extremely Unlikely | M11: Don't Know
B12: England (including Independent Sector Providers) | C12: 223848 | D12: 890562 | E12: 0.2513558854 | F12: 0.9557601587 | G12: 0.01521568207 | H12: 178476 | I12: 35469 | J12: 4172 | K12: 1613 | L12: 1793 | M12: 2325
B13: England (excluding Independent Sector Providers) | C13: 207844 | D13: 846924 | E13: 0.2454104501 | F13: 0.9533688728 | G13: 0.01601682031 | H13: 163859 | I13: 34293 | J13: 4103 | K13: 1597 | L13: 1732 | M13: 2260
B14: Selection (excluding suppressed data) | C14: =SUBTOTAL(9,C15:C40) -> 223848 | D14: =SUBTOTAL(9,D15:D40) -> 890562 | E14: =IFERROR(C14/D14, "NA") -> 0.2513558854 | F14: =IFERROR((H14+I14)/SUM(H14:M14), "-") -> 0.9557601587 | G14: =IFERROR((K14+L14)/SUM(H14:M14), "-") -> 0.01521568207 | H14: =SUBTOTAL(9,H15:H40) -> 178476 | I14: 35469 | J14: 4172 | K14: 1613 | L14: 1793 | M14: 2325
A15: Q72 | B15: NHS England Yorkshire & Humber | C15: 24663 | D15: 96377 | E15: 0.2559013043 | F15: 0.9554393221 | G15: 0.01171795807 | H15: 19652 | I15: 3912 | J15: 434 | K15: 134 | L15: 155 | M15: 376
A16: Q73 | B16: NHS England Lancashire & Greater Manchester | C16: 20492 | D16: 66797 | E16: 0.3067802446 | F16: 0.9500780793 | G16: 0.0170310365 | H16: 16155 | I16: 3314 | J16: 461 | K16: 156 | L16: 193 | M16: 213
A17: Q74 | B17: NHS England Cumbria & North East | C17: 15616 | D17: 71771 | E17: 0.2175809171 | F17: 0.962602459 | G17: 0.01018186475 | H17: 12895 | I17: 2137 | J17: 234 | K17: 69 | L17: 90 | M17: 191
A18: Q75 | B18: NHS England Cheshire & Merseyside | C18: 12438 | D18: 41267 | E18: 0.3014030581 | F18: 0.961247789 | G18: 0.01447178003 | H18: 10348 | I18: 1608 | J18: 183 | K18: 84 | L18: 96 | M18: 119
A19: Q76 | B19: NHS England North Midlands | C19: 13572 | D19: 54807 | E19: 0.2476326017 | F19: 0.9616121426 | G19: 0.01164161509 | H19: 11207 | I19: 1844 | J19: 195 | K19: 73 | L19: 85 | M19: 168
A20: Q77 | B20: NHS England West Midlands | C20: 16968 | D20: 62218 | E20: 0.2727185059 | F20: 0.9477840641 | G20: 0.02251296558 | H20: 13262 | I20: 2820 | J20: 325 | K20: 147 | L20: 235 | M20: 179
A21: Q78 | B21: NHS England Central Midlands | C21: 15655 | D21: 54299 | E21: 0.2883110186 | F21: 0.9430213989 | G21: 0.02178217822 | H21: 11759 | I21: 3004 | J21: 389 | K21: 167 | L21: 174 | M21: 162
A22: Q79 | B22: NHS England East | C22: 15643 | D22: 70183 | E22: 0.2228887337 | F22: 0.9503931471 | G22: 0.015406252 | H22: 12293 | I22: 2574 | J22: 361 | K22: 114 | L22: 127 | M22: 174
A23: Q80 | B23: NHS England South West | C23: 9522 | D23: 52797 | E23: 0.1803511563 | F23: 0.9599873976 | G23: 0.01144717496 | H23: 7531 | I23: 1610 | J23: 183 | K23: 71 | L23: 38 | M23: 89
A24: Q81 | B24: NHS England South East | C24: 17613 | D24: 71082 | E24: 0.2477842492 | F24: 0.9451541475 | G24: 0.02038267189 | H24: 13632 | I24: 3015 | J24: 397 | K24: 168 | L24: 191 | M24: 210
A25: Q82 | B25: NHS England South Central | C25: 8927 | D25: 46960 | E25: 0.1900979557 | F25: 0.9691945782 | G25: 0.007953399798 | H25: 7308 | I25: 1344 | J25: 113 | K25: 35 | L25: 36 | M25: 91
A26: Q70 | B26: NHS England Wessex | C26: 8690 | D26: 38172 | E26: 0.2276537776 | F26: 0.9632911392 | G26: 0.009781357883 | H26: 7077 | I26: 1294 | J26: 146 | K26: 44 | L26: 41 | M26: 88
A27: Q71 | B27: NHS England London | C27: 28045 | D27: 120194 | E27: 0.2333311147 | F27: 0.946942414 | G27: 0.02160812979 | H27: 20740 | I27: 5817 | J27: 682 | K27: 335 | L27: 271 | M27: 200
A28: IS1 | B28: Independent Sector Provider | C28: 16004 | D28: 43638 | E28: 0.3667445804 | F28: 0.9868157961 | G28: 0.004811297176 | H28: 14617 | I28: 1176 | J28: 69 | K28: 16 | L28: 61 | M28: 65

Sheet Trusts
G7: −
G8: −
O9: Mode of Collection
A10: Region (Geo) Code | B10: Trust Code | C10: Trust Name | D10: Total Responses | E10: Total Eligible | F10: Response Rate | G10: Percentage Recommended | H10: Percentage Not Recommended | I10: Breakdown of Responses | O10: SMS/Text / Smartphone App | P10: Electronic tablet/kiosk at point of discharge | Q10: Paper / postcard at point of discharge | R10: Paper survey sent to the patients home | S10: Telephone survey once patient is home | T10: Online survey once patient is home | U10: Other
I11: Extremely Likely | J11: Likely | K11: Neither | L11: Unlikely | M11: Extremely Unlikely | N11: Don't Know
C12: England (including Independent Sector Providers) | D12: 223848 | E12: 890562 | F12: 0.2513558854 | G12: 0.9557601587 | H12: 0.01521568207 | I12: 178476 | J12: 35469 | K12: 4172 | L12: 1613 | M12: 1793 | N12: 2325 | O12: 18030 | P12: 23737 | Q12: 156200 | R12: 2456 | S12: 15850 | T12: 3540 | U12: 4035
C13: England (excluding Independent Sector Providers) | D13: 207844 | E13: 846924 | F13: 0.2454104501 | G13: 0.9533688728 | H13: 0.01601682031 | I13: 163859 | J13: 34293 | K13: 4103 | L13: 1597 | M13: 1732 | N13: 2260 | O13: 18030 | P13: 20065 | Q13: 143997 | R13: 2403 | S13: 15803 | T13: 3529 | U13: 4017
C14: Selection (excluding suppressed data) | D14: =SUBTOTAL(9,D15:D301) -> 223848 | E14: =SUBTOTAL(9,E15:E301) -> 890562 | F14: =IFERROR(D14/E14, "NA") -> 0.2513558854 | G14: =IFERROR((I14+J14)/SUM(I14:N14), "-") -> 0.9557595658 | H14: =IFERROR((L14+M14)/SUM(I14:N14), "-") -> 0.01521588599 | I14: =SUBTOTAL(9,I15:I301) -> 178473 | J14: 35469 | K14: 4172 | L14: 1613 | M14: 1793 | N14: 2325 | O14: =SUBTOTAL(9,O15:O301) -> 18030 | P14: =SUBTOTAL(9,P15:P301) -> 23737 | Q14: 156197 | R14: 2456 | S14: 15850 | T14: 3540 | U14: 4035
A15: Q70 | B15: RBD | C15: DORSET COUNTY HOSPITAL NHS FOUNDATION TRUST | D15: 570 | E15: 1328 | F15: 0.4292168675 | G15: 0.9754385965 | H15: 0.00350877193 | I15: 495 | J15: 61 | K15: 6 | L15: 1 | M15: 1 | N15: 6 | O15: 0 | P15: 0 | Q15: 556 | R15: 0 | S15: 14 | T15: 0 | U15: 0
A16: Q70 | B16: RN5 | C16: HAMPSHIRE HOSPITALS NHS FOUNDATION TRUST | D16: 1772 | E16: 7334 | F16: 0.2416143987 | G16: 0.9469525959 | H16: 0.01805869074 | I16: 1400 | J16: 278 | K16: 44 | L16: 17 | M16: 15 | N16: 18 | O16: 299 | P16: 0 | Q16: 877 | R16: 0 | S16: 596 | T16: 0 | U16: 0
A17: Q70 | B17: R1F | C17: ISLE OF WIGHT NHS TRUST | D17: 273 | E17: 1238 | F17: 0.2205169628 | G17: 0.9413919414 | H17: 0.01465201465 | I17: 197 | J17: 60 | K17: 8 | L17: 1 | M17: 3 | N17: 4 | O17: 0 | P17: 30 | Q17: 241 | R17: 0 | S17: 0 | T17: 2 | U17: 0
A18: Q70 | B18: RD3 | C18: POOLE HOSPITAL NHS FOUNDATION TRUST | D18: 880 | E18: 2956 | F18: 0.297699594 | G18: 0.9863636364 | H18: 0.001136363636 | I18: 781 | J18: 87 | K18: 6 | L18: 1 | M18: 0 | N18: 5 | O18: 0 | P18: 0 | Q18: 880 | R18: 0 | S18: 0 | T18: 0 | U18: 0
A19: Q70 | B19: RHU | C19: PORTSMOUTH HOSPITALS NHS TRUST | D19: 1963 | E19: 8161 | F19: 0.2405342483 | G19: 0.9582272033 | H19: 0.007131940907 | I19: 1607 | J19: 274 | K19: 32 | L19: 6 | M19: 8 | N19: 36 | O19: 0 | P19: 0 | Q19: 1955 | R19: 0 | S19: 0 | T19: 8 | U19: 0
A20: Q70 | B20: RDZ | C20: THE ROYAL BOURNEMOUTH AND CHRISTCHURCH HOSPITALS NHS FOUNDATION TRUST | D20: 1318 | E20: 7303 | F20: 0.1804737779 | G20: 0.9833080425 | H20: 0.003793626707 | I20: 1086 | J20: 210 | K20: 15 | L20: 1 | M20: 4 | N20: 2 | O20: 0 | P20: 0 | Q20: 1318 | R20: 0 | S20: 0 | T20: 0 | U20: 0
A21: Q70 | B21: RHM | C21: UNIVERSITY HOSPITAL SOUTHAMPTON NHS FOUNDATION TRUST | D21: 1914 | E21: 9852 | F21: 0.1942752741 | G21: 0.9587251829 | H21: 0.01410658307 | I21: 1511 | J21: 324 | K21: 35 | L21: 17 | M21: 10 | N21: 17 | O21: 0 | P21: 32 | Q21: 1813 | R21: 0 | S21: 0 | T21: 69 | U21: 0
A22: Q71 | B22: RF4 | C22: BARKING, HAVERING AND REDBRIDGE UNIVERSITY HOSPITALS NHS TRUST | D22: 2370 | E22: 7736 | F22: 0.3063598759 | G22: 0.9552742616 | H22: 0.0194092827 | I22: 1637 | J22: 627 | K22: 44 | L22: 19 | M22: 27 | N22: 16 | O22: 0 | P22: 0 | Q22: 2370 | R22: 0 | S22: 0 | T22: 0 | U22: 0
A23: Q71 | B23: R1H | C23: BARTS HEALTH NHS TRUST | D23: 1602 | E23: 13044 | F23: 0.1228150874 | G23: 0.9475655431 | H23: 0.01498127341 | I23: 1178 | J23: 340 | K23: 46 | L23: 13 | M23: 11 | N23: 14 | O23: 0 | P23: 0 | Q23: 1601 | R23: 0 | S23: 0 | T23: 1 | U23: 0
A24: Q71 | B24: RQM | C24: CHELSEA AND WESTMINSTER HOSPITAL NHS FOUNDATION TRUST | D24: 2021 | E24: 7885 | F24: 0.2563094483 | G24: 0.9025235032 | H24: 0.0559129144 | I24: 1472 | J24: 352 | K24: 69 | L24: 56 | M24: 57 | N24: 15 | O24: 1038 | P24: 0 | Q24: 542 | R24: 50 | S24: 388 | T24: 3 | U24: 0
A25: Q71 | B25: RJ6 | C25: CROYDON HEALTH SERVICES NHS TRUST | D25: 820 | E25: 3048 | F25: 0.2690288714 | G25: 0.9195121951 | H25: 0.03414634146 | I25: 548 | J25: 206 | K25: 31 | L25: 18 | M25: 10 | N25: 7 | O25: 0 | P25: 261 | Q25: 559 | R25: 0 | S25: 0 | T25: 0 | U25: 0
A26: Q71 | B26: RVR | C26: EPSOM AND ST HELIER UNIVERSITY HOSPITALS NHS TRUST | D26: 1524 | E26: 6519 | F26: 0.2337781868 | G26: 0.968503937 | H26: 0.009186351706 | I26: 1245 | J26: 231 | K26: 29 | L26: 7 | M26: 7 | N26: 5 | O26: 108 | P26: 1 | Q26: 1373 | R26: 0 | S26: 0 | T26: 42 | U26: 0
A27: Q71 | B27: RP4 | C27: GREAT ORMOND STREET HOSPITAL FOR CHILDREN NHS FOUNDATION TRUST | D27: 402 | E27: 3046 | F27: 0.1319763624 | G27: 0.9850746269 | H27: 0.007462686567 | I27: 351 | J27: 45 | K27: 3 | L27: 1 | M27: 2 | N27: 0 | O27: 0 | P27: 0 | Q27: 402 | R27: 0 | S27: 0 | T27: 0 | U27: 0
A28: Q71 | B28: RJ1 | C28: GUY'S AND ST THOMAS' NHS FOUNDATION TRUST | D28: 2704 | E28: 9150 | F28: 0.2955191257 | G28: 0.9519230769 | H28: 0.01812130178 | I28: 2099 | J28: 475 | K28: 61 | L28: 27 | M28: 22 | N28: 20 | O28: 1034 | P28: 542 | Q28: 740 | R28: 0 | S28: 0 | T28: 388 | U28: 0
A29: Q71 | B29: RQX | C29: HOMERTON UNIVERSITY HOSPITAL NHS FOUNDATION TRUST | D29: 488 | E29: 2565 | F29: 0.1902534113 | G29: 0.8606557377 | H29: 0.07786885246 | I29: 246 | J29: 174 | K29: 22 | L29: 25 | M29: 13 | N29: 8 | O29: 0 | P29: 380 | Q29: 108 | R29: 0 | S29: 0 | T29: 0 | U29: 0
A30: Q71 | B30: RYJ | C30: IMPERIAL COLLEGE HEALTHCARE NHS TRUST | D30: 2005 | E30: 6979 | F30: 0.2872904428 | G30: 0.9591022444 | H30: 0.0174563591 | I30: 1482 | J30: 441 | K30: 36 | L30: 21 | M30: 14 | N30: 11 | O30: 0 | P30: 1565 | Q30: 440 | R30: 0 | S30: 0 | T30: 0 | U30: 0
A31: Q71 | B31: RJZ | C31: KING'S COLLEGE HOSPITAL NHS FOUNDATION TRUST | D31: 1383 | E31: 10445 | F31: 0.1324078506 | G31: 0.9472161967 | H31: 0.02169197397 | I31: 1004 | J31: 306 | K31: 30 | L31: 12 | M31: 18 | N31: 13 | O31: 0 | P31: 0 | Q31: 1383 | R31: 0 | S31: 0 | T31: 0 | U31: 0
A32: Q71 | B32: RAX | C32: KINGSTON HOSPITAL NHS FOUNDATION TRUST | D32: 709 | E32: 3401 | F32: 0.2084680976 | G32: 0.9605077574 | H32: 0.01833568406 | I32: 537 | J32: 144 | K32: 15 | L32: 8 | M32: 5 | N32: 0 | O32: 0 | P32: 709 | Q32: 0 | R32: 0 | S32: 0 | T32: 0 | U32: 0
A33: Q71 | B33: RJ2 | C33: LEWISHAM AND GREENWICH NHS TRUST | D33: 1441 | E33: 4609 | F33: 0.3126491647 | G33: 0.9292158223 | H33: 0.02359472588 | I33: 970 | J33: 369 | K33: 40 | L33: 21 | M33: 13 | N33: 28 | O33: 0 | P33: 0 | Q33: 1441 | R33: 0 | S33: 0 | T33: 0 | U33: 0
A34: Q71 | B34: R1K | C34: LONDON NORTH WEST HEALTHCARE NHS TRUST | D34: 1332 | E34: 5191 | F34: 0.256597958 | G34: 0.9684684685 | H34: 0.00975975976 | I34: 998 | J34: 292 | K34: 23 | L34: 7 | M34: 6 | N34: 6 | O34: 0 | P34: 0 | Q34: 1332 | R34: 0 | S34: 0 | T34: 0 | U34: 0
A35: Q71 | B35: RP6 | C35: MOORFIELDS EYE HOSPITAL NHS FOUNDATION TRUST | D35: 1626 | E35: 2826 | F35: 0.5753715499 | G35: 0.9895448954 | H35: 0.006150061501 | I35: 1421 | J35: 188 | K35: 4 | L35: 5 | M35: 5 | N35: 3 | O35: 0 | P35: 43 | Q35: 1583 | R35: 0 | S35: 0 | T35: 0 | U35: 0
A36: Q71 | B36: RAP | C36: NORTH MIDDLESEX UNIVERSITY HOSPITAL NHS TRUST | D36: 718 | E36: 2243 | F36: 0.3201069996 | G36: 0.9568245125 | H36: 0.02646239554 | I36: 473 | J36: 214 | K36: 10 | L36: 14 | M36: 5 | N36: 2 | O36: 0 | P36: 715 | Q36: 0 | R36: 0 | S36: 0 | T36: 3 | U36: 0
A37: Q71 | B37: RT3 | C37: ROYAL BROMPTON & HAREFIELD NHS FOUNDATION TRUST | D37: 749 | E37: 2405 | F37: 0.3114345114 | G37: 0.9759679573 | H37: 0.01468624833 | I37: 646 | J37: 85 | K37: 5 | L37: 4 | M37: 7 | N37: 2 | O37: 231 | P37: 0 | Q37: 515 | R37: 0 | S37: 0 | T37: 3 | U37: 0
A38: Q71 | B38: RAL | C38: ROYAL FREE LONDON NHS FOUNDATION TRUST | D38: 1300 | E38: 4032 | F38: 0.3224206349 | G38: 0.8861538462 | H38: 0.04923076923 | I38: 742 | J38: 410 | K38: 84 | L38: 44 | M38: 20 | N38: 0 | O38: 0 | P38: 0 | Q38: 0 | R38: 0 | S38: 1300 | T38: 0 | U38: 0
A39: Q71 | B39: RAN | C39: ROYAL NATIONAL ORTHOPAEDIC HOSPITAL NHS TRUST | D39: 445 | E39: 827 | F39: 0.53808948 | G39: 0.9460674157 | H39: 0.01573033708 | I39: 346 | J39: 75 | K39: 14 | L39: 3 | M39: 4 | N39: 3 | O39: 0 | P39: 445 | Q39: 0 | R39: 0 | S39: 0 | T39: 0 | U39: 0
A40: Q71 | B40: RJ7 | C40: ST GEORGE'S UNIVERSITY HOSPITALS NHS FOUNDATION TRUST | D40: 1500 | E40: 7213 | F40: 0.2079578539 | G40: 0.9173333333 | H40: 0.016 | I40: 1054 | J40: 322 | K40: 88 | L40: 16 | M40: 8 | N40: 12 | O40: 0 | P40: 1478 | Q40: 0 | R40: 22 | S40: 0 | T40: 0 | U40: 0
A41: Q71 | B41: RAS | C41: THE HILLINGDON HOSPITALS NHS FOUNDATION TRUST | D41: 713 | E41: 3808 | F41: 0.187237395 | G41: 0.9565217391 | H41: 0.01122019635 | I41: 529 | J41: 153 | K41: 11 | L41: 3 | M41: 5 | N41: 12 | O41: 0 | P41: 284 | Q41: 429 | R41: 0 | S41: 0 | T41: 0 | U41: 0
A42: Q71 | B42: RPY | C42: THE ROYAL MARSDEN NHS FOUNDATION TRUST | D42: 508 | E42: 4669 | F42: 0.1088027415 | G42: 0.9763779528 | H42: 0.003937007874 | I42: 462 | J42: 34 | K42: 1 | L42: 2 | M42: 0 | N42: 9 | O42: 0 | P42: 0 | Q42: 506 | R42: 0 | S42: 0 | T42: 2 | U42: 0
A43: Q71 | B43: RKE | C43: THE WHITTINGTON HOSPITAL NHS TRUST | D43: 381 | E43: 3207 | F43: 0.1188026193 | G43: 0.9632545932 | H43: 0.01312335958 | I43: 276 | J43: 91 | K43: 4 | L43: 3 | M43: 2 | N43: 5 | O43: 0 | P43: 0 | Q43: 381 | R43: 0 | S43: 0 | T43: 0 | U43: 0
A44: Q71 | B44: RRV | C44: UNIVERSITY COLLEGE LONDON HOSPITALS NHS FOUNDATION TRUST | D44: 1304 | E44: 5346 | F44: 0.2439206884 | G44: 0.9716257669 | H44: 0.01226993865 | I44: 1024 | J44: 243 | K44: 12 | L44: 6 | M44: 10 | N44: 9 | O44: 0 | P44: 1138 | Q44: 41 | R44: 0 | S44: 0 | T44: 125 | U44: 0
A45: Q72 | B45: RCF | C45: AIREDALE NHS FOUNDATION TRUST | D45: 916 | E45: 4471 | F45: 0.2048758667 | G45: 0.9672489083 | H45: 0.007641921397 | I45: 728 | J45: 158 | K45: 13 | L45: 4 | M45: 3 | N45: 10 | O45: 5 | P45: 0 | Q45: 911 | R45: 0 | S45: 0 | T45: 0 | U45: 0
A46: Q72 | B46: RFF | C46: BARNSLEY HOSPITAL NHS FOUNDATION TRUST | D46: 669 | E46: 3865 | F46: 0.1730918499 | G46: 0.9790732436 | H46: 0.01046337818 | I46: 536 | J46: 119 | K46: 5 | L46: 3 | M46: 4 | N46: 2 | O46: 0 | P46: 0 | Q46: 669 | R46: 0 | S46: 0 | T46: 0 | U46: 0
A47: Q72 | B47: RAE | C47: BRADFORD TEACHING HOSPITALS NHS FOUNDATION TRUST | D47: 1563 | E47: 7486 | F47: 0.2087897408 | G47: 0.990403071 | H47: 0.003198976328 | I47: 1447 | J47: 101 | K47: 9 | L47: 4 | M47: 1 | N47: 1 | O47: 1265 | P47: 298 | Q47: 0 | R47: 0 | S47: 0 | T47: 0 | U47: 0
A48: Q72 | B48: RWY | C48: CALDERDALE AND HUDDERSFIELD NHS FOUNDATION TRUST | D48: 1998 | E48: 8193 | F48: 0.2438667155 | G48: 0.9654654655 | H48: 0.01101101101 | I48: 1587 | J48: 342 | K48: 39 | L48: 9 | M48: 13 | N48: 8 | O48: 0 | P48: 0 | Q48: 1998 | R48: 0 | S48: 0 | T48: 0 | U48: 0
A49: Q72 | B49: RP5 | C49: DONCASTER AND BASSETLAW HOSPITALS NHS FOUNDATION TRUST | D49: 1599 | E49: 5880 | F49: 0.2719387755 | G49: 0.9693558474 | H49: 0.006879299562 | I49: 1325 | J49: 225 | K49: 10 | L49: 6 | M49: 5 | N49: 28 | O49: 0 | P49: 0 | Q49: 1598 | R49: 0 | S49: 0 | T49: 1 | U49: 0
A50: Q72 | B50: RCD | C50: HARROGATE AND DISTRICT NHS FOUNDATION TRUST | D50: 972 | E50: 2385 | F50: 0.4075471698 | G50: 0.9372427984 | H50: 0.02983539095 | I50: 730 | J50: 181 | K50: 27 | L50: 7 | M50: 22 | N50: 5 | O50: 0 | P50: 0 | Q50: 573 | R50: 0 | S50: 399 | T50: 0 | U50: 0
A51: Q72 | B51: RWA | C51: HULL AND EAST YORKSHIRE HOSPITALS NHS TRUST | D51: 2437 | E51: 8974 | F51: 0.2715622911 | G51: 0.9507591301 | H51: 0.01025851457 | I51: 1966 | J51: 351 | K51: 40 | L51: 12 | M51: 13 | N51: 55 | O51: 0 | P51: 0 | Q51: 2430 | R51: 0 | S51: 0 | T51: 7 | U51: 0
A52: Q72 | B52: RR8 | C52: LEEDS TEACHING HOSPITALS NHS TRUST | D52: 3210 | E52: 16257 | F52: 0.1974534047 | G52: 0.9442367601 | H52: 0.01152647975 | I52: 2460 | J52: 571 | K52: 68 | L52: 19 | M52: 18 | N52: 74 | O52: 0 | P52: 0 | Q52: 3200 | R52: 0 | S52: 0 | T52: 10 | U52: 0
A53: Q72 | B53: RXF | C53: MID YORKSHIRE HOSPITALS NHS TRUST | D53: 2541 | E53: 8706 | F53: 0.2918676775 | G53: 0.9685163322 | H53: 0.008658008658 | I53: 2010 | J53: 451 | K53: 50 | L53: 16 | M53: 6 | N53: 8 | O53: 0 | P53: 0 | Q53: 2539 | R53: 0 | S53: 0 | T53: 2 | U53: 0
A54: Q72 | B54: RJL | C54: NORTHERN LINCOLNSHIRE AND GOOLE NHS FOUNDATION TRUST | D54: 1747 | E54: 7731 | F54: 0.225973354 | G54: 0.9673726388 | H54: 0.009158557527 | I54: 1454 | J54: 236 | K54: 26 | L54: 5 | M54: 11 | N54: 15 | O54: 0 | P54: 0 | Q54: 1745 | R54: 0 | S54: 0 | T54: 2 | U54: 0
A55: Q72 | B55: RCU | C55: SHEFFIELD CHILDREN'S NHS FOUNDATION TRUST | D55: 951 | E55: 2087 | F55: 0.4556780067 | G55: 0.7570977918 | H55: 0.04521556257 | I55: 531 | J55: 189 | K55: 52 | L55: 20 | M55: 23 | N55: 136 | O55: 0 | P55: 0 | Q55: 0 | R55: 0 | S55: 0 | T55: 0 | U55: 951
A56: Q72 | B56: RHQ | C56: SHEFFIELD TEACHING HOSPITALS NHS FOUNDATION TRUST | D56: 2882 | E56: 8488 | F56: 0.3395381715 | G56: 0.9659958362 | H56: 0.01145038168 | I56: 2339 | J56: 445 | K56: 57 | L56: 15 | M56: 18 | N56: 8 | O56: 306 | P56: 0 | Q56: 2259 | R56: 0 | S56: 313 | T56: 4 | U56: 0
A57: Q72 | B57: RFR | C57: THE ROTHERHAM NHS FOUNDATION TRUST | D57: 1285 | E57: 2904 | F57: 0.4424931129 | G57: 0.9766536965 | H57: 0.01167315175 | I57: 1014 | J57: 241 | K57: 5 | L57: 8 | M57: 7 | N57: 10 | O57: 0 | P57: 206 | Q57: 1077 | R57: 0 | S57: 0 | T57: 2 | U57: 0
A58: Q72 | B58: RCB | C58: YORK TEACHING HOSPITAL NHS FOUNDATION TRUST | D58: 1893 | E58: 8950 | F58: 0.2115083799 | G58: 0.9651347068 | H58: 0.008980454305 | I58: 1525 | J58: 302 | K58: 33 | L58: 6 | M58: 11 | N58: 16 | O58: 81 | P58: 0 | Q58: 1794 | R58: 0 | S58: 0 | T58: 18 | U58: 0
A59: Q73 | B59: RXL | C59: BLACKPOOL TEACHING HOSPITALS NHS FOUNDATION TRUST | D59: 1479 | E59: 7199 | F59: 0.2054452007 | G59: 0.9601081812 | H59: 0.008113590264 | I59: 1214 | J59: 206 | K59: 26 | L59: 7 | M59: 5 | N59: 21 | O59: 0 | P59: 0 | Q59: 1475 | R59: 0 | S59: 0 | T59: 4 | U59: 0
A60: Q73 | B60: RMC | C60: BOLTON NHS FOUNDATION TRUST | D60: 1339 | E60: 3424 | F60: 0.3910630841 | G60: 0.9619118745 | H60: 0.01493651979 | I60: 1128 | J60: 160 | K60: 21 | L60: 7 | M60: 13 | N60: 10 | O60: 0 | P60: 0 | Q60: 1339 | R60: 0 | S60: 0 | T60: 0 | U60: 0
A61: Q73 | B61: RW3 | C61: CENTRAL MANCHESTER UNIVERSITY HOSPITALS NHS FOUNDATION TRUST | D61: 2154 | E61: 11018 | F61: 0.1954982755 | G61: 0.9312906221 | H61: 0.0208913649 | I61: 1612 | J61: 394 | K61: 78 | L61: 25 | M61: 20 | N61: 25 | O61: 0 | P61: 2009 | Q61: 0 | R61: 127 | S61: 0 | T61: 18 | U61: 0
A62: Q73 | B62: RXR | C62: EAST LANCASHIRE HOSPITALS NHS TRUST | D62: 2400 | E62: 5226 | F62: 0.4592422503 | G62: 0.9870833333 | H62: 0.0025 | I62: 2000 | J62: 369 | K62: 13 | L62: 5 | M62: 1 | N62: 12 | O62: 27 | P62: 0 | Q62: 179 | R62: 0 | S62: 6 | T62: 2188 | U62: 0
A63: Q73 | B63: RXN | C63: LANCASHIRE TEACHING HOSPITALS NHS FOUNDATION TRUST | D63: 2112 | E63: 5865 | F63: 0.3601023018 | G63: 0.9195075758 | H63: 0.03645833333 | I63: 1546 | J63: 396 | K63: 68 | L63: 39 | M63: 38 | N63: 25 | O63: 306 | P63: 136 | Q63: 424 | R63: 0 | S63: 1246 | T63: 0 | U63: 0
A64: Q73 | B64: RW6 | C64: PENNINE ACUTE HOSPITALS NHS TRUST | D64: 3914 | E64: 10762 | F64: 0.363687047 | G64: 0.9407256004 | H64: 0.02350536536 | I64: 3043 | J64: 639 | K64: 93 | L64: 35 | M64: 57 | N64: 47 | O64: 382 | P64: 0 | Q64: 1646 | R64: 0 | S64: 1828 | T64: 58 | U64: 0
A65: Q73 | B65: RM3 | C65: SALFORD ROYAL NHS FOUNDATION TRUST | D65: 801 | E65: 2332 | F65: 0.3434819897 | G65: 0.9200998752 | H65: 0.02996254682 | I65: 642 | J65: 95 | K65: 35 | L65: 9 | M65: 15 | N65: 5 | O65: 507 | P65: 0 | Q65: 0 | R65: 0 | S65: 294 | T65: 0 | U65: 0
A66: Q73 | B66: RWJ | C66: STOCKPORT NHS FOUNDATION TRUST | D66: 2321 | E66: 6138 | F66: 0.3781362007 | G66: 0.9534683326 | H66: 0.01464885825 | I66: 1759 | J66: 454 | K66: 55 | L66: 13 | M66: 21 | N66: 19 | O66: 363 | P66: 0 | Q66: 1513 | R66: 0 | S66: 445 | T66: 0 | U66: 0
A67: Q73 | B67: RMP | C67: TAMESIDE HOSPITAL NHS FOUNDATION TRUST | D67: 914 | E67: 3323 | F67: 0.2750526633 | G67: 0.9529540481 | H67: 0.009846827133 | I67: 683 | J67: 188 | K67: 26 | L67: 3 | M67: 6 | N67: 8 | O67: 0 | P67: 151 | Q67: 763 | R67: 0 | S67: 0 | T67: 0 | U67: 0
A68: Q73 | B68: RBV | C68: THE CHRISTIE NHS FOUNDATION TRUST | D68: 354 | E68: 810 | F68: 0.437037037 | G68: 0.9491525424 | H68: 0.01129943503 | I68: 305 | J68: 31 | K68: 7 | L68: 3 | M68: 1 | N68: 7 | O68: 182 | P68: 0 | Q68: 172 | R68: 0 | S68: 0 | T68: 0 | U68: 0
A69: Q73 | B69: RM2 | C69: UNIVERSITY HOSPITAL OF SOUTH MANCHESTER NHS FOUNDATION TRUST | D69: 1934 | E69: 6432 | F69: 0.3006840796 | G69: 0.9581178904 | H69: 0.008273009307 | I69: 1557 | J69: 296 | K69: 35 | L69: 4 | M69: 12 | N69: 30 | O69: 0 | P69: 661 | Q69: 1268 | R69: 0 | S69: 0 | T69: 5 | U69: 0
A70: Q73 | B70: RRF | C70: WRIGHTINGTON, WIGAN AND LEIGH NHS FOUNDATION TRUST | D70: 770 | E70: 4268 | F70: 0.1804123711 | G70: 0.9766233766 | H70: 0.01298701299 | I70: 666 | J70: 86 | K70: 4 | L70: 6 | M70: 4 | N70: 4 | O70: 0 | P70: 0 | Q70: 770 | R70: 0 | S70: 0 | T70: 0 | U70: 0
A71: Q74 | B71: RLN | C71: CITY HOSPITALS SUNDERLAND NHS FOUNDATION TRUST | D71: 1383 | E71: 7699 | F71: 0.1796337187 | G71: 0.9725234996 | H71: 0.01012292119 | I71: 1116 | J71: 229 | K71: 15 | L71: 8 | M71: 6 | N71: 9 | O71: 0 | P71: 0 | Q71: 1382 | R71: 0 | S71: 0 | T71: 1 | U71: 0
A72: Q74 | B72: RXP | C72: COUNTY DURHAM AND DARLINGTON NHS FOUNDATION TRUST | D72: 1815 | E72: 10337 | F72: 0.1755828577 | G72: 0.9305785124 | H72: 0.01487603306 | I72: 1417 | J72: 272 | K72: 24 | L72: 9 | M72: 18 | N72: 75 | O72: 0 | P72: 0 | Q72: 1810 | R72: 0 | S72: 0 | T72: 5 | U72: 0
A73: Q74 | B73: RR7 | C73: GATESHEAD HEALTH NHS FOUNDATION TRUST | D73: 1001 | E73: 4838 | F73: 0.2069036792 | G73: 0.983016983 | H73: 0.005994005994 | I73: 874 | J73: 110 | K73: 9 | L73: 4 | M73: 2 | N73: 2 | O73: 0 | P73: 0 | Q73: 1001 | R73: 0 | S73: 0 | T73: 0 | U73: 0
A74: Q74 | B74: RNL | C74: NORTH CUMBRIA UNIVERSITY HOSPITALS NHS TRUST | D74: 1862 | E74: 5904 | F74: 0.3153794038 | G74: 0.9661654135 | H74: 0.01020408163 | I74: 1492 | J74: 307 | K74: 30 | L74: 10 | M74: 9 | N74: 14 | O74: 0 | P74: 0 | Q74: 0 | R74: 0 | S74: 0 | T74: 0 | U74: 1862
A75: Q74 | B75: RVW | C75: NORTH TEES AND HARTLEPOOL NHS FOUNDATION TRUST | D75: 1228 | E75: 4099 | F75: 0.2995852647 | G75: 0.9552117264 | H75: 0.009771986971 | I75: 1004 | J75: 169 | K75: 29 | L75: 7 | M75: 5 | N75: 14 | O75: 0 | P75: 0 | Q75: 1228 | R75: 0 | S75: 0 | T75: 0 | U75: 0
A76: Q74 | B76: RTF | C76: NORTHUMBRIA HEALTHCARE NHS FOUNDATION TRUST | D76: 1303 | E76: 8688 | F76: 0.1499769797 | G76: 0.9693016117 | H76: 0.008442056792 | I76: 1122 | J76: 141 | K76: 19 | L76: 4 | M76: 7 | N76: 10 | O76: 0 | P76: 0 | Q76: 1303 | R76: 0 | S76: 0 | T76: 0 | U76: 0
A77: Q74 | B77: RTR | C77: SOUTH TEES HOSPITALS NHS FOUNDATION TRUST | D77: 2942 | E77: 9384 | F77: 0.3135123615 | G77: 0.9595513256 | H77: 0.008837525493 | I77: 2428 | J77: 395 | K77: 63 | L77: 13 | M77: 13 | N77: 30 | O77: 77 | P77: 0 | Q77: 1593 | R77: 0 | S77: 1268 | T77: 4 | U77: 0
A78: Q74 | B78: RE9 | C78: SOUTH TYNESIDE NHS FOUNDATION TRUST | D78: 332 | E78: 961 | F78: 0.3454734651 | G78: 0.9518072289 | H78: 0.003012048193 | I78: 276 | J78: 40 | K78: 5 | L78: 1 | M78: 0 | N78: 10 | O78: 0 | P78: 0 | Q78: 0 | R78: 332 | S78: 0 | T78: 0 | U78: 0
A79: Q74 | B79: RTD | C79: THE NEWCASTLE UPON TYNE HOSPITALS NHS FOUNDATION TRUST | D79: 2381 | E79: 15465 | F79: 0.1539605561 | G79: 0.981100378 | H79: 0.009239815204 | I79: 2011 | J79: 325 | K79: 21 | L79: 6 | M79: 16 | N79: 2 | O79: 0 | P79: 13 | Q79: 2368 | R79: 0 | S79: 0 | T79: 0 | U79: 0
A80: Q74 | B80: RTX | C80: UNIVERSITY HOSPITALS OF MORECAMBE BAY NHS FOUNDATION TRUST | D80: 1369 | E80: 4396 | F80: 0.3114194722 | G80: 0.9525200877 | H80: 0.01533966399 | I80: 1155 | J80: 149 | K80: 19 | L80: 7 | M80: 14 | N80: 25 | O80: 152 | P80: 4 | Q80: 1207 | R80: 0 | S80: 0 | T80: 6 | U80: 0
A81: Q75 | B81: REM | C81: AINTREE UNIVERSITY HOSPITAL NHS FOUNDATION TRUST | D81: 1981 | E81: 3493 | F81: 0.5671342685 | G81: 0.9631499243 | H81: 0.01564866229 | I81: 1664 | J81: 244 | K81: 28 | L81: 11 | M81: 20 | N81: 14 | O81: 384 | P81: 0 | Q81: 1180 | R81: 0 | S81: 417 | T81: 0 | U81: 0
A82: Q75 | B82: RBS | C82: ALDER HEY CHILDREN'S NHS FOUNDATION TRUST | D82: 151 | E82: 1878 | F82: 0.08040468584 | G82: 0.9735099338 | H82: 0.01986754967 | I82: 122 | J82: 25 | K82: 1 | L82: 2 | M82: 1 | N82: 0 | O82: 0 | P82: 0 | Q82: 151 | R82: 0 | S82: 0 | T82: 0 | U82: 0
A83: Q75 | B83: RJR | C83: COUNTESS OF CHESTER HOSPITAL NHS FOUNDATION TRUST | D83: 1062 | E83: 4065 | F83: 0.2612546125 | G83: 0.9632768362 | H83: 0.01129943503 | I83: 876 | J83: 147 | K83: 10 | L83: 8 | M83: 4 | N83: 17 | O83: 0 | P83: 0 | Q83: 1060 | R83: 0 | S83: 0 | T83: 2 | U83: 0
A84: Q75 | B84: RJN | C84: EAST CHESHIRE NHS TRUST | D84: 593 | E84: 1644 | F84: 0.3607055961 | G84: 0.9730185497 | H84: 0.008431703204 | I84: 490 | J84: 87 | K84: 7 | L84: 0 | M84: 5 | N84: 4 | O84: 199 | P84: 0 | Q84: 239 | R84: 0 | S84: 153 | T84: 2 | U84: 0
A85: Q75 | B85: RBQ | C85: LIVERPOOL HEART AND CHEST HOSPITAL NHS FOUNDATION TRUST | D85: 390 | E85: 1072 | F85: 0.3638059701 | G85: 0.9923076923 | H85: 0.005128205128 | I85: 365 | J85: 22 | K85: 0 | L85: 1 | M85: 1 | N85: 1 | O85: 0 | P85: 390 | Q85: 0 | R85: 0 | S85: 0 | T85: 0 | U85: 0
A86: Q75 | B86: REP | C86: LIVERPOOL WOMEN'S NHS FOUNDATION TRUST | D86: 143 | E86: 920 | F86: 0.1554347826 | G86: 0.958041958 | H86: 0.02797202797 | I86: 119 | J86: 18 | K86: 2 | L86: 0 | M86: 4 | N86: 0 | O86: 0 | P86: 0 | Q86: 143 | R86: 0 | S86: 0 | T86: 0 | U86: 0
A87: Q75 | B87: RBT | C87: MID CHESHIRE HOSPITALS NHS FOUNDATION TRUST | D87: 546 | E87: 4347 | F87: 0.1256038647 | G87: 0.9743589744 | H87: 0.005494505495 | I87: 422 | J87: 110 | K87: 9 | L87: 2 | M87: 1 | N87: 2 | O87: 0 | P87: 0 | Q87: 546 | R87: 0 | S87: 0 | T87: 0 | U87: 0
A88: Q75 | B88: RQ6 | C88: ROYAL LIVERPOOL AND BROADGREEN UNIVERSITY HOSPITALS NHS TRUST | D88: 1639 | E88: 5876 | F88: 0.2789312457 | G88: 0.9164124466 | H88: 0.03599755949 | I88: 1296 | J88: 206 | K88: 42 | L88: 28 | M88: 31 | N88: 36 | O88: 945 | P88: 0 | Q88: 0 | R88: 0 | S88: 694 | T88: 0 | U88: 0
A89: Q75 | B89: RVY | C89: SOUTHPORT AND ORMSKIRK HOSPITAL NHS TRUST | D89: 937 | E89: 3670 | F89: 0.2553133515 | G89: 0.9594450374 | H89: 0.01387406617 | I89: 768 | J89: 131 | K89: 16 | L89: 9 | M89: 4 | N89: 9 | O89: 0 | P89: 64 | Q89: 873 | R89: 0 | S89: 0 | T89: 0 | U89: 0
A90: Q75 | B90: RBN | C90: ST HELENS AND KNOWSLEY HOSPITALS NHS TRUST | D90: 565 | E90: 2009 | F90: 0.281234445 | G90: 0.9681415929 | H90: 0.01415929204 | I90: 455 | J90: 92 | K90: 9 | L90: 4 | M90: 4 | N90: 1 | O90: 0 | P90: 0 | Q90: 565 | R90: 0 | S90: 0 | T90: 0 | U90: 0
A91: Q75 | B91: REN | C91: THE CLATTERBRIDGE CANCER CENTRE NHS FOUNDATION TRUST | D91: 77 | E91: 330 | F91: 0.2333333333 | G91: 0.974025974 | H91: 0 | I91: 69 | J91: 6 | K91: 0 | L91: 0 | M91: 0 | N91: 2 | O91: 0 | P91: 0 | Q91: 77 | R91: 0 | S91: 0 | T91: 0 | U91: 0
A92: Q75 | B92: RET | C92: THE WALTON CENTRE NHS FOUNDATION TRUST | D92: 460 | E92: 1014 | F92: 0.4536489152 | G92: 0.9804347826 | H92: 0.008695652174 | I92: 418 | J92: 33 | K92: 5 | L92: 2 | M92: 2 | N92: 0 | O92: 0 | P92: 0 | Q92: 460 | R92: 0 | S92: 0 | T92: 0 | U92: 0
A93: Q75 | B93: RWW | C93: WARRINGTON AND HALTON HOSPITALS NHS FOUNDATION TRUST | D93: 2590 | E93: 5040 | F93: 0.5138888889 | G93: 0.9683397683 | H93: 0.008108108108 | I93: 2187 | J93: 321 | K93: 33 | L93: 8 | M93: 13 | N93: 28 | O93: 0 | P93: 0 | Q93: 2583 | R93: 0 | S93: 0 | T93: 7 | U93: 0
A94: Q75 | B94: RBL | C94: WIRRAL UNIVERSITY TEACHING HOSPITAL NHS FOUNDATION TRUST | D94: 1304 | E94: 5909 | F94: 0.2206803182 | G94: 0.9685582822 | H94: 0.01150306748 | I94: 1097 | J94: 166 | K94: 21 | L94: 9 | M94: 6 | N94: 5 | O94: 0 | P94: 0 | Q94: 1304 | R94: 0 | S94: 0 | T94: 0 | U94: 0
A95: Q76 | B95: RJF | C95: BURTON HOSPITALS NHS FOUNDATION TRUST | D95: 850 | E95: 3854 | F95: 0.2205500778 | G95: 0.9741176471 | H95: 0.008235294118 | I95: 726 | J95: 102 | K95: 6 | L95: 1 | M95: 6 | N95: 9 | O95: 0 | P95: 1 | Q95: 846 | R95: 0 | S95: 0 | T95: 3 | U95: 0
A96: Q76 | B96: RFS | C96: CHESTERFIELD ROYAL HOSPITAL NHS FOUNDATION TRUST | D96: 804 | E96: 3047 | F96: 0.2638660978 | G96: 0.9589552239 | H96: 0.01119402985 | I96: 639 | J96: 132 | K96: 15 | L96: 4 | M96: 5 | N96: 9 | O96: 0 | P96: 0 | Q96: 803 | R96: 0 | S96: 0 | T96: 1 | U96: 0
A97: Q76 | B97: RTG | C97: DERBY TEACHING HOSPITALS NHS FOUNDATION TRUST | D97: 2983 | E97: 13336 | F97: 0.2236802639 | G97: 0.9403285283 | H97: 0.02145491116 | I97: 2361 | J97: 444 | K97: 72 | L97: 28 | M97: 36 | N97: 42 | O97: 1070 | P97: 0 | Q97: 1424 | R97: 0 | S97: 479 | T97: 10 | U97: 0
A98: Q76 | B98: RX1 | C98: NOTTINGHAM UNIVERSITY HOSPITALS NHS TRUST | D98: 4738 | E98: 10826 | F98: 0.4376501016 | G98: 0.9620092866 | H98: 0.00865344027 | I98: 3970 | J98: 588 | K98: 57 | L98: 22 | M98: 19 | N98: 82 | O98: 0 | P98: 0 | Q98: 4737 | R98: 0 | S98: 0 | T98: 1 | U98: 0
A99: Q76 | B99: RK5 | C99: SHERWOOD FOREST HOSPITALS NHS FOUNDATION TRUST | D99: 838 | E99: 6125 | F99: 0.1368163265 | G99: 0.9665871122 | H99: 0.01193317422 | I99: 681 | J99: 129 | K99: 11 | L99: 6 | M99: 4 | N99: 7 | O99: 0 | P99: 0 | Q99: 810 | R99: 0 | S99: 0 | T99: 28 | U99: 0
A100: Q76 | B100: RXW | C100: SHREWSBURY AND TELFORD HOSPITAL NHS TRUST | D100: 1117 | E100: 6743 | F100: 0.1656532701 | G100: 0.9650850492 | H100: 0.01253357207 | I100: 952 | J100: 126 | K100: 8 | L100: 4 | M100: 10 | N100: 17 | O100: 0 | P100: 0 | Q100: 1111 | R100: 0 | S100: 0 | T100: 6 | U100: 0
A101: Q76 | B101: RL1 | C101: THE ROBERT JONES AND AGNES HUNT ORTHOPAEDIC HOSPITAL NHS FOUNDATION TRUST | D101: 268 | E101: 1209 | F101: 0.2216708023 | G101: 0.9888059701 | H101: 0.01119402985 | I101: 251 | J101: 14 | K101: 0 | L101: 2 | M101: 1 | N101: 0 | O101: 0 | P101: 37 | Q101: 231 | R101: 0 | S101: 0 | T101: 0 | U101: 0
A102: Q76 | B102: RJE | C102: UNIVERSITY HOSPITALS OF NORTH MIDLANDS NHS TRUST | D102: 1974 | E102: 9667 | F102: 0.2041998552 | G102: 0.9807497467 | H102: 0.00506585613 | I102: 1627 | J102: 309 | K102: 26 | L102: 6 | M102: 4 | N102: 2 | O102: 0 | P102: 0 | Q102: 1974 | R102: 0 | S102: 0 | T102: 0 | U102: 0
A103: Q77 | B103: RQ3 | C103: BIRMINGHAM CHILDREN'S HOSPITAL NHS FOUNDATION TRUST | D103: 506 | E103: 2635 | F103: 0.1920303605 | G103: 0.9407114625 | H103: 0.00395256917 | I103: 430 | J103: 46 | K103: 6 | L103: 1 | M103: 1 | N103: 22 | O103: 0 | P103: 0 | Q103: 0 | R103: 506 | S103: 0 | T103: 0 | U103: 0
A104: Q77 | B104: RLU | C104: BIRMINGHAM WOMEN'S NHS FOUNDATION TRUST | D104: 63 | E104: 359 | F104: 0.1754874652 | G104: 0.9682539683 | H104: 0 | I104: 53 | J104: 8 | K104: 2 | L104: 0 | M104: 0 | N104: 0 | O104: 0 | P104: 0 | Q104: 58 | R104: 0 | S104: 0 | T104: 5 | U104: 0
A105: Q77 | B105: RLT | C105: GEORGE ELIOT HOSPITAL NHS TRUST | D105: 554 | E105: 1011 | F105: 0.5479723046 | G105: 0.9675090253 | H105: 0.009025270758 | I105: 499 | J105: 37 | K105: 6 | L105: 4 | M105: 1 | N105: 7 | O105: 0 | P105: 263 | Q105: 290 | R105: 0 | S105: 0 | T105: 1 | U105: 0
A106: Q77 | B106: RR1 | C106: HEART OF ENGLAND NHS FOUNDATION TRUST | D106: 4050 | E106: 9924 | F106: 0.4081015719 | G106: 0.9409876543 | H106: 0.0237037037 | I106: 2959 | J106: 852 | K106: 106 | L106: 47 | M106: 49 | N106: 37 | O106: 0 | P106: 0 | Q106: 4050 | R106: 0 | S106: 0 | T106: 0 | U106: 0
A107: Q77 | B107: RXK | C107: SANDWELL AND WEST BIRMINGHAM HOSPITALS NHS TRUST | D107: 1118 | E107: 8327 | F107: 0.1342620391 | G107: 0.9570661896 | H107: 0.01431127013 | I107: 811 | J107: 259 | K107: 23 | L107: 5 | M107: 11 | N107: 9 | O107: 0 | P107: 1038 | Q107: 80 | R107: 0 | S107: 0 | T107: 0 | U107: 0
A108: Q77 | B108: RJC | C108: SOUTH WARWICKSHIRE NHS FOUNDATION TRUST | D108: 407 | E108: 2056 | F108: 0.1979571984 | G108: 0.9606879607 | H108: 0.01474201474 | I108: 346 | J108: 45 | K108: 5 | L108: 3 | M108: 3 | N108: 5 | O108: 0 | P108: 43 | Q108: 361 | R108: 0 | S108: 0 | T108: 3 | U108: 0
A109: Q77 | B109: RNA | C109: THE DUDLEY GROUP NHS FOUNDATION TRUST | D109: 1213 | E109: 6073 | F109: 0.1997365388 | G109: 0.9686727123 | H109: 0.02061005771 | I109: 1051 | J109: 124 | K109: 9 | L109: 5 | M109: 20 | N109: 4 | O109: 8 | P109: 0 | Q109: 1205 | R109: 0 | S109: 0 | T109: 0 | U109: 0
A110: Q77 | B110: RRJ | C110: THE ROYAL ORTHOPAEDIC HOSPITAL NHS FOUNDATION TRUST | D110: 329 | E110: 1156 | F110: 0.2846020761 | G110: 0.9756838906 | H110: 0.009118541033 | I110: 283 | J110: 38 | K110: 5 | L110: 2 | M110: 1 | N110: 0 | O110: 0 | P110: 0 | Q110: 329 | R110: 0 | S110: 0 | T110: 0 | U110: 0
A111: Q77 | B111: RL4 | C111: THE ROYAL WOLVERHAMPTON NHS TRUST | D111: 1358 | E111: 4210 | F111: 0.3225653207 | G111: 0.8983799705 | H111: 0.04344624448 | I111: 1011 | J111: 209 | K111: 54 | L111: 22 | M111: 37 | N111: 25 | O111: 766 | P111: 0 | Q111: 77 | R111: 334 | S111: 181 | T111: 0 | U111: 0
A112: Q77 | B112: RRK | C112: UNIVERSITY HOSPITALS BIRMINGHAM NHS FOUNDATION TRUST | D112: 1612 | E112: 5742 | F112: 0.2807384187 | G112: 0.9696029777 | H112: 0.01612903226 | I112: 1302 | J112: 261 | K112: 14 | L112: 9 | M112: 17 | N112: 9 | O112: 0 | P112: 606 | Q112: 491 | R112: 0 | S112: 0 | T112: 0 | U112: 515
A113: Q77 | B113: RKB | C113: UNIVERSITY HOSPITALS COVENTRY AND WARWICKSHIRE NHS TRUST | D113: 2976 | E113: 11523 | F113: 0.2582660765 | G113: 0.9304435484 | H113: 0.03897849462 | I113: 2292 | J113: 477 | K113: 58 | L113: 32 | M113: 84 | N113: 33 | O113: 1970 | P113: 19 | Q113: 867 | R113: 0 | S113: 0 | T113: 120 | U113: 0
A114: Q77 | B114: RBK | C114: WALSALL HEALTHCARE NHS TRUST | D114: 1247 | E114: 3811 | F114: 0.3272107059 | G114: 0.9703287891 | H114: 0.007217321572 | I114: 955 | J114: 255 | K114: 12 | L114: 8 | M114: 1 | N114: 16 | O114: 0 | P114: 0 | Q114: 1247 | R114: 0 | S114: 0 | T114: 0 | U114: 0
A115: Q77 | B115: RWP | C115: WORCESTERSHIRE ACUTE HOSPITALS NHS TRUST | D115: 884 | E115: 3303 | F115: 0.2676354829 | G115: 0.9615384615 | H115: 0.01018099548 | I115: 725 | J115: 125 | K115: 20 | L115: 4 | M115: 5 | N115: 5 | O115: 0 | P115: 0 | Q115: 884 | R115: 0 | S115: 0 | T115: 0 | U115: 0
A116: Q77 | B116: RLQ | C116: WYE VALLEY NHS TRUST | D116: 651 | E116: 2088 | F116: 0.3117816092 | G116: 0.9662058372 | H116: 0.0153609831 | I116: 545 | J116: 84 | K116: 5 | L116: 5 | M116: 5 | N116: 7 | O116: 0 | P116: 0 | Q116: 651 | R116: 0 | S116: 0 | T116: 0 | U116: 0
A117: Q78 | B117: RC1 | C117: BEDFORD HOSPITAL NHS TRUST | D117: 1013 | E117: 3850 | F117: 0.2631168831 | G117: 0.9160908193 | H117: 0.03948667325 | I117: 748 | J117: 180 | K117: 31 | L117: 20 | M117: 20 | N117: 14 | O117: 408 | P117: 0 | Q117: 0 | R117: 120 | S117: 485 | T117: 0 | U117: 0
A118: Q78 | B118: RWH | C118: EAST AND NORTH HERTFORDSHIRE NHS TRUST | D118: 1537 | E118: 4303 | F118: 0.3571926563 | G118: 0.9577098243 | H118: 0.01040988939 | I118: 1177 | J118: 295 | K118: 38 | L118: 9 | M118: 7 | N118: 11 | O118: 0 | P118: 681 | Q118: 856 | R118: 0 | S118: 0 | T118: 0 | U118: 0
A119: Q78 | B119: RNQ | C119: KETTERING GENERAL HOSPITAL NHS FOUNDATION TRUST | D119: 850 | E119: 2960 | F119: 0.2871621622 | G119: 0.9376470588 | H119: 0.02588235294 | I119: 654 | J119: 143 | K119: 31 | L119: 14 | M119: 8 | N119: 0 | O119: 0 | P119: 0 | Q119: 850 | R119: 0 | S119: 0 | T119: 0 | U119: 0
A120: Q78 | B120: RC9 | C120: LUTON AND DUNSTABLE UNIVERSITY HOSPITAL NHS FOUNDATION TRUST | D120: 1001 | E120: 4978 | F120: 0.201084773 | G120: 0.9370629371 | H120: 0.01698301698 | I120: 749 | J120: 189 | K120: 20 | L120: 9 | M120: 8 | N120: 26 | O120: 0 | P120: 0 | Q120: 820 | R120: 0 | S120: 113 | T120: 68 | U120: 0
A121: Q78 | B121: RD8 | C121: MILTON KEYNES UNIVERSITY HOSPITAL NHS FOUNDATION TRUST | D121: 884 | E121: 4379 | F121: 0.2018725736 | G121: 0.9366515837 | H121: 0.02375565611 | I121: 659 | J121: 169 | K121: 21 | L121: 11 | M121: 10 | N121: 14 | O121: 0 | P121: 54 | Q121: 825 | R121: 0 | S121: 0 | T121: 5 | U121: 0
A122: Q78 | B122: RNS | C122: NORTHAMPTON GENERAL HOSPITAL NHS TRUST | D122: 1790 | E122: 7050 | F122: 0.2539007092 | G122: 0.8927374302 | H122: 0.05474860335 | I122: 1221 | J122: 377 | K122: 69 | L122: 42 | M122: 56 | N122: 25 | O122: 956 | P122: 0 | Q122: 49 | R122: 0 | S122: 780 | T122: 5 | U122: 0
A123: Q78 | B123: RWD | C123: UNITED LINCOLNSHIRE HOSPITALS NHS TRUST | D123: 2025 | E123: 6110 | F123: 0.3314238953 | G123: 0.9130864198 | H123: 0.03901234568 | I123: 1459 | J123: 390 | K123: 63 | L123: 34 | M123: 45 | N123: 34 | O123: 618 | P123: 0 | Q123: 180 | R123: 0 | S123: 1191 | T123: 36 | U123: 0
A124: Q78 | B124: RWE | C124: UNIVERSITY HOSPITALS OF LEICESTER NHS TRUST | D124: 4498 | E124: 16971 | F124: 0.265040363 | G124: 0.9673188084 | H124: 0.0084481992 | I124: 3496 | J124: 855 | K124: 81 | L124: 24 | M124: 14 | N124: 28 | O124: 56 | P124: 38 | Q124: 4395 | R124: 0 | S124: 0 | T124: 9 | U124: 0
A125: Q78 | B125: RWG | C125: WEST HERTFORDSHIRE HOSPITALS NHS TRUST | D125: 2057 | E125: 3698 | F125: 0.5562466198 | G125: 0.9732620321 | H125: 0.004861448712 | I125: 1596 | J125: 406 | K125: 35 | L125: 4 | M125: 6 | N125: 10 | O125: 0 | P125: 0 | Q125: 2049 | R125: 0 | S125: 0 | T125: 8 | U125: 0
A126: Q79 | B126: RDD | C126: BASILDON AND THURROCK UNIVERSITY HOSPITALS NHS FOUNDATION TRUST | D126: 1831 | E126: 4933 | F126: 0.371173728 | G126: 0.9628618241 | H126: 0.01419989077 | I126: 1507 | J126: 256 | K126: 32 | L126: 8 | M126: 18 | N126: 10 | O126: 563 | P126: 0 | Q126: 1266 | R126: 0 | S126: 0 | T126: 2 | U126: 0
A127: Q79 | B127: RGT | C127: CAMBRIDGE UNIVERSITY HOSPITALS NHS FOUNDATION TRUST | D127: 1113 | E127: 6899 | F127: 0.1613277287 | G127: 0.9496855346 | H127: 0.01796945193 | I127: 831 | J127: 226 | K127: 29 | L127: 15 | M127: 5 | N127: 7 | O127: 0 | P127: 1035 | Q127: 75 | R127: 0 | S127: 0 | T127: 3 | U127: 0
A128: Q79 | B128: RDE | C128: COLCHESTER HOSPITAL UNIVERSITY NHS FOUNDATION TRUST | D128: 1710 | E128: 5906 | F128: 0.289536065 | G128: 0.965497076 | H128: 0.01228070175 | I128: 1336 | J128: 315 | K128: 31 | L128: 10 | M128: 11 | N128: 7 | O128: 0 | P128: 0 | Q128: 1710 | R128: 0 | S128: 0 | T128: 0 | U128: 0
A129: Q79 | B129: RQQ | C129: HINCHINGBROOKE HEALTH CARE NHS TRUST | D129: 467 | E129: 940 | F129: 0.4968085106 | G129: 0.965738758 | H129: 0 | I129: 374 | J129: 77 | K129: 9 | L129: 0 | M129: 0 | N129: 7 | O129: 0 | P129: 0 | Q129: 467 | R129: 0 | S129: 0 | T129: 0 | U129: 0
A130: Q79 | B130: RGQ | C130: IPSWICH HOSPITAL NHS TRUST | D130: 1457 | E130: 4385 | F130: 0.3322690992 | G130: 0.9423472889 | H130: 0.01098146877 | I130: 1071 | J130: 302 | K130: 56 | L130: 14 | M130: 2 | N130: 12 | O130: 0 | P130: 767 | Q130: 413 | R130: 0 | S130: 0 | T130: 2 | U130: 275
A131: Q79 | B131: RGP | C131: JAMES PAGET UNIVERSITY HOSPITALS NHS FOUNDATION TRUST | D131: 998 | E131: 5814 | F131: 0.1716546268 | G131: 0.9549098196 | H131: 0.01503006012 | I131: 777 | J131: 176 | K131: 28 | L131: 9 | M131: 6 | N131: 2 | O131: 0 | P131: 0 | Q131: 998 | R131: 0 | S131: 0 | T131: 0 | U131: 0
A132: Q79 | B132: RQ8 | C132: MID ESSEX HOSPITAL SERVICES NHS TRUST | D132: 1466 | E132: 6398 | F132: 0.2291341044 | G132: 0.9072305593 | H132: 0.03683492497 | I132: 1015 | J132: 315 | K132: 59 | L132: 15 | M132: 39 | N132: 23 | O132: 0 | P132: 1466 | Q132: 0 | R132: 0 | S132: 0 | T132: 0 | U132: 0
A133: Q79 | B133: RM1 | C133: NORFOLK AND NORWICH UNIVERSITY HOSPITALS NHS FOUNDATION TRUST | D133: 877 | E133: 13064 | F133: 0.06713104715 | G133: 0.9646522235 | H133: 0.01938426454 | I133: 777 | J133: 69 | K133: 13 | L133: 8 | M133: 9 | N133: 1 | O133: 0 | P133: 470 | Q133: 136 | R133: 8 | S133: 263 | T133: 0 | U133: 0
A134: Q79 | B134: RGM | C134: PAPWORTH HOSPITAL NHS FOUNDATION TRUST | D134: 613 | E134: 1016 | F134: 0.6033464567 | G134: 0.9836867863 | H134: 0.006525285481 | I134: 548 | J134: 55 | K134: 2 | L134: 2 | M134: 2 | N134: 4 | O134: 0 | P134: 0 | Q134: 613 | R134: 0 | S134: 0 | T134: 0 | U134: 0
A135: Q79 | B135: RGN | C135: PETERBOROUGH AND STAMFORD HOSPITALS NHS FOUNDATION TRUST | D135: 960 | E135: 3747 | F135: 0.256204964 | G135: 0.959375 | H135: 0.01041666667 | I135: 797 | J135: 124 | K135: 14 | L135: 7 | M135: 3 | N135: 15 | O135: 0 | P135: 0 | Q135: 959 | R135: 0 | S135: 0 | T135: 1 | U135: 0
A136: Q79 | B136: RAJ | C136: SOUTHEND UNIVERSITY HOSPITAL NHS FOUNDATION TRUST | D136: 1261 | E136: 6764 | F136: 0.186428149 | G136: 0.9167327518 | H136: 0.02696272799 | I136: 947 | J136: 209 | K136: 44 | L136: 11 | M136: 23 | N136: 27 | O136: 469 | P136: 0 | Q136: 226 | R136: 0 | S136: 566 | T136: 0 | U136: 0
A137: Q79 | B137: RQW | C137: THE PRINCESS ALEXANDRA HOSPITAL NHS TRUST | D137: 360 | E137: 1929 | F137: 0.1866251944 | G137: 0.9444444444 | H137: 0.008333333333 | I137: 283 | J137: 57 | K137: 11 | L137: 2 | M137: 1 | N137: 6 | O137: 0 | P137: 0 | Q137: 0 | R137: 0 | S137: 0 | T137: 0 | U137: 360
A138: Q79 | B138: RCX | C138: THE QUEEN ELIZABETH HOSPITAL, KING'S LYNN, NHS FOUNDATION TRUST | D138: 1906 | E138: 5645 | F138: 0.3376439327 | G138: 0.9496327387 | H138: 0.007869884575 | I138: 1453 | J138: 357 | K138: 30 | L138: 9 | M138: 6 | N138: 51 | O138: 0 | P138: 0 | Q138: 1904 | R138: 0 | S138: 0 | T138: 2 | U138: 0
A139: Q79 | B139: RGR | C139: WEST SUFFOLK NHS FOUNDATION TRUST | D139: 624 | E139: 2743 | F139: 0.2274881517 | G139: 0.9823717949 | H139: 0.009615384615 | I139: 577 | J139: 36 | K139: 3 | L139: 4 | M139: 2 | N139: 2 | O139: 0 | P139: 188 | Q139: 424 | R139: 0 | S139: 0 | T139: 12 | U139: 0
A140: Q80 | B140: RVJ | C140: NORTH BRISTOL NHS TRUST | D140: 921 | E140: 5548 | F140: 0.1660057678 | G140: 0.9630836048 | H140: 0.009771986971 | I140: 741 | J140: 146 | K140: 19 | L140: 7 | M140: 2 | N140: 6 | O140: 0 | P140: 0 | Q140: 913 | R140: 0 | S140: 0 | T140: 8 | U140: 0
A141: Q80 | B141: RBZ | C141: NORTHERN DEVON HEALTHCARE NHS TRUST | D141: 296 | E141: 2542 | F141: 0.1164437451 | G141: 0.9662162162 | H141: 0 | I141: 267 | J141: 19 | K141: 7 | L141: 0 | M141: 0 | N141: 3 | O141: 0 | P141: 146 | Q141: 150 | R141: 0 | S141: 0 | T141: 0 | U141: 0
A142: Q80 | B142: RK9 | C142: PLYMOUTH HOSPITALS NHS TRUST | D142: 1908 | E142: 6186 | F142: 0.3084384093 | G142: 0.9533542977 | H142: 0.01048218029 | I142: 1417 | J142: 402 | K142: 40 | L142: 15 | M142: 5 | N142: 29 | O142: 0 | P142: 309 | Q142: 1598 | R142: 0 | S142: 0 | T142: 1 | U142: 0
A143: Q80 | B143: REF | C143: ROYAL CORNWALL HOSPITALS NHS TRUST | D143: 1121 | E143: 9776 | F143: 0.1146685761 | G143: 0.9661016949 | H143: 0.008920606601 | I143: 910 | J143: 173 | K143: 23 | L143: 6 | M143: 4 | N143: 5 | O143: 0 | P143: 0 | Q143: 1121 | R143: 0 | S143: 0 | T143: 0 | U143: 0
A144: Q80 | B144: RH8 | C144: ROYAL DEVON AND EXETER NHS FOUNDATION TRUST | D144: 1337 | E144: 7461 | F144: 0.1791984989 | G144: 0.9633507853 | H144: 0.01121914734 | I144: 1032 | J144: 256 | K144: 30 | L144: 9 | M144: 6 | N144: 4 | O144: 0 | P144: 0 | Q144: 1337 | R144: 0 | S144: 0 | T144: 0 | U144: 0
A145: Q80 | B145: RBA | C145: TAUNTON AND SOMERSET NHS FOUNDATION TRUST | D145: 904 | E145: 5878 | F145: 0.1537938074 | G145: 0.9723451327 | H145: 0.009955752212 | I145: 764 | J145: 115 | K145: 13 | L145: 6 | M145: 3 | N145: 3 | O145: 0 | P145: 220 | Q145: 684 | R145: 0 | S145: 0 | T145: 0 | U145: 0
A146: Q80 | B146: RA9 | C146: TORBAY AND SOUTH DEVON NHS FOUNDATION TRUST | D146: 478 | E146: 4292 | F146: 0.1113699907 | G146: 0.9581589958 | H146: 0.01255230126 | I146: 372 | J146: 86 | K146: 13 | L146: 1 | M146: 5 | N146: 1 | O146: 0 | P146: 0 | Q146: 478 | R146: 0 | S146: 0 | T146: 0 | U146: 0
A147: Q80 | B147: RA7 | C147: UNIVERSITY HOSPITALS BRISTOL NHS FOUNDATION TRUST | D147: 1447 | E147: 7293 | F147: 0.1984094337 | G147: 0.9619903248 | H147: 0.01313061507 | I147: 1210 | J147: 182 | K147: 12 | L147: 11 | M147: 8 | N147: 24 | O147: 0 | P147: 0 | Q147: 1443 | R147: 0 | S147: 0 | T147: 4 | U147: 0
A148: Q80 | B148: RA3 | C148: WESTON AREA HEALTH NHS TRUST | D148: 568 | E148: 1301 | F148: 0.4365872406 | G148: 0.9454225352 | H148: 0.01232394366 | I148: 414 | J148: 123 | K148: 12 | L148: 5 | M148: 2 | N148: 12 | O148: 0 | P148: 0 | Q148: 568 | R148: 0 | S148: 0 | T148: 0 | U148: 0
A149: Q80 | B149: RA4 | C149: YEOVIL DISTRICT HOSPITAL NHS FOUNDATION TRUST | D149: 542 | E149: 2520 | F149: 0.2150793651 | G149: 0.9446494465 | H149: 0.0258302583 | I149: 404 | J149: 108 | K149: 14 | L149: 11 | M149: 3 | N149: 2 | O149: 0 | P149: 542 | Q149: 0 | R149: 0 | S149: 0 | T149: 0 | U149: 0
A150: Q81 | B150: RTK | C150: ASHFORD AND ST PETER'S HOSPITALS NHS FOUNDATION TRUST | D150: 1188 | E150: 3745 | F150: 0.317222964 | G150: 0.9638047138 | H150: 0.01599326599 | I150: 982 | J150: 163 | K150: 15 | L150: 9 | M150: 10 | N150: 9 | O150: 410 | P150: 0 | Q150: 775 | R150: 0 | S150: 0 | T150: 3 | U150: 0
A151: Q81 | B151: RXH | C151: BRIGHTON AND SUSSEX UNIVERSITY HOSPITALS NHS TRUST | D151: 1012 | E151: 8013 | F151: 0.126294771 | G151: 0.9407114625 | H151: 0.01581027668 | I151: 703 | J151: 249 | K151: 28 | L151: 9 | M151: 7 | N151: 16 | O151: 0 | P151: 0 | Q151: 1012 | R151: 0 | S151: 0 | T151: 0 | U151: 0
A152: Q81 | B152: RN7 | C152: DARTFORD AND GRAVESHAM NHS TRUST | D152: 595 | E152: 4109 | F152: 0.1448040886 | G152: 0.974789916 | H152: 0.006722689076 | I152: 488 | J152: 92 | K152: 8 | L152: 2 | M152: 2 | N152: 3 | O152: 0 | P152: 0 | Q152: 595 | R152: 0 | S152: 0 | T152: 0 | U152: 0
A153: Q81 | B153: RVV | C153: EAST KENT HOSPITALS UNIVERSITY NHS FOUNDATION TRUST | D153: 3904 | E153: 11645 | F153: 0.3352511808 | G153: 0.9428790984 | H153: 0.02100409836 | I153: 2984 | J153: 697 | K153: 93 | L153: 39 | M153: 43 | N153: 48 | O153: 1142 | P153: 0 | Q153: 1553 | R153: 0 | S153: 1176 | T153: 0 | U153: 33
A154: Q81 | B154: RXC | C154: EAST SUSSEX HEALTHCARE NHS TRUST | D154: 988 | E154: 6468 | F154: 0.1527520099 | G154: 0.9665991903 | H154: 0.008097165992 | I154: 807 | J154: 148 | K154: 16 | L154: 2 | M154: 6 | N154: 9 | O154: 0 | P154: 215 | Q154: 765 | R154: 0 | S154: 0 | T154: 8 | U154: 0
A155: Q81 | B155: RDU | C155: FRIMLEY HEALTH NHS FOUNDATION TRUST | D155: 3032 | E155: 10744 | F155: 0.2822040208 | G155: 0.9670184697 | H155: 0.008245382586 | I155: 2405 | J155: 527 | K155: 54 | L155: 14 | M155: 11 | N155: 21 | O155: 0 | P155: 140 | Q155: 2892 | R155: 0 | S155: 0 | T155: 0 | U155: 0
A156: Q81 | B156: RWF | C156: MAIDSTONE AND TUNBRIDGE WELLS NHS TRUST | D156: 1545 | E156: 5772 | F156: 0.2676715177 | G156: 0.9585760518 | H156: 0.003883495146 | I156: 1282 | J156: 199 | K156: 18 | L156: 4 | M156: 2 | N156: 40 | O156: 0 | P156: 0 | Q156: 1543 | R156: 0 | S156: 0 | T156: 2 | U156: 0
A157: Q81 | B157: RPA | C157: MEDWAY NHS FOUNDATION TRUST | D157: 1327 | E157: 5167 | F157: 0.2568221405 | G157: 0.8379804069 | H157: 0.09344385833 | I157: 808 | J157: 304 | K157: 73 | L157: 58 | M157: 66 | N157: 18 | O157: 677 | P157: 0 | Q157: 65 | R157: 0 | S157: 585 | T157: 0 | U157: 0
A158: Q81 | B158: RPC | C158: QUEEN VICTORIA HOSPITAL NHS FOUNDATION TRUST | D158: 274 | E158: 571 | F158: 0.4798598949 | G158: 0.9890510949 | H158: 0 | I158: 251 | J158: 20 | K158: 2 | L158: 0 | M158: 0 | N158: 1 | O158: 0 | P158: 0 | Q158: 274 | R158: 0 | S158: 0 | T158: 0 | U158: 0
A159: Q81 | B159: RA2 | C159: ROYAL SURREY COUNTY HOSPITAL NHS FOUNDATION TRUST | D159: 1389 | E159: 4427 | F159: 0.3137564942 | G159: 0.9352051836 | H159: 0.03023758099 | I159: 1071 | J159: 228 | K159: 36 | L159: 19 | M159: 23 | N159: 12 | O159: 387 | P159: 0 | Q159: 700 | R159: 0 | S159: 300 | T159: 2 | U159: 0
A160: Q81 | B160: RTP | C160: SURREY AND SUSSEX HEALTHCARE NHS TRUST | D160: 1045 | E160: 4944 | F160: 0.2113673139 | G160: 0.9607655502 | H160: 0.01435406699 | I160: 825 | J160: 179 | K160: 21 | L160: 5 | M160: 10 | N160: 5 | O160: 0 | P160: 0 | Q160: 900 | R160: 0 | S160: 0 | T160: 145 | U160: 0
A161: Q81 | B161: RYR | C161: WESTERN SUSSEX HOSPITALS NHS FOUNDATION TRUST | D161: 1314 | E161: 5477 | F161: 0.2399123608 | G161: 0.9398782344 | H161: 0.01369863014 | I161: 1026 | J161: 209 | K161: 33 | L161: 7 | M161: 11 | N161: 28 | O161: 0 | P161: 232 | Q161: 1060 | R161: 0 | S161: 17 | T161: 5 | U161: 0
A162: Q82 | B162: RXQ | C162: BUCKINGHAMSHIRE HEALTHCARE NHS TRUST | D162: 695 | E162: 6259 | F162: 0.1110401023 | G162: 0.9856115108 | H162: 0.005755395683 | I162: 597 | J162: 88 | K162: 4 | L162: 0 | M162: 4 | N162: 2 | O162: 0 | P162: 0 | Q162: 695 | R162: 0 | S162: 0 | T162: 0 | U162: 0
A163: Q82 | B163: RTE | C163: GLOUCESTERSHIRE HOSPITALS NHS FOUNDATION TRUST | D163: 1620 | E163: 9099 | F163: 0.178041543 | G163: 0.95 | H163: 0.008024691358 | I163: 1285 | J163: 254 | K163: 31 | L163: 7 | M163: 6 | N163: 37 | O163: 0 | P163: 0 | Q163: 1611 | R163: 0 | S163: 0 | T163: 9 | U163: 0
A164: Q82 | B164: RN3 | C164: GREAT WESTERN HOSPITALS NHS FOUNDATION TRUST | D164: 658 | E164: 3564 | F164: 0.184624018 | G164: 0.962006079 | H164: 0.006079027356 | I164: 507 | J164: 126 | K164: 6 | L164: 2 | M164: 2 | N164: 15 | O164: 0 | P164: 0 | Q164: 656 | R164: 0 | S164: 0 | T164: 2 | U164: 0
A165: Q82 | B165: RTH | C165: OXFORD UNIVERSITY HOSPITALS NHS FOUNDATION TRUST | D165: 2043 | E165: 13193 | F165: 0.1548548473 | G165: 0.9598629466 | H165: 0.01174743025 | I165: 1640 | J165: 321 | K165: 40 | L165: 12 | M165: 12 | N165: 18 | O165: 639 | P165: 0 | Q165: 1092 | R165: 0 | S165: 306 | T165: 6 | U165: 0
A166: Q82 | B166: RHW | C166: ROYAL BERKSHIRE NHS FOUNDATION TRUST | D166: 1997 | E166: 5964 | F166: 0.3348423877 | G166: 0.9889834752 | H166: 0.005508262394 | I166: 1680 | J166: 295 | K166: 8 | L166: 5 | M166: 6 | N166: 3 | O166: 0 | P166: 0 | Q166: 1996 | R166: 0 | S166: 0 | T166: 1 | U166: 0
A167: Q82 | B167: RD1 | C167: ROYAL UNITED HOSPITALS BATH NHS FOUNDATION TRUST | D167: 1001 | E167: 4911 | F167: 0.2038281409 | G167: 0.97002997 | H167: 0.008991008991 | I167: 834 | J167: 137 | K167: 11 | L167: 5 | M167: 4 | N167: 10 | O167: 0 | P167: 0 | Q167: 979 | R167: 0 | S167: 0 | T167: 1 | U167: 21
A168: Q82 | B168: RNZ | C168: SALISBURY NHS FOUNDATION TRUST | D168: 913 | E168: 3970 | F168: 0.2299748111 | G168: 0.9726177437 | H168: 0.006571741512 | I168: 765 | J168: 123 | K168: 13 | L168: 4 | M168: 2 | N168: 6 | O168: 0 | P168: 0 | Q168: 0 | R168: 904 | S168: 0 | T168: 9 | U168: 0
A169: IS1 | B169: NYW04 | C169: ASPEN - CLAREMONT HOSPITAL | D169: 45 | E169: 165 | F169: 0.2727272727 | G169: 0.9333333333 | H169: 0.02222222222 | I169: 41 | J169: 1 | K169: 0 | L169: 1 | M169: 0 | N169: 2 | O169: 0 | P169: 0 | Q169: 0 | R169: 45 | S169: 0 | T169: 0 | U169: 0
A170: IS1 | B170: NYW03 | C170: ASPEN - HIGHGATE HOSPITAL | D170: 2 | E170: 17 | F170: 0.1176470588 | G170: * | H170: * | I170: * | J170: * | K170: * | L170: * | M170: * | N170: * | O170: * | P170: * | Q170: * | R170: * | S170: * | T170: * | U170: *
A171: IS1 | B171: NYW01 | C171: ASPEN - HOLLY HOUSE HOSPITAL | D171: 18 | E171: 72 | F171: 0.25 | G171: 1 | H171: 0 | I171: 16 | J171: 2 | K171: 0 | L171: 0 | M171: 0 | N171: 0 | O171: 0 | P171: 0 | Q171: 0 | R171: 0 | S171: 0 | T171: 0 | U171: 18
A172: IS1 | B172: NYW02 | C172: ASPEN - PARKSIDE HOSPITAL | D172: 8 | E172: 8 | F172: 1 | G172: 1 | H172: 0 | I172: 6 | J172: 2 | K172: 0 | L172: 0 | M172: 0 | N172: 0 | O172: 0 | P172: 0 | Q172: 0 | R172: 8 | S172: 0 | T172: 0 | U172: 0
A173: IS1 | B173: NWF01 | C173: BENENDEN HOSPITAL | D173: 54 | E173: 223 | F173: 0.2421524664 | G173: 1 | H173: 0 | I173: 52 | J173: 2 | K173: 0 | L173: 0 | M173: 0 | N173: 0 | O173: 0 | P173: 0 | Q173: 54 | R173: 0 | S173: 0 | T173: 0 | U173: 0
A174: IS1 | B174: NT4 | C174: BMI HEALTHCARE | D174: 2948 | E174: 9803 | F174: 0.3007242681 | G174: 0.9925373134 | H174: 0.002713704206 | I174: 2645 | J174: 281 | K174: 14 | L174: 3 | M174: 5 | N174: 0 | O174: 0 | P174: 0 | Q174: 2948 | R174: 0 | S174: 0 | T174: 0 | U174: 0
A175: IS1 | B175: NTP | C175: CARE UK | D175: 2870 | E175: 6236 | F175: 0.4602309173 | G175: 0.9770034843 | H175: 0.01463414634 | I175: 2566 | J175: 238 | K175: 20 | L175: 3 | M175: 39 | N175: 4 | O175: 0 | P175: 2870 | Q175: 0 | R175: 0 | S175: 0 | T175: 0 | U175: 0
A176: IS1 | B176: NV3 | C176: CIRCLE | D176: 1619 | E176: 3030 | F176: 0.5343234323 | G176: 0.9660284126 | H176: 0.001235330451 | I176: 1439 | J176: 125 | K176: 8 | L176: 0 | M176: 2 | N176: 45 | O176: 0 | P176: 802 | Q176: 817 | R176: 0 | S176: 0 | T176: 0 | U176: 0
A177: IS1 | B177: NN8 | C177: EAST KENT MEDICAL SERVICES LTD | D177: 40 | E177: 128 | F177: 0.3125 | G177: 1 | H177: 0 | I177: 37 | J177: 3 | K177: 0 | L177: 0 | M177: 0 | N177: 0 | O177: 0 | P177: 0 | Q177: 40 | R177: 0 | S177: 0 | T177: 0 | U177: 0
A178: IS1 | B178: NVG | C178: FAIRFIELD HOSPITAL | D178: 229 | E178: 356 | F178: 0.643258427 | G178: 0.9912663755 | H178: 0 | I178: 216 | J178: 11 | K178: 1 | L178: 0 | M178: 0 | N178: 1 | O178: 0 | P178: 0 | Q178: 229 | R178: 0 | S178: 0 | T178: 0 | U178: 0
A179: IS1 | B179: AHH | C179: FOSCOTE COURT (BANBURY) TRUST LTD | D179: 33 | E179: 54 | F179: 0.6111111111 | G179: 1 | H179: 0 | I179: 32 | J179: 1 | K179: 0 | L179: 0 | M179: 0 | N179: 0 | O179: 0 | P179: 0 | Q179: 33 | R179: 0 | S179: 0 | T179: 0 | U179: 0
A180: IS1 | B180: ADP | C180: KENT INSTITUTE OF MEDICINE AND SURGERY | D180: 1 | E180: 1 | F180: 1 | G180: * | H180: * | I180: * | J180: * | K180: * | L180: * | M180: * | N180: * | O180: * | P180: * | Q180: * | R180: * | S180: * | T180: * | U180: *
A181: IS1 | B181: NT2 | C181: NUFFIELD HEALTH | D181: 1255 | E181: 3702 | F181: 0.3390059427 | G181: 0.993625498 | H181: 0.001593625498 | I181: 1148 | J181: 99 | K181: 6 | L181: 1 | M181: 1 | N181: 0 | O181: 0 | P181: 0 | Q181: 1208 | R181: 0 | S181: 47 | T181: 0 | U181: 0
A182: IS1 | B182: NQM01 | C182: ORTHOPAEDICS & SPINE SPECIALIST HOSPITAL SITE | D182: 51 | E182: 54 | F182: 0.9444444444 | G182: 1 | H182: 0 | I182: 48 | J182: 3 | K182: 0 | L182: 0 | M182: 0 | N182: 0 | O182: 0 | P182: 0 | Q182: 51 | R182: 0 | S182: 0 | T182: 0 | U182: 0
A183: IS1 | B183: NAM | C183: PROBUS SURGERY LIMITED | D183: 126 | E183: 181 | F183: 0.6961325967 | G183: 1 | H183: 0 | I183: 103 | J183: 23 | K183: 0 | L183: 0 | M183: 0 | N183: 0 | O183: 0 | P183: 0 | Q183: 126 | R183: 0 | S183: 0 | T183: 0 | U183: 0
A184: IS1 | B184: NVC | C184: RAMSAY HEALTHCARE UK OPERATIONS LIMITED | D184: 4379 | E184: 12748 | F184: 0.3435048635 | G184: 0.9947476593 | H184: 0.001826901119 | I184: 4160 | J184: 196 | K184: 9 | L184: 3 | M184: 5 | N184: 6 | O184: 0 | P184: 0 | Q184: 4368 | R184: 0 | S184: 0 | T184: 11 | U184: 0
A185: IS1 | B185: NT3 | C185: SPIRE HEALTHCARE | D185: 2236 | E185: 6681 | F185: 0.3346804371 | G185: 0.9861359571 | H185: 0.00626118068 | I185: 2022 | J185: 183 | K185: 10 | L185: 5 | M185: 9 | N185: 7 | O185: 0 | P185: 0 | Q185: 2236 | R185: 0 | S185: 0 | T185: 0 | U185: 0
A186: IS1 | B186: NXM01 | C186: THE HORDER CENTRE - ST JOHNS ROAD | D186: 90 | E186: 179 | F186: 0.5027932961 | G186: 0.9888888889 | H186: 0 | I186: 83 | J186: 6 | K186: 1 | L186: 0 | M186: 0 | N186: 0 | O186: 0 | P186: 0 | Q186: 90 | R186: 0 | S186: 0 | T186: 0 | U186: 0

Sheet Sites
F8: −
A10: Region (Geo) Code | B10: Trust Code | C10: Trust Name | D10: Site Code | E10: Site Name | F10: Total Responses | G10: Total Eligible | H10: Response Rate | I10: Percentage Recommended | J10: Percentage Not Recommended | K10: Breakdown of Responses
K11: Extremely Likely | L11: Likely | M11: Neither | N11: Unlikely | O11: Extremely Unlikely | P11: Don't Know
E12: England (including Independent Sector Providers) | F12: 223848 | G12: 890562 | H12: 0.2513558854 | I12: 0.9557601587 | J12: 0.01521568207 | K12: 178476 | L12: 35469 | M12: 4172 | N12: 1613 | O12: 1793 | P12: 2325
E13: England (excluding Independent Sector Providers) | F13: 207844 | G13: 846924 | H13: 0.2454104501 | I13: 0.9533688728 | J13: 0.01601682031 | K13: 163859 | L13: 34293 | M13: 4103 | N13: 1597 | O13: 1732 | P13: 2260
E14: Selection (excluding suppressed data) | F14: =SUBTOTAL(9,F15:F1000) -> 223848 | G14: =SUBTOTAL(9,G15:G1000) -> 890562 | H14: =IFERROR(F14/G14, "NA") -> 0.2513558854 | I14: =IFERROR((K14+L14)/SUM(K14:P14), "-") -> 0.9557961229 | J14: =IFERROR((N14+O14)/SUM(K14:P14), "-") -> 0.01517115125 | K14: =SUBTOTAL(9,K15:K1000) -> 175958 | L14: 34969 | M14: 4105 | N14: 1584 | O14: 1764 | P14: 2302
A15: Q70 | B15: RBD | C15: DORSET COUNTY HOSPITAL NHS FOUNDATION TRUST | D15: RBD01 | E15: Dorset County Hospital - RBD01 | F15: 570 | G15: 1328 | H15: 0.4292168675 | I15: 0.9754385965 | J15: 0.00350877193 | K15: 495 | L15: 61 | M15: 6 | N15: 1 | O15: 1 | P15: 6
A16: Q70 | B16: RN5 | C16: HAMPSHIRE HOSPITALS NHS FOUNDATION TRUST | D16: RN542 | E16: Andover War Memorial Hospital - RN542 | F16: 88 | G16: 220 | H16: 0.4 | I16: 0.9545454545 | J16: 0.01136363636 | K16: 71 | L16: 13 | M16: 1 | N16: 1 | O16: 0 | P16: 2
A17: Q70 | B17: RN5 | C17: HAMPSHIRE HOSPITALS NHS FOUNDATION TRUST | D17: RN506 | E17: Basingstoke and North Hampshire Hospital - RN506 | F17: 984 | G17: 4243 | H17: 0.2319113835 | I17: 0.9512195122 | J17: 0.02134146341 | K17: 799 | L17: 137 | M17: 19 | N17: 12 | O17: 9 | P17: 8
A18: Q70 | B18: RN5 | C18: HAMPSHIRE HOSPITALS NHS FOUNDATION TRUST | D18: RN541 | E18: Royal Hampshire County Hospital - RN541 | F18: 700 | G18: 2871 | H18: 0.2438174852 | I18: 0.94 | J18: 0.01428571429 | K18: 530 | L18: 128 | M18: 24 | N18: 4 | O18: 6 | P18: 8
A19: Q70 | B19: R1F | C19: ISLE OF WIGHT NHS TRUST | D19: R1F01 | E19: St Mary's Hospital - R1F01 | F19: 273 | G19: 1238 | H19: 0.2205169628 | I19: 0.9413919414 | J19: 0.01465201465 | K19: 197 | L19: 60 | M19: 8 | N19: 1 | O19: 3 | P19: 4
A20: Q70 | B20: RD3 | C20: POOLE HOSPITAL NHS FOUNDATION TRUST | D20: RD304 | E20: Poole General Hospital NHS Trust HQ - RD304 | F20: 880 | G20: 2956 | H20: 0.297699594 | I20: 0.9863636364 | J20: 0.001136363636 | K20: 781 | L20: 87 | M20: 6 | N20: 1 | O20: 0 | P20: 5
A21: Q70 | B21: RHU | C21: PORTSMOUTH HOSPITALS NHS TRUST | D21: RHU10 | E21: Gosport War Memorial Hospital - RHU10 | F21: 14 | G21: 14 | H21: 1 | I21: 0.9285714286 | J21: 0 | K21: 10 | L21: 3 | M21: 1 | N21: 0 | O21: 0 | P21: 0
A22: Q70 | B22: RHU | C22: PORTSMOUTH HOSPITALS NHS TRUST | D22: RHU04 | E22: Petersfield Community Hospital - RHU04 | F22: 5 | G22: 13 | H22: 0.3846153846 | I22: 1 | J22: 0 | K22: 5 | L22: 0 | M22: 0 | N22: 0 | O22: 0 | P22: 0
A23: Q70 | B23: RHU | C23: PORTSMOUTH HOSPITALS NHS TRUST | D23: RHU03 | E23: Queen Alexandra Hospital - RHU03 | F23: 1944 | G23: 8134 | H23: 0.2389968035 | I23: 0.9583333333 | J23: 0.007201646091 | K23: 1592 | L23: 271 | M23: 31 | N23: 6 | O23: 8 | P23: 36
A24: Q70 | B24: RDZ | C24: THE ROYAL BOURNEMOUTH AND CHRISTCHURCH HOSPITALS NHS FOUNDATION TRUST | D24: RDZ20 | E24: Royal Bournemouth General Hospital - RDZ20 | F24: 1318 | G24: 7303 | H24: 0.1804737779 | I24: 0.9833080425 | J24: 0.003793626707 | K24: 1086 | L24: 210 | M24: 15 | N24: 1 | O24: 4 | P24: 2
A25: Q70 | B25: RHM | C25: UNIVERSITY HOSPITAL SOUTHAMPTON NHS FOUNDATION TRUST | D25: RHM04 | E25: Countess Mountbatten House - RHM04 | F25: 9 | G25: 13 | H25: 0.6923076923 | I25: 1 | J25: 0 | K25: 8 | L25: 1 | M25: 0 | N25: 0 | O25: 0 | P25: 0
A26: Q70 | B26: RHM | C26: UNIVERSITY HOSPITAL SOUTHAMPTON NHS FOUNDATION TRUST | D26: RHM12 | E26: Princess Anne Hospital - RHM12 | F26: 68 | G26: 427 | H26: 0.1592505855 | I26: 0.9705882353 | J26: 0.01470588235 | K26: 52 | L26: 14 | M26: 1 | N26: 1 | O26: 0 | P26: 0
A27: Q70 | B27: RHM | C27: UNIVERSITY HOSPITAL SOUTHAMPTON NHS FOUNDATION TRUST | D27: RHM01 | E27: Southampton General Hospital - RHM01 | F27: 1837 | G27: 9412 | H27: 0.1951763706 | I27: 0.9580838323 | J27: 0.01415351116 | K27: 1451 | L27: 309 | M27: 34 | N27: 16 | O27: 10 | P27: 17
A28: Q71 | B28: RF4 | C28: BARKING, HAVERING AND REDBRIDGE UNIVERSITY HOSPITALS NHS TRUST | D28: RF4DG | E28: king George Hospital - RF4DG | F28: 441 | G28: 2663 | H28: 0.1656027037 | I28: 0.9659863946 | J28: 0.01814058957 | K28: 314 | L28: 112 | M28: 6 | N28: 4 | O28: 4 | P28: 1
A29: Q71 | B29: RF4 | C29: BARKING, HAVERING AND REDBRIDGE UNIVERSITY HOSPITALS NHS TRUST | D29: RF4QH | E29: Queen's Hospital - RF4QH | F29: 1929 | G29: 5073 | H29: 0.3802483737 | I29: 0.9528252981 | J29: 0.01969932608 | K29: 1323 | L29: 515 | M29: 38 | N29: 15 | O29: 23 | P29: 15
A30: Q71 | B30: R1H | C30: BARTS HEALTH NHS TRUST | D30: R1H13 | E30: Mile End Hospital - R1H13 | F30: 19 | G30: 31 | H30: 0.6129032258 | I30: 0.9473684211 | J30: 0 | K30: 14 | L30: 4 | M30: 1 | N30: 0 | O30: 0 | P30: 0
A31: Q71 | B31: R1H | C31: BARTS HEALTH NHS TRUST | D31: R1HNH | E31: Newham General Hospital - R1HNH | F31: 334 | G31: 2646 | H31: 0.1262282691 | I31: 0.9341317365 | J31: 0.01796407186 | K31: 239 | L31: 73 | M31: 12 | N31: 3 | O31: 3 | P31: 4
A32: Q71 | B32: R1H | C32: BARTS HEALTH NHS TRUST | D32: R1HM0 | E32: St Bartholomew's Hospital - R1HM0 | F32: 225 | G32: 2990 | H32: 0.07525083612 | I32: 0.9733333333 | J32: 0 | K32: 186 | L32: 33 | M32: 3 | N32: 0 | O32: 0 | P32: 3
A33: Q71 | B33: R1H | C33: BARTS HEALTH NHS TRUST | D33: R1H12 | E33: The Royal London Hospital - R1H12 | F33: 664 | G33: 4111 | H33: 0.1615178789 | I33: 0.9503012048 | J33: 0.01656626506 | K33: 491 | L33: 140 | M33: 18 | N33: 7 | O33: 4 | P33: 4
A34: Q71 | B34: R1H | C34: BARTS HEALTH NHS TRUST | D34: R1HKH | E34: Whipps Cross University Hospital - R1HKH | F34: 360 | G34: 3266 | H34: 0.1102265769 | I34: 0.9388888889 | J34: 0.01944444444 | K34: 248 | L34: 90 | M34: 12 | N34: 3 | O34: 4 | P34: 3
A35: Q71 | B35: RQM | C35: CHELSEA AND WESTMINSTER HOSPITAL NHS FOUNDATION TRUST | D35: RQM01 | E35: Chelsea and Westminster Hospital - RQM01 | F35: 1106 | G35: 4327 | H35: 0.2556043448 | I35: 0.9032549729 | J35: 0.05244122966 | K35: 824 | L35: 175 | M35: 38 | N35: 29 | O35: 29 | P35: 11
A36: Q71 | B36: RQM | C36: CHELSEA AND WESTMINSTER HOSPITAL NHS FOUNDATION TRUST | D36: RQM91 | E36: West Middlesex University Hospital - RQM91 | F36: 915 | G36: 3558 | H36: 0.2571669477 | I36: 0.9016393443 | J36: 0.06010928962 | K36: 648 | L36: 177 | M36: 31 | N36: 27 | O36: 28 | P36: 4
A37: Q71 | B37: RJ6 | C37: CROYDON HEALTH SERVICES NHS TRUST | D37: RJ611 | E37: Mayday University Hospital - RJ611 | F37: 820 | G37: 3048 | H37: 0.2690288714 | I37: 0.9195121951 | J37: 0.03414634146 | K37: 548 | L37: 206 | M37: 31 | N37: 18 | O37: 10 | P37: 7
A38: Q71 | B38: RVR | C38: EPSOM AND ST HELIER UNIVERSITY HOSPITALS NHS TRUST | D38: RVR50 | E38: Epsom Hospital - RVR50 | F38: 548 | G38: 2457 | H38: 0.223036223 | I38: 0.9689781022 | J38: 0.003649635036 | K38: 456 | L38: 75 | M38: 11 | N38: 1 | O38: 1 | P38: 4
A39: Q71 | B39: RVR | C39: EPSOM AND ST HELIER UNIVERSITY HOSPITALS NHS TRUST | D39: RVRTC | E39: South West London Elective Orthopaedic Centre - RVRTC | F39: 294 | G39: 452 | H39: 0.6504424779 | I39: 0.9965986395 | J39: 0.003401360544 | K39: 266 | L39: 27 | M39: 0 | N39: 0 | O39: 1 | P39: 0
A40: Q71 | B40: RVR | C40: EPSOM AND ST HELIER UNIVERSITY HOSPITALS NHS TRUST | D40: RVR05 | E40: St Helier Hospital - RVR05 | F40: 682 | G40: 3610 | H40: 0.1889196676 | I40: 0.9560117302 | J40: 0.01612903226 | K40: 523 | L40: 129 | M40: 18 | N40: 6 | O40: 5 | P40: 1
A41: Q71 | B41: RP4 | C41: GREAT ORMOND STREET HOSPITAL FOR CHILDREN NHS FOUNDATION TRUST | D41: RP401 | E41: Great Ormond Street Hospital Central London Site - RP401 | F41: 402 | G41: 3046 | H41: 0.1319763624 | I41: 0.9850746269 | J41: 0.007462686567 | K41: 351 | L41: 45 | M41: 3 | N41: 1 | O41: 2 | P41: 0
A42: Q71 | B42: RJ1 | C42: GUY'S AND ST THOMAS' NHS FOUNDATION TRUST | D42: RJ100 | E42: Guy's and St Thomas' NHS Trust - RJ100 | F42: 4 | G42: 9 | H42: 0.4444444444 | I42: * | J42: * | K42: * | L42: * | M42: * | N42: * | O42: * | P42: *
A43: Q71 | B43: RJ1 | C43: GUY'S AND ST THOMAS' NHS FOUNDATION TRUST | D43: RJ121 | E43: Guy's Hospital - RJ121 | F43: 1103 | G43: 3403 | H43: 0.3241257714 | I43: 0.9610154125 | J43: 0.01450589302 | K43: * | L43: * | M43: * | N43: * | O43: * | P43: *
A44: Q71 | B44: RJ1 | C44: GUY'S AND ST THOMAS' NHS FOUNDATION TRUST | D44: RJ122 | E44: St Thomas' Hospital - RJ122 | F44: 1597 | G44: 5738 | H44: 0.2783199721 | I44: 0.9455228554 | J44: 0.02066374452 | K44: 1203 | L44: 307 | M44: 41 | N44: 16 | O44: 17 | P44: 13
A45: Q71 | B45: RQX | C45: HOMERTON UNIVERSITY HOSPITAL NHS FOUNDATION TRUST | D45: RQXM1 | E45: Homerton University Hospital - RQXM1 | F45: 488 | G45: 2565 | H45: 0.1902534113 | I45: 0.8606557377 | J45: 0.07786885246 | K45: 246 | L45: 174 | M45: 22 | N45: 25 | O45: 13 | P45: 8
A46: Q71 | B46: RYJ | C46: IMPERIAL COLLEGE HEALTHCARE NHS TRUST | D46: RYJ02 | E46: Charing Cross Hospital - RYJ02 | F46: 831 | G46: 2789 | H46: 0.2979562567 | I46: 0.9554753309 | J46: 0.01323706378 | K46: 597 | L46: 197 | M46: 20 | N46: 6 | O46: 5 | P46: 6
A47: Q71 | B47: RYJ | C47: IMPERIAL COLLEGE HEALTHCARE NHS TRUST | D47: RYJ03 | E47: Hammersmith Hospital - RYJ03 | F47: 533 | G47: 1516 | H47: 0.3515831135 | I47: 0.9681050657 | J47: 0.01876172608 | K47: 407 | L47: 109 | M47: 5 | N47: 6 | O47: 4 | P47: 2
A48: Q71 | B48: RYJ | C48: IMPERIAL COLLEGE HEALTHCARE NHS TRUST | D48: RYJ01 | E48: St Mary's Hospital (HQ) - RYJ01 | F48: 614 | G48: 2594 | H48: 0.2367000771 | I48: 0.9543973941 | J48: 0.02280130293 | K48: 454 | L48: 132 | M48: 11 | N48: 9 | O48: 5 | P48: 3
A49: Q71 | B49: RYJ | C49: IMPERIAL COLLEGE HEALTHCARE NHS TRUST | D49: RYJ07 | E49: Western Eye Hospital - RYJ07 | F49: 27 | G49: 80 | H49: 0.3375 | I49: 1 | J49: 0 | K49: 24 | L49: 3 | M49: 0 | N49: 0 | O49: 0 | P49: 0
A50: Q71 | B50: RJZ | C50: KING'S COLLEGE HOSPITAL NHS FOUNDATION TRUST | D50: RJZ01 | E50: King's College Hospital (Denmark Hill) - RJZ01 | F50: 879 | G50: 6832 | H50: 0.1286592506 | I50: 0.9499431172 | J50: 0.0204778157 | K50: 667 | L50: 168 | M50: 18 | N50: 8 | O50: 10 | P50: 8
A51: Q71 | B51: RJZ | C51: KING'S COLLEGE HOSPITAL NHS FOUNDATION TRUST | D51: RJZ30 | E51: Princess Royal University Hospital - RJZ30 | F51: 504 | G51: 3613 | H51: 0.1394962635 | I51: 0.9424603175 | J51: 0.02380952381 | K51: 337 | L51: 138 | M51: 12 | N51: 4 | O51: 8 | P51: 5
A52: Q71 | B52: RAX | C52: KINGSTON HOSPITAL NHS FOUNDATION TRUST | D52: RAX01 | E52: Kingston Hospital - RAX01 | F52: 709 | G52: 3401 | H52: 0.2084680976 | I52: 0.9605077574 | J52: 0.01833568406 | K52: 537 | L52: 144 | M52: 15 | N52: 8 | O52: 5 | P52: 0
A53: Q71 | B53: RJ2 | C53: LEWISHAM AND GREENWICH NHS TRUST | D53: RJ231 | E53: Queen Elizabeth Hospital - RJ231 | F53: 628 | G53: 2171 | H53: 0.2892676186 | I53: 0.9219745223 | J53: 0.02547770701 | K53: 407 | L53: 172 | M53: 20 | N53: 9 | O53: 7 | P53: 13
A54: Q71 | B54: RJ2 | C54: LEWISHAM AND GREENWICH NHS TRUST | D54: RJ230 | E54: Queen Marys Hospital - RJ230 | F54: 6 | G54: 250 | H54: 0.024 | I54: 1 | J54: 0 | K54: 6 | L54: 0 | M54: 0 | N54: 0 | O54: 0 | P54: 0
A55: Q71 | B55: RJ2 | C55: LEWISHAM AND GREENWICH NHS TRUST | D55: RJ224 | E55: University Hospital Lewisham - RJ224 | F55: 807 | G55: 2188 | H55: 0.3688299817 | I55: 0.9343246592 | J55: 0.02230483271 | K55: 557 | L55: 197 | M55: 20 | N55: 12 | O55: 6 | P55: 15
A56: Q71 | B56: R1K | C56: LONDON NORTH WEST HEALTHCARE NHS TRUST | D56: R1K02 | E56: Central Middlesex Hospital - R1K02 | F56: 154 | G56: 847 | H56: 0.1818181818 | I56: 0.9545454545 | J56: 0.01298701299 | K56: 117 | L56: 30 | M56: 4 | N56: 2 | O56: 0 | P56: 1
A57: Q71 | B57: R1K | C57: LONDON NORTH WEST HEALTHCARE NHS TRUST | D57: R1K04 | E57: Ealing Hospital - R1K04 | F57: 385 | G57: 1284 | H57: 0.2998442368 | I57: 0.9688311688 | J57: 0.007792207792 | K57: 255 | L57: 118 | M57: 7 | N57: 3 | O57: 0 | P57: 2
A58: Q71 | B58: R1K | C58: LONDON NORTH WEST HEALTHCARE NHS TRUST | D58: R1K01 | E58: Northwick Park Hospital - R1K01 | F58: 793 | G58: 3060 | H58: 0.2591503268 | I58: 0.9709962169 | J58: 0.01008827238 | K58: 626 | L58: 144 | M58: 12 | N58: 2 | O58: 6 | P58: 3
A59: Q71 | B59: RP6 | C59: MOORFIELDS EYE HOSPITAL NHS FOUNDATION TRUST | D59: RP627 | E59: Moorfields at Darent Valley Hospital - RP627 | F59: 51 | G59: 86 | H59: 0.5930232558 | I59: 1 | J59: 0 | K59: 47 | L59: 4 | M59: 0 | N59: 0 | O59: 0 | P59: 0
A60: Q71 | B60: RP6 | C60: MOORFIELDS EYE HOSPITAL NHS FOUNDATION TRUST | D60: RP610 | E60: Moorfields At Ealing Hospital - RP610 | F60: 173 | G60: 212 | H60: 0.8160377358 | I60: 0.9884393064 | J60: 0.005780346821 | K60: 148 | L60: 23 | M60: 0 | N60: 0 | O60: 1 | P60: 1
A61: Q71 | B61: RP6 | C61: MOORFIELDS EYE HOSPITAL NHS FOUNDATION TRUST | D61: RP608 | E61: Moorfields At Mayday University Hospital - RP608 | F61: 87 | G61: 212 | H61: 0.4103773585 | I61: 1 | J61: 0 | K61: 69 | L61: 18 | M61: 0 | N61: 0 | O61: 0 | P61: 0
A62: Q71 | B62: RP6 | C62: MOORFIELDS EYE HOSPITAL NHS FOUNDATION TRUST | D62: RP607 | E62: Moorfields At Mile End Hospital - RP607 | F62: 74 | G62: 101 | H62: 0.7326732673 | I62: 1 | J62: 0 | K62: 69 | L62: 5 | M62: 0 | N62: 0 | O62: 0 | P62: 0
A63: Q71 | B63: RP6 | C63: MOORFIELDS EYE HOSPITAL NHS FOUNDATION TRUST | D63: RP606 | E63: Moorfields At Northwick Park Hospital - RP606 | F63: 178 | G63: 212 | H63: 0.8396226415 | I63: 0.9943820225 | J63: 0 | K63: 162 | L63: 15 | M63: 0 | N63: 0 | O63: 0 | P63: 1
A64: Q71 | B64: RP6 | C64: MOORFIELDS EYE HOSPITAL NHS FOUNDATION TRUST | D64: RP605 | E64: Moorfields At Potters Bar Hospital - RP605 | F64: 65 | G64: 101 | H64: 0.6435643564 | I64: 0.9692307692 | J64: 0.01538461538 | K64: 61 | L64: 2 | M64: 0 | N64: 0 | O64: 1 | P64: 1
A65: Q71 | B65: RP6 | C65: MOORFIELDS EYE HOSPITAL NHS FOUNDATION TRUST | D65: RP620 | E65: Moorfields At Queen Mary Hospital (Roehampton) - RP620 | F65: 13 | G65: 28 | H65: 0.4642857143 | I65: 1 | J65: 0 | K65: 11 | L65: 2 | M65: 0 | N65: 0 | O65: 0 | P65: 0
A66: Q71 | B66: RP6 | C66: MOORFIELDS EYE HOSPITAL NHS FOUNDATION TRUST | D66: RP603 | E66: Moorfields At St Ann's Hospital - RP603 | F66: 169 | G66: 293 | H66: 0.5767918089 | I66: 0.9940828402 | J66: 0.005917159763 | K66: 145 | L66: 23 | M66: 0 | N66: 1 | O66: 0 | P66: 0
A67: Q71 | B67: RP6 | C67: MOORFIELDS EYE HOSPITAL NHS FOUNDATION TRUST | D67: RP604 | E67: Moorfields At St George's Hospital - RP604 | F67: 0 | G67: 5 | H67: 0 | I67: NA | J67: NA | K67: 0 | L67: 0 | M67: 0 | N67: 0 | O67: 0 | P67: 0
A68: Q71 | B68: RP6 | C68: MOORFIELDS EYE HOSPITAL NHS FOUNDATION TRUST | D68: RP630 | E68: Moorfields At Whittington Hospital - RP630 | F68: 0 | G68: 123 | H68: 0 | I68: NA | J68: NA | K68: 0 | L68: 0 | M68: 0 | N68: 0 | O68: 0 | P68: 0
A69: Q71 | B69: RP6 | C69: MOORFIELDS EYE HOSPITAL NHS FOUNDATION TRUST | D69: RP601 | E69: Moorfields Eye Hospital (City Road) - RP601 | F69: 816 | G69: 1453 | H69: 0.5615966965 | I69: 0.9865196078 | J69: 0.008578431373 | K69: 709 | L69: 96 | M69: 4 | N69: 4 | O69: 3 | P69: 0
A70: Q71 | B70: RAP | C70: NORTH MIDDLESEX UNIVERSITY HOSPITAL NHS TRUST | D70: RAPNM | E70: North Middlesex Hospital - RAPNM | F70: 718 | G70: 2243 | H70: 0.3201069996 | I70: 0.9568245125 | J70: 0.02646239554 | K70: 473 | L70: 214 | M70: 10 | N70: 14 | O70: 5 | P70: 2
A71: Q71 | B71: RT3 | C71: ROYAL BROMPTON & HAREFIELD NHS FOUNDATION TRUST | D71: RT301 | E71: Harefield Hospital - RT301 | F71: 295 | G71: 891 | H71: 0.3310886644 | I71: 0.986440678 | J71: 0.01016949153 | K71: 264 | L71: 27 | M71: 1 | N71: 2 | O71: 1 | P71: 0
A72: Q71 | B72: RT3 | C72: ROYAL BROMPTON & HAREFIELD NHS FOUNDATION TRUST | D72: RT302 | E72: Royal Brompton Hospital - RT302 | F72: 454 | G72: 1514 | H72: 0.2998678996 | I72: 0.9691629956 | J72: 0.01762114537 | K72: 382 | L72: 58 | M72: 4 | N72: 2 | O72: 6 | P72: 2
A73: Q71 | B73: RAL | C73: ROYAL FREE LONDON NHS FOUNDATION TRUST | D73: RAL26 | E73: Barnet Hospital - RAL26 | F73: 433 | G73: 1651 | H73: 0.2622652938 | I73: 0.8637413395 | J73: 0.06466512702 | K73: 248 | L73: 126 | M73: 31 | N73: 19 | O73: 9 | P73: 0
A74: Q71 | B74: RAL | C74: ROYAL FREE LONDON NHS FOUNDATION TRUST | D74: RALC7 | E74: Chase Farm Hospital - RALC7 | F74: 147 | G74: 535 | H74: 0.2747663551 | I74: 0.9387755102 | J74: 0.02721088435 | K74: 103 | L74: 35 | M74: 5 | N74: 3 | O74: 1 | P74: 0
A75: Q71 | B75: RAL | C75: ROYAL FREE LONDON NHS FOUNDATION TRUST | D75: RAL01 | E75: Royal Free Hospital - RAL01 | F75: 720 | G75: 1846 | H75: 0.3900325027 | I75: 0.8888888889 | J75: 0.04444444444 | K75: 391 | L75: 249 | M75: 48 | N75: 22 | O75: 10 | P75: 0
A76: Q71 | B76: RAN | C76: ROYAL NATIONAL ORTHOPAEDIC HOSPITAL NHS TRUST | D76: RAN01 | E76: The Royal National Orthopaedic Hospital (Stanmore) - RAN01 | F76: 445 | G76: 827 | H76: 0.53808948 | I76: 0.9460674157 | J76: 0.01573033708 | K76: 346 | L76: 75 | M76: 14 | N76: 3 | O76: 4 | P76: 3
A77: Q71 | B77: RJ7 | C77: ST GEORGE'S UNIVERSITY HOSPITALS NHS FOUNDATION TRUST | D77: RJ731 | E77: Queen Marys Hospital (Roehampton) - RJ731 | F77: 31 | G77: 51 | H77: 0.6078431373 | I77: 0.9032258065 | J77: 0.06451612903 | K77: 22 | L77: 6 | M77: 1 | N77: 2 | O77: 0 | P77: 0
A78: Q71 | B78: RJ7 | C78: ST GEORGE'S UNIVERSITY HOSPITALS NHS FOUNDATION TRUST | D78: RJ701 | E78: St George's Hospital (Tooting) - RJ701 | F78: 1469 | G78: 7162 | H78: 0.2051103044 | I78: 0.9176310415 | J78: 0.01497617427 | K78: 1032 | L78: 316 | M78: 87 | N78: 14 | O78: 8 | P78: 12
A79: Q71 | B79: RAS | C79: THE HILLINGDON HOSPITALS NHS FOUNDATION TRUST | D79: RAS01 | E79: Hillingdon Hospital - RAS01 | F79: 509 | G79: 3093 | H79: 0.1645651471 | I79: 0.9410609037 | J79: 0.01571709234 | K79: 362 | L79: 117 | M79: 10 | N79: 3 | O79: 5 | P79: 12
A80: Q71 | B80: RAS | C80: THE HILLINGDON HOSPITALS NHS FOUNDATION TRUST | D80: RAS02 | E80: Mount Vernon Hospital Site - RAS02 | F80: 204 | G80: 715 | H80: 0.2853146853 | I80: 0.9950980392 | J80: 0 | K80: 167 | L80: 36 | M80: 1 | N80: 0 | O80: 0 | P80: 0
A81: Q71 | B81: RPY | C81: THE ROYAL MARSDEN NHS FOUNDATION TRUST | D81: RPY01 | E81: The Royal Marsden Hospital (London) - RPY01 | F81: 204 | G81: 1633 | H81: 0.1249234538 | I81: 0.9705882353 | J81: 0.004901960784 | K81: 186 | L81: 12 | M81: 1 | N81: 1 | O81: 0 | P81: 4
A82: Q71 | B82: RPY | C82: THE ROYAL MARSDEN NHS FOUNDATION TRUST | D82: RPY02 | E82: The Royal Marsden Hospital (Surrey) - RPY02 | F82: 304 | G82: 3036 | H82: 0.1001317523 | I82: 0.9802631579 | J82: 0.003289473684 | K82: 276 | L82: 22 | M82: 0 | N82: 1 | O82: 0 | P82: 5
A83: Q71 | B83: RKE | C83: THE WHITTINGTON HOSPITAL NHS TRUST | D83: RKEQ4 | E83: The Whittington Hospital - RKEQ4 | F83: 381 | G83: 3207 | H83: 0.1188026193 | I83: 0.9632545932 | J83: 0.01312335958 | K83: 276 | L83: 91 | M83: 4 | N83: 3 | O83: 2 | P83: 5
A84: Q71 | B84: RRV | C84: UNIVERSITY COLLEGE LONDON HOSPITALS NHS FOUNDATION TRUST | D84: RRVNQ | E84: National Hospital For Neurology and Neurosurgery, Queen Square - RRVNQ | F84: 303 | G84: 1793 | H84: 0.1689905187 | I84: 0.9702970297 | J84: 0.009900990099 | K84: 237 | L84: 57 | M84: 3 | N84: 2 | O84: 1 | P84: 3
A85: Q71 | B85: RRV | C85: UNIVERSITY COLLEGE LONDON HOSPITALS NHS FOUNDATION TRUST | D85: RRVRN | E85: ROYAL NATIONAL THROAT, NOSE & EAR HOSPITAL - RRVRN | F85: 244 | G85: 419 | H85: 0.5823389021 | I85: 0.9672131148 | J85: 0.01639344262 | K85: 184 | L85: 52 | M85: 2 | N85: 2 | O85: 2 | P85: 2
A86: Q71 | B86: RRV | C86: UNIVERSITY COLLEGE LONDON HOSPITALS NHS FOUNDATION TRUST | D86: RRV03 | E86: University College Hospital - RRV03 | F86: 757 | G86: 3134 | H86: 0.2415443523 | I86: 0.9735799207 | J86: 0.01188903567 | K86: 603 | L86: 134 | M86: 7 | N86: 2 | O86: 7 | P86: 4
A87: Q72 | B87: RCF | C87: AIREDALE NHS FOUNDATION TRUST | D87: RCF22 | E87: Airedale General Hospital - RCF22 | F87: 916 | G87: 4471 | H87: 0.2048758667 | I87: 0.9672489083 | J87: 0.007641921397 | K87: 728 | L87: 158 | M87: 13 | N87: 4 | O87: 3 | P87: 10
A88: Q72 | B88: RFF | C88: BARNSLEY HOSPITAL NHS FOUNDATION TRUST | D88: RFFAA | E88: Barnsley Hospital NHS Foundation Trust HQ - RFFAA | F88: 669 | G88: 3865 | H88: 0.1730918499 | I88: 0.9790732436 | J88: 0.01046337818 | K88: 536 | L88: 119 | M88: 5 | N88: 3 | O88: 4 | P88: 2
A89: Q72 | B89: RAE | C89: BRADFORD TEACHING HOSPITALS NHS FOUNDATION TRUST | D89: RAE01 | E89: Bradford Royal Infirmary - RAE01 | F89: 1459 | G89: 6666 | H89: 0.2188718872 | I89: 0.9904043866 | J89: 0.002741603838 | K89: 1351 | L89: 94 | M89: 9 | N89: 3 | O89: 1 | P89: 1
A90: Q72 | B90: RAE | C90: BRADFORD TEACHING HOSPITALS NHS FOUNDATION TRUST | D90: RAE05 | E90: St Lukes Hospital - RAE05 | F90: 104 | G90: 820 | H90: 0.1268292683 | I90: 0.9903846154 | J90: 0.009615384615 | K90: 96 | L90: 7 | M90: 0 | N90: 1 | O90: 0 | P90: 0
A91: Q72 | B91: RWY | C91: CALDERDALE AND HUDDERSFIELD NHS FOUNDATION TRUST | D91: RWY02 | E91: Calderdale Royal Hospital - RWY02 | F91: 946 | G91: 4219 | H91: 0.2242237497 | I91: 0.9830866808 | J91: 0.001057082452 | K91: 777 | L91: 153 | M91: 13 | N91: 0 | O91: 1 | P91: 2
A92: Q72 | B92: RWY | C92: CALDERDALE AND HUDDERSFIELD NHS FOUNDATION TRUST | D92: RWY01 | E92: Huddersfield Royal Infirmary - RWY01 | F92: 1052 | G92: 3974 | H92: 0.2647206844 | I92: 0.9496197719 | J92: 0.01996197719 | K92: 810 | L92: 189 | M92: 26 | N92: 9 | O92: 12 | P92: 6
A93: Q72 | B93: RP5 | C93: DONCASTER AND BASSETLAW HOSPITALS NHS FOUNDATION TRUST | D93: RP5BA | E93: Bassetlaw Hospital - RP5BA | F93: 363 | G93: 1258 | H93: 0.2885532591 | I93: 0.9641873278 | J93: 0.002754820937 | K93: 304 | L93: 46 | M93: 3 | N93: 0 | O93: 1 | P93: 9
A94: Q72 | B94: RP5 | C94: DONCASTER AND BASSETLAW HOSPITALS NHS FOUNDATION TRUST | D94: RP5DR | E94: Doncaster Royal Infirmary - RP5DR | F94: 947 | G94: 4034 | H94: 0.234754586 | I94: 0.9725448786 | J94: 0.006335797254 | K94: 757 | L94: 164 | M94: 5 | N94: 4 | O94: 2 | P94: 15
A95: Q72 | B95: RP5 | C95: DONCASTER AND BASSETLAW HOSPITALS NHS FOUNDATION TRUST | D95: RP5MM | E95: Montagu Hospital - RP5MM | F95: 289 | G95: 588 | H95: 0.4914965986 | I95: 0.9653979239 | J95: 0.01384083045 | K95: 264 | L95: 15 | M95: 2 | N95: 2 | O95: 2 | P95: 4
A96: Q72 | B96: RCD | C96: HARROGATE AND DISTRICT NHS FOUNDATION TRUST | D96: RCD01 | E96: Harrogate District Hospital - RCD01 | F96: 972 | G96: 2385 | H96: 0.4075471698 | I96: 0.9372427984 | J96: 0.02983539095 | K96: 730 | L96: 181 | M96: 27 | N96: 7 | O96: 22 | P96: 5
A97: Q72 | B97: RWA | C97: HULL AND EAST YORKSHIRE HOSPITALS NHS TRUST | D97: RWA16 | E97: Castle Hill Hospital - RWA16 | F97: 982 | G97: 4629 | H97: 0.2121408512 | I97: 0.9745417515 | J97: 0.005091649695 | K97: 878 | L97: 79 | M97: 5 | N97: 3 | O97: 2 | P97: 15
A98: Q72 | B98: RWA | C98: HULL AND EAST YORKSHIRE HOSPITALS NHS TRUST | D98: RWA01 | E98: Hull Royal Infirmary - RWA01 | F98: 1455 | G98: 4345 | H98: 0.334867664 | I98: 0.9347079038 | J98: 0.01374570447 | K98: 1088 | L98: 272 | M98: 35 | N98: 9 | O98: 11 | P98: 40
A99: Q72 | B99: RR8 | C99: LEEDS TEACHING HOSPITALS NHS TRUST | D99: RR819 | E99: Chapel Allerton Hospital - RR819 | F99: 160 | G99: 1120 | H99: 0.1428571429 | I99: 0.98125 | J99: 0 | K99: 142 | L99: 15 | M99: 1 | N99: 0 | O99: 0 | P99: 2
A100: Q72 | B100: RR8 | C100: LEEDS TEACHING HOSPITALS NHS TRUST | D100: RR802 | E100: Leeds Dental Hospital - RR802 | F100: 0 | G100: 102 | H100: 0 | I100: NA | J100: NA | K100: 0 | L100: 0 | M100: 0 | N100: 0 | O100: 0 | P100: 0
A101: Q72 | B101: RR8 | C101: LEEDS TEACHING HOSPITALS NHS TRUST | D101: RR801 | E101: Leeds General Infirmary - RR801 | F101: 1411 | G101: 6039 | H101: 0.233647955 | I101: 0.9539333806 | J101: 0.009922041106 | K101: 1124 | L101: 222 | M101: 28 | N101: 10 | O101: 4 | P101: 23
A102: Q72 | B102: RR8 | C102: LEEDS TEACHING HOSPITALS NHS TRUST | D102: RR813 | E102: St James's University Hospital - RR813 | F102: 1639 | G102: 8420 | H102: 0.1946555819 | I102: 0.9322757779 | J102: 0.01403294692 | K102: 1194 | L102: 334 | M102: 39 | N102: 9 | O102: 14 | P102: 49
A103: Q72 | B103: RR8 | C103: LEEDS TEACHING HOSPITALS NHS TRUST | D103: RR807 | E103: Wharfedale Hospital - RR807 | F103: 0 | G103: 576 | H103: 0 | I103: NA | J103: NA | K103: 0 | L103: 0 | M103: 0 | N103: 0 | O103: 0 | P103: 0
A104: Q72 | B104: RXF | C104: MID YORKSHIRE HOSPITALS NHS TRUST | D104: RXF10 | E104: Dewsbury and District Hospital - RXF10 | F104: 698 | G104: 2983 | H104: 0.2339926249 | I104: 0.9584527221 | J104: 0.008595988539 | K104: 504 | L104: 165 | M104: 19 | N104: 5 | O104: 1 | P104: 4
A105: Q72 | B105: RXF | C105: MID YORKSHIRE HOSPITALS NHS TRUST | D105: RXF05 | E105: Pinderfields General Hospital - RXF05 | F105: 1324 | G105: 4857 | H105: 0.2725962528 | I105: 0.9637462236 | J105: 0.01132930514 | K105: 1042 | L105: 234 | M105: 30 | N105: 10 | O105: 5 | P105: 3
A106: Q72 | B106: RXF | C106: MID YORKSHIRE HOSPITALS NHS TRUST | D106: RXF03 | E106: Pontefract General Infirmary - RXF03 | F106: 519 | G106: 866 | H106: 0.5993071594 | I106: 0.9942196532 | J106: 0.001926782274 | K106: 464 | L106: 52 | M106: 1 | N106: 1 | O106: 0 | P106: 1
A107: Q72 | B107: RJL | C107: NORTHERN LINCOLNSHIRE AND GOOLE NHS FOUNDATION TRUST | D107: RJL30 | E107: Diana, Princess Of Wales Hospital - RJL30 | F107: 667 | G107: 3757 | H107: 0.1775352675 | I107: 0.952023988 | J107: 0.01349325337 | K107: 537 | L107: 98 | M107: 15 | N107: 3 | O107: 6 | P107: 8
A108: Q72 | B108: RJL | C108: NORTHERN LINCOLNSHIRE AND GOOLE NHS FOUNDATION TRUST | D108: RJL31 | E108: Goole and District Hospital (Acute) - RJL31 | F108: 359 | G108: 2307 | H108: 0.1556133507 | I108: 0.9749303621 | J108: 0.01114206128 | K108: 303 | L108: 47 | M108: 3 | N108: 1 | O108: 3 | P108: 2
A109: Q72 | B109: RJL | C109: NORTHERN LINCOLNSHIRE AND GOOLE NHS FOUNDATION TRUST | D109: RJL32 | E109: Scunthorpe General Hospital - RJL32 | F109: 721 | G109: 1667 | H109: 0.4325134973 | I109: 0.9778085992 | J109: 0.004160887656 | K109: 614 | L109: 91 | M109: 8 | N109: 1 | O109: 2 | P109: 5
A110: Q72 | B110: RCU | C110: SHEFFIELD CHILDREN'S NHS FOUNDATION TRUST | D110: RCUEF | E110: Sheffield Children's Hospital - RCUEF | F110: 951 | G110: 2087 | H110: 0.4556780067 | I110: 0.7570977918 | J110: 0.04521556257 | K110: 531 | L110: 189 | M110: 52 | N110: 20 | O110: 23 | P110: 136
A111: Q72 | B111: RHQ | C111: SHEFFIELD TEACHING HOSPITALS NHS FOUNDATION TRUST | D111: RHQNG | E111: Northern General Hospital - RHQNG | F111: 1577 | G111: 4122 | H111: 0.3825812712 | I111: 0.9619530755 | J111: 0.01585288523 | K111: 1223 | L111: 294 | M111: 31 | N111: 11 | O111: 14 | P111: 4
A112: Q72 | B112: RHQ | C112: SHEFFIELD TEACHING HOSPITALS NHS FOUNDATION TRUST | D112: RHQHH | E112: Royal Hallamshire Hospital - RHQHH | F112: 1240 | G112: 4025 | H112: 0.3080745342 | I112: 0.9717741935 | J112: 0.00564516129 | K112: 1056 | L112: 149 | M112: 24 | N112: 4 | O112: 3 | P112: 4
A113: Q72 | B113: RHQ | C113: SHEFFIELD TEACHING HOSPITALS NHS FOUNDATION TRUST | D113: RHQWP | E113: Weston Park Hospital - RHQWP | F113: 65 | G113: 341 | H113: 0.1906158358 | I113: 0.9538461538 | J113: 0.01538461538 | K113: 60 | L113: 2 | M113: 2 | N113: 0 | O113: 1 | P113: 0
A114: Q72 | B114: RFR | C114: THE ROTHERHAM NHS FOUNDATION TRUST | D114: RFRPA | E114: Rotherham District General Hospital - RFRPA | F114: 1285 | G114: 2904 | H114: 0.4424931129 | I114: 0.9766536965 | J114: 0.01167315175 | K114: 1014 | L114: 241 | M114: 5 | N114: 8 | O114: 7 | P114: 10
A115: Q72 | B115: RCB | C115: YORK TEACHING HOSPITAL NHS FOUNDATION TRUST | D115: RCBNH | E115: Bridlington and District Hospital - RCBNH | F115: 326 | G115: 526 | H115: 0.6197718631 | I115: 0.981595092 | J115: 0.006134969325 | K115: 292 | L115: 28 | M115: 2 | N115: 2 | O115: 0 | P115: 2
A116: Q72 | B116: RCB | C116: YORK TEACHING HOSPITAL NHS FOUNDATION TRUST | D116: RCBCA | E116: Scarborough General Hospital - RCBCA | F116: 472 | G116: 2619 | H116: 0.1802214586 | I116: 0.9661016949 | J116: 0.008474576271 | K116: 362 | L116: 94 | M116: 7 | N116: 3 | O116: 1 | P116: 5
A117: Q72 | B117: RCB | C117: YORK TEACHING HOSPITAL NHS FOUNDATION TRUST | D117: RCB55 | E117: York Hospital - RCB55 | F117: 1095 | G117: 5805 | H117: 0.188630491 | I117: 0.9598173516 | J117: 0.0100456621 | K117: 871 | L117: 180 | M117: 24 | N117: 1 | O117: 10 | P117: 9
A118: Q73 | B118: RXL | C118: BLACKPOOL TEACHING HOSPITALS NHS FOUNDATION TRUST | D118: RXL01 | E118: Blackpool Victoria Hospital - RXL01 | F118: 1479 | G118: 7199 | H118: 0.2054452007 | I118: 0.9601081812 | J118: 0.008113590264 | K118: 1214 | L118: 206 | M118: 26 | N118: 7 | O118: 5 | P118: 21
A119: Q73 | B119: RMC | C119: BOLTON NHS FOUNDATION TRUST | D119: RMC01 | E119: Royal Bolton Hospital - RMC01 | F119: 1339 | G119: 3424 | H119: 0.3910630841 | I119: 0.9619118745 | J119: 0.01493651979 | K119: 1128 | L119: 160 | M119: 21 | N119: 7 | O119: 13 | P119: 10
A120: Q73 | B120: RW3 | C120: CENTRAL MANCHESTER UNIVERSITY HOSPITALS NHS FOUNDATION TRUST | D120: RW3RE | E120: Manchester Royal Eye Hospital - RW3RE | F120: 366 | G120: 980 | H120: 0.3734693878 | I120: 0.9781420765 | J120: 0.005464480874 | K120: 309 | L120: 49 | M120: 6 | N120: 2 | O120: 0 | P120: 0
A121: Q73 | B121: RW3 | C121: CENTRAL MANCHESTER UNIVERSITY HOSPITALS NHS FOUNDATION TRUST | D121: RW3MR | E121: Manchester Royal Infirmary - RW3MR | F121: 808 | G121: 4542 | H121: 0.1778952004 | I121: 0.8923267327 | J121: 0.03465346535 | K121: 537 | L121: 184 | M121: 39 | N121: 13 | O121: 15 | P121: 20
A122: Q73 | B122: RW3 | C122: CENTRAL MANCHESTER UNIVERSITY HOSPITALS NHS FOUNDATION TRUST | D122: RW3RC | E122: Royal Manchester Children's Hospital - RW3RC | F122: 567 | G122: 3066 | H122: 0.1849315068 | I122: 0.9276895944 | J122: 0.0176366843 | K122: 426 | L122: 100 | M122: 29 | N122: 7 | O122: 3 | P122: 2
A123: Q73 | B123: RW3 | C123: CENTRAL MANCHESTER UNIVERSITY HOSPITALS NHS FOUNDATION TRUST | D123: RW3SM | E123: St Mary's Hospital - RW3SM | F123: 132 | G123: 610 | H123: 0.2163934426 | I123: 0.9772727273 | J123: 0.007575757576 | K123: 101 | L123: 28 | M123: 1 | N123: 1 | O123: 0 | P123: 1
A124: Q73 | B124: RW3 | C124: CENTRAL MANCHESTER UNIVERSITY HOSPITALS NHS FOUNDATION TRUST | D124: RW3TR | E124: Trafford General Hospital - RW3TR | F124: 281 | G124: 1573 | H124: 0.1786395423 | I124: 0.9679715302 | J124: 0.01423487544 | K124: 239 | L124: 33 | M124: 3 | N124: 2 | O124: 2 | P124: 2
A125: Q73 | B125: RW3 | C125: CENTRAL MANCHESTER UNIVERSITY HOSPITALS NHS FOUNDATION TRUST | D125: RW3DH | E125: University Dental Hospital - RW3DH | F125: 0 | G125: 247 | H125: 0 | I125: NA | J125: NA | K125: 0 | L125: 0 | M125: 0 | N125: 0 | O125: 0 | P125: 0
A126: Q73 | B126: RXR | C126: EAST LANCASHIRE HOSPITALS NHS TRUST | D126: RXR10 | E126: Burnley General Hospital - RXR10 | F126: 722 | G126: 1752 | H126: 0.4121004566 | I126: 0.9916897507 | J126: 0.001385041551 | K126: 643 | L126: 73 | M126: 3 | N126: 1 | O126: 0 | P126: 2
A127: Q73 | B127: RXR | C127: EAST LANCASHIRE HOSPITALS NHS TRUST | D127: RXR20 | E127: Royal Blackburn Hospital - RXR20 | F127: 1678 | G127: 3474 | H127: 0.4830166955 | I127: 0.9851013111 | J127: 0.002979737783 | K127: 1357 | L127: 296 | M127: 10 | N127: 4 | O127: 1 | P127: 10
A128: Q73 | B128: RXN | C128: LANCASHIRE TEACHING HOSPITALS NHS FOUNDATION TRUST | D128: RXN01 | E128: Chorley and South Ribble Hospital - RXN01 | F128: 715 | G128: 2061 | H128: 0.3469189714 | I128: 0.9356643357 | J128: 0.02797202797 | K128: 554 | L128: 115 | M128: 17 | N128: 11 | O128: 9 | P128: 9
A129: Q73 | B129: RXN | C129: LANCASHIRE TEACHING HOSPITALS NHS FOUNDATION TRUST | D129: RXN02 | E129: Royal Preston Hospital - RXN02 | F129: 1397 | G129: 3804 | H129: 0.3672450053 | I129: 0.9112383679 | J129: 0.04080171797 | K129: 992 | L129: 281 | M129: 51 | N129: 28 | O129: 29 | P129: 16
A130: Q73 | B130: RW6 | C130: PENNINE ACUTE HOSPITALS NHS TRUST | D130: RW605 | E130: Birch Hill Hospital - RW605 | F130: 1 | G130: 6 | H130: 0.1666666667 | I130: * | J130: * | K130: * | L130: * | M130: * | N130: * | O130: * | P130: *
A131: Q73 | B131: RW6 | C131: PENNINE ACUTE HOSPITALS NHS TRUST | D131: RW601 | E131: Fairfield General Hospital - RW601 | F131: 877 | G131: 1959 | H131: 0.4476773864 | I131: 0.945267959 | J131: 0.01710376283 | K131: 687 | L131: 142 | M131: 23 | N131: 3 | O131: 12 | P131: 10
A132: Q73 | B132: RW6 | C132: PENNINE ACUTE HOSPITALS NHS TRUST | D132: RW602 | E132: North Manchester General Hospital - RW602 | F132: 987 | G132: 2863 | H132: 0.3447432763 | I132: 0.9412360689 | J132: 0.02431610942 | K132: 754 | L132: 175 | M132: 19 | N132: 13 | O132: 11 | P132: 15
A133: Q73 | B133: RW6 | C133: PENNINE ACUTE HOSPITALS NHS TRUST | D133: RW604 | E133: Rochdale Infirmary - RW604 | F133: 832 | G133: 2182 | H133: 0.3813015582 | I133: 0.9146634615 | J133: 0.03485576923 | K133: * | L133: * | M133: * | N133: * | O133: * | P133: *
A134: Q73 | B134: RW6 | C134: PENNINE ACUTE HOSPITALS NHS TRUST | D134: RW603 | E134: Royal Oldham Hospital - RW603 | F134: 1217 | G134: 3752 | H134: 0.3243603412 | I134: 0.9548069022 | J134: 0.01972062449 | K134: 984 | L134: 178 | M134: 20 | N134: 5 | O134: 19 | P134: 11
A135: Q73 | B135: RM3 | C135: SALFORD ROYAL NHS FOUNDATION TRUST | D135: RM301 | E135: Salford Royal - RM301 | F135: 801 | G135: 2332 | H135: 0.3434819897 | I135: 0.9200998752 | J135: 0.02996254682 | K135: 642 | L135: 95 | M135: 35 | N135: 9 | O135: 15 | P135: 5
A136: Q73 | B136: RWJ | C136: STOCKPORT NHS FOUNDATION TRUST | D136: RWJ03 | E136: Cherry Tree Hospital - RWJ03 | F136: 3 | G136: 5 | H136: 0.6 | I136: * | J136: * | K136: * | L136: * | M136: * | N136: * | O136: * | P136: *
A137: Q73 | B137: RWJ | C137: STOCKPORT NHS FOUNDATION TRUST | D137: RWJ09 | E137: Stepping Hill Hospital - RWJ09 | F137: 2315 | G137: 6132 | H137: 0.3775277234 | I137: 0.9533477322 | J137: 0.01468682505 | K137: 1754 | L137: 453 | M137: 55 | N137: 13 | O137: 21 | P137: 19
A138: Q73 | B138: RWJ | C138: STOCKPORT NHS FOUNDATION TRUST | D138: RWJ88 | E138: The Meadows - RWJ88 | F138: 3 | G138: 1 | H138: 3 | I138: * | J138: * | K138: * | L138: * | M138: * | N138: * | O138: * | P138: *
A139: Q73 | B139: RMP | C139: TAMESIDE HOSPITAL NHS FOUNDATION TRUST | D139: RMP01 | E139: Tameside General Hospital - RMP01 | F139: 914 | G139: 3323 | H139: 0.2750526633 | I139: 0.9529540481 | J139: 0.009846827133 | K139: 683 | L139: 188 | M139: 26 | N139: 3 | O139: 6 | P139: 8
A140: Q73 | B140: RBV | C140: THE CHRISTIE NHS FOUNDATION TRUST | D140: RBV01 | E140: The Christie - RBV01 | F140: 354 | G140: 810 | H140: 0.437037037 | I140: 0.9491525424 | J140: 0.01129943503 | K140: 305 | L140: 31 | M140: 7 | N140: 3 | O140: 1 | P140: 7
A141: Q73 | B141: RM2 | C141: UNIVERSITY HOSPITAL OF SOUTH MANCHESTER NHS FOUNDATION TRUST | D141: RM202 | E141: Wythenshawe Hospital - RM202 | F141: 1934 | G141: 6432 | H141: 0.3006840796 | I141: 0.9581178904 | J141: 0.008273009307 | K141: 1557 | L141: 296 | M141: 35 | N141: 4 | O141: 12 | P141: 30
A142: Q73 | B142: RRF | C142: WRIGHTINGTON, WIGAN AND LEIGH NHS FOUNDATION TRUST | D142: RRF01 | E142: Leigh Infirmary - RRF01 | F142: 128 | G142: 742 | H142: 0.1725067385 | I142: 0.9765625 | J142: 0.0078125 | K142: 115 | L142: 10 | M142: 1 | N142: 1 | O142: 0 | P142: 1
A143: Q73 | B143: RRF | C143: WRIGHTINGTON, WIGAN AND LEIGH NHS FOUNDATION TRUST | D143: RRF02 | E143: Royal Albert Edward Infirmary - RRF02 | F143: 427 | G143: 2540 | H143: 0.1681102362 | I143: 0.9695550351 | J143: 0.01639344262 | K143: 351 | L143: 63 | M143: 3 | N143: 3 | O143: 4 | P143: 3
A144: Q73 | B144: RRF | C144: WRIGHTINGTON, WIGAN AND LEIGH NHS FOUNDATION TRUST | D144: RRF53 | E144: Wrightington Hospital - RRF53 | F144: 215 | G144: 986 | H144: 0.2180527383 | I144: 0.9906976744 | J144: 0.009302325581 | K144: 200 | L144: 13 | M144: 0 | N144: 2 | O144: 0 | P144: 0
A145: Q74 | B145: RLN | C145: CITY HOSPITALS SUNDERLAND NHS FOUNDATION TRUST | D145: RLNGM | E145: Sunderland Eye Infirmary - RLNGM | F145: 77 | G145: 2060 | H145: 0.03737864078 | I145: 1 | J145: 0 | K145: 70 | L145: 7 | M145: 0 | N145: 0 | O145: 0 | P145: 0
A146: Q74 | B146: RLN | C146: CITY HOSPITALS SUNDERLAND NHS FOUNDATION TRUST | D146: RLNGL | E146: Sunderland Royal Hospital - RLNGL | F146: 1306 | G146: 5639 | H146: 0.2316013478 | I146: 0.9709035222 | J146: 0.01071975498 | K146: 1046 | L146: 222 | M146: 15 | N146: 8 | O146: 6 | P146: 9
A147: Q74 | B147: RXP | C147: COUNTY DURHAM AND DARLINGTON NHS FOUNDATION TRUST | D147: RXPBA | E147: Bishop Auckland Hospital - RXPBA | F147: 160 | G147: 1288 | H147: 0.1242236025 | I147: 0.98125 | J147: 0 | K147: 138 | L147: 19 | M147: 0 | N147: 0 | O147: 0 | P147: 3
A148: Q74 | B148: RXP | C148: COUNTY DURHAM AND DARLINGTON NHS FOUNDATION TRUST | D148: RXPDA | E148: Darlington Memorial Hospital - RXPDA | F148: 851 | G148: 3911 | H148: 0.2175914088 | I148: 0.9189189189 | J148: 0.01410105758 | K148: 652 | L148: 130 | M148: 15 | N148: 5 | O148: 7 | P148: 42
A149: Q74 | B149: RXP | C149: COUNTY DURHAM AND DARLINGTON NHS FOUNDATION TRUST | D149: RXPCW | E149: Shotley Bridge Hospital Site - RXPCW | F149: 28 | G149: 508 | H149: 0.05511811024 | I149: 0.9642857143 | J149: 0 | K149: 25 | L149: 2 | M149: 0 | N149: 0 | O149: 0 | P149: 1
A150: Q74 | B150: RXP | C150: COUNTY DURHAM AND DARLINGTON NHS FOUNDATION TRUST | D150: RXPCP | E150: University Hospital Of North Durham - RXPCP | F150: 776 | G150: 4630 | H150: 0.1676025918 | I150: 0.9317010309 | J150: 0.01932989691 | K150: 602 | L150: 121 | M150: 9 | N150: 4 | O150: 11 | P150: 29
A151: Q74 | B151: RR7 | C151: GATESHEAD HEALTH NHS FOUNDATION TRUST | D151: RR7EN | E151: Queen Elizabeth Hospital - RR7EN | F151: 1001 | G151: 4838 | H151: 0.2069036792 | I151: 0.983016983 | J151: 0.005994005994 | K151: 874 | L151: 110 | M151: 9 | N151: 4 | O151: 2 | P151: 2
A152: Q74 | B152: RNL | C152: NORTH CUMBRIA UNIVERSITY HOSPITALS NHS TRUST | D152: RNLAY | E152: Cumberland Infirmary - RNLAY | F152: 1041 | G152: 3893 | H152: 0.2674030311 | I152: 0.9567723343 | J152: 0.01344860711 | K152: 804 | L152: 192 | M152: 22 | N152: 9 | O152: 5 | P152: 9
A153: Q74 | B153: RNL | C153: NORTH CUMBRIA UNIVERSITY HOSPITALS NHS TRUST | D153: RNLBX | E153: West Cumberland Hospital - RNLBX | F153: 821 | G153: 2011 | H153: 0.4082545997 | I153: 0.9780755177 | J153: 0.006090133983 | K153: 688 | L153: 115 | M153: 8 | N153: 1 | O153: 4 | P153: 5
A154: Q74 | B154: RVW | C154: NORTH TEES AND HARTLEPOOL NHS FOUNDATION TRUST | D154: RVWAA | E154: University Hospital Of Hartlepool - RVWAA | F154: 347 | G154: 976 | H154: 0.3555327869 | I154: 0.9855907781 | J154: 0.00288184438 | K154: 311 | L154: 31 | M154: 2 | N154: 0 | O154: 1 | P154: 2
A155: Q74 | B155: RVW | C155: NORTH TEES AND HARTLEPOOL NHS FOUNDATION TRUST | D155: RVWAE | E155: University Hospital Of North Tees - RVWAE | F155: 881 | G155: 3123 | H155: 0.2821005443 | I155: 0.943246311 | J155: 0.01248581158 | K155: 693 | L155: 138 | M155: 27 | N155: 7 | O155: 4 | P155: 12
A156: Q74 | B156: RTF | C156: NORTHUMBRIA HEALTHCARE NHS FOUNDATION TRUST | D156: RTFDJ | E156: Alnwick Infirmary - RTFDJ | F156: 29 | G156: 245 | H156: 0.1183673469 | I156: 1 | J156: 0 | K156: 24 | L156: 5 | M156: 0 | N156: 0 | O156: 0 | P156: 0
A157: Q74 | B157: RTF | C157: NORTHUMBRIA HEALTHCARE NHS FOUNDATION TRUST | D157: RTFDH | E157: Berwick Infirmary - RTFDH | F157: 26 | G157: 92 | H157: 0.2826086957 | I157: 1 | J157: 0 | K157: 25 | L157: 1 | M157: 0 | N157: 0 | O157: 0 | P157: 0
A158: Q74 | B158: RTF | C158: NORTHUMBRIA HEALTHCARE NHS FOUNDATION TRUST | D158: RTFDX | E158: Blyth Community Hospital - RTFDX | F158: 55 | G158: 49 | H158: 1.12244898 | I158: 0.9090909091 | J158: 0.01818181818 | K158: 32 | L158: 18 | M158: 2 | N158: 0 | O158: 1 | P158: 2
A159: Q74 | B159: RTF | C159: NORTHUMBRIA HEALTHCARE NHS FOUNDATION TRUST | D159: RTFDU | E159: Haltwhistle War Memorial Hospital - RTFDU | F159: 15 | G159: 20 | H159: 0.75 | I159: 1 | J159: 0 | K159: 15 | L159: 0 | M159: 0 | N159: 0 | O159: 0 | P159: 0
A160: Q74 | B160: RTF | C160: NORTHUMBRIA HEALTHCARE NHS FOUNDATION TRUST | D160: RTFDR | E160: Hexham General Hospital - RTFDR | F160: 231 | G160: 1009 | H160: 0.2289395441 | I160: 0.9913419913 | J160: 0 | K160: 218 | L160: 11 | M160: 2 | N160: 0 | O160: 0 | P160: 0
A161: Q74 | B161: RTF | C161: NORTHUMBRIA HEALTHCARE NHS FOUNDATION TRUST | D161: RTFDM | E161: Morpeth Cottage Hospital - RTFDM | F161: 17 | G161: 40 | H161: 0.425 | I161: 0.8823529412 | J161: 0.05882352941 | K161: 9 | L161: 6 | M161: 0 | N161: 1 | O161: 0 | P161: 1
A162: Q74 | B162: RTF | C162: NORTHUMBRIA HEALTHCARE NHS FOUNDATION TRUST | D162: RTFFS | E162: North Tyneside General Hospital - RTFFS | F162: 361 | G162: 2135 | H162: 0.1690866511 | I162: 0.9639889197 | J162: 0.005540166205 | K162: 304 | L162: 44 | M162: 7 | N162: 1 | O162: 1 | P162: 4
A163: Q74 | B163: RTF | C163: NORTHUMBRIA HEALTHCARE NHS FOUNDATION TRUST | D163: RTFEF | E163: Rothbury Community Hospital - RTFEF | F163: 6 | G163: 12 | H163: 0.5 | I163: 1 | J163: 0 | K163: 5 | L163: 1 | M163: 0 | N163: 0 | O163: 0 | P163: 0
A164: Q74 | B164: RTF | C164: NORTHUMBRIA HEALTHCARE NHS FOUNDATION TRUST | D164: RTF86 | E164: The Northumbria - RTF86 | F164: 316 | G164: 3298 | H164: 0.09581564585 | I164: 0.9746835443 | J164: 0.009493670886 | K164: 271 | L164: 37 | M164: 5 | N164: 1 | O164: 2 | P164: 0
A165: Q74 | B165: RTF | C165: NORTHUMBRIA HEALTHCARE NHS FOUNDATION TRUST | D165: RTFED | E165: Wansbeck Hospital - RTFED | F165: 247 | G165: 1788 | H165: 0.1381431767 | I165: 0.95951417 | J165: 0.01619433198 | K165: 219 | L165: 18 | M165: 3 | N165: 1 | O165: 3 | P165: 3
A166: Q74 | B166: RTR | C166: SOUTH TEES HOSPITALS NHS FOUNDATION TRUST | D166: RTR45 | E166: Friarage Hospital Site - RTR45 | F166: 440 | G166: 1349 | H166: 0.3261675315 | I166: 0.9795454545 | J166: 0 | K166: 383 | L166: 48 | M166: 6 | N166: 0 | O166: 0 | P166: 3
A167: Q74 | B167: RTR | C167: SOUTH TEES HOSPITALS NHS FOUNDATION TRUST | D167: RTRAT | E167: The James Cook University Hospital - RTRAT | F167: 2502 | G167: 8035 | H167: 0.3113876789 | I167: 0.9560351719 | J167: 0.01039168665 | K167: 2045 | L167: 347 | M167: 57 | N167: 13 | O167: 13 | P167: 27
A168: Q74 | B168: RE9 | C168: SOUTH TYNESIDE NHS FOUNDATION TRUST | D168: RE9GA | E168: South Tyneside District Hospital - RE9GA | F168: 332 | G168: 961 | H168: 0.3454734651 | I168: 0.9518072289 | J168: 0.003012048193 | K168: 276 | L168: 40 | M168: 5 | N168: 1 | O168: 0 | P168: 10
A169: Q74 | B169: RTD | C169: THE NEWCASTLE UPON TYNE HOSPITALS NHS FOUNDATION TRUST | D169: RTD01 | E169: Freeman Hospital - RTD01 | F169: 1115 | G169: 4310 | H169: 0.2587006961 | I169: 0.9874439462 | J169: 0.004484304933 | K169: 941 | L169: 160 | M169: 7 | N169: 0 | O169: 5 | P169: 2
A170: Q74 | B170: RTD | C170: THE NEWCASTLE UPON TYNE HOSPITALS NHS FOUNDATION TRUST | D170: RTD03 | E170: Newcastle General Hospital Acute Services - RTD03 | F170: 14 | G170: 25 | H170: 0.56 | I170: 1 | J170: 0 | K170: 6 | L170: 8 | M170: 0 | N170: 0 | O170: 0 | P170: 0
A171: Q74 | B171: RTD | C171: THE NEWCASTLE UPON TYNE HOSPITALS NHS FOUNDATION TRUST | D171: RTD06 | E171: Northern Centre For Cancer Care - RTD06 | F171: 89 | G171: 1764 | H171: 0.05045351474 | I171: 0.9887640449 | J171: 0 | K171: 77 | L171: 11 | M171: 1 | N171: 0 | O171: 0 | P171: 0
A172: Q74 | B172: RTD | C172: THE NEWCASTLE UPON TYNE HOSPITALS NHS FOUNDATION TRUST | D172: RTD02 | E172: The Royal Victoria Infirmary - RTD02 | F172: 1163 | G172: 9366 | H172: 0.124172539 | I172: 0.9742046432 | J172: 0.01461736887 | K172: 987 | L172: 146 | M172: 13 | N172: 6 | O172: 11 | P172: 0
A173: Q74 | B173: RTX | C173: UNIVERSITY HOSPITALS OF MORECAMBE BAY NHS FOUNDATION TRUST | D173: RTXBU | E173: Furness General Hospital - RTXBU | F173: 461 | G173: 1417 | H173: 0.3253352152 | I173: 0.9631236443 | J173: 0.01084598698 | K173: 392 | L173: 52 | M173: 3 | N173: 2 | O173: 3 | P173: 9
A174: Q74 | B174: RTX | C174: UNIVERSITY HOSPITALS OF MORECAMBE BAY NHS FOUNDATION TRUST | D174: RTX02 | E174: Royal Lancaster Infirmary - RTX02 | F174: 664 | G174: 2166 | H174: 0.3065558633 | I174: 0.9307228916 | J174: 0.02259036145 | K174: 534 | L174: 84 | M174: 16 | N174: 5 | O174: 10 | P174: 15
A175: Q74 | B175: RTX | C175: UNIVERSITY HOSPITALS OF MORECAMBE BAY NHS FOUNDATION TRUST | D175: RTXBW | E175: Westmorland General Hospital - RTXBW | F175: 244 | G175: 813 | H175: 0.3001230012 | I175: 0.9918032787 | J175: 0.004098360656 | K175: 229 | L175: 13 | M175: 0 | N175: 0 | O175: 1 | P175: 1
A176: Q75 | B176: REM | C176: AINTREE UNIVERSITY HOSPITAL NHS FOUNDATION TRUST | D176: REM21 | E176: University Hospital Aintree - REM21 | F176: 1981 | G176: 3493 | H176: 0.5671342685 | I176: 0.9631499243 | J176: 0.01564866229 | K176: 1664 | L176: 244 | M176: 28 | N176: 11 | O176: 20 | P176: 14
A177: Q75 | B177: RBS | C177: ALDER HEY CHILDREN'S NHS FOUNDATION TRUST | D177: RBS25 | E177: Alder Hey Children's NHS - RBS25 | F177: 151 | G177: 1878 | H177: 0.08040468584 | I177: 0.9735099338 | J177: 0.01986754967 | K177: 122 | L177: 25 | M177: 1 | N177: 2 | O177: 1 | P177: 0
A178: Q75 | B178: RJR | C178: COUNTESS OF CHESTER HOSPITAL NHS FOUNDATION TRUST | D178: RJR05 | E178: Countess Of Chester Hospital - RJR05 | F178: 980 | G178: 4037 | H178: 0.2427545207 | I178: 0.9673469388 | J178: 0.008163265306 | K178: 822 | L178: 126 | M178: 9 | N178: 6 | O178: 2 | P178: 15
A179: Q75 | B179: RJR | C179: COUNTESS OF CHESTER HOSPITAL NHS FOUNDATION TRUST | D179: RJR60 | E179: Ellesmere Port Hospital - RJR60 | F179: 82 | G179: 28 | H179: 2.928571429 | I179: 0.9146341463 | J179: 0.0487804878 | K179: 54 | L179: 21 | M179: 1 | N179: 2 | O179: 2 | P179: 2
A180: Q75 | B180: RJN | C180: EAST CHESHIRE NHS TRUST | D180: RJN63 | E180: Congleton War Memorial Hospital - RJN63 | F180: 4 | G180: 12 | H180: 0.3333333333 | I180: * | J180: * | K180: * | L180: * | M180: * | N180: * | O180: * | P180: *
A181: Q75 | B181: RJN | C181: EAST CHESHIRE NHS TRUST | D181: RJN71 | E181: Macclesfield District General Hospital - RJN71 | F181: 589 | G181: 1632 | H181: 0.3609068627 | I181: 0.9728353141 | J181: 0.008488964346 | K181: * | L181: * | M181: * | N181: * | O181: * | P181: *
A182: Q75 | B182: RBQ | C182: LIVERPOOL HEART AND CHEST HOSPITAL NHS FOUNDATION TRUST | D182: RBQHQ | E182: Liverpool Heart and Chest Hospital NHS Trust HQ - RBQHQ | F182: 390 | G182: 1072 | H182: 0.3638059701 | I182: 0.9923076923 | J182: 0.005128205128 | K182: 365 | L182: 22 | M182: 0 | N182: 1 | O182: 1 | P182: 1
A183: Q75 | B183: REP | C183: LIVERPOOL WOMEN'S NHS FOUNDATION TRUST | D183: REP01 | E183: Liverpool Womens Hospital - REP01 | F183: 143 | G183: 920 | H183: 0.1554347826 | I183: 0.958041958 | J183: 0.02797202797 | K183: 119 | L183: 18 | M183: 2 | N183: 0 | O183: 4 | P183: 0
A184: Q75 | B184: RBT | C184: MID CHESHIRE HOSPITALS NHS FOUNDATION TRUST | D184: RBT20 | E184: Leighton Hospital - RBT20 | F184: 546 | G184: 4347 | H184: 0.1256038647 | I184: 0.9743589744 | J184: 0.005494505495 | K184: 422 | L184: 110 | M184: 9 | N184: 2 | O184: 1 | P184: 2
A185: Q75 | B185: RQ6 | C185: ROYAL LIVERPOOL AND BROADGREEN UNIVERSITY HOSPITALS NHS TRUST | D185: RQ601 | E185: Broadgreen Hospital - RQ601 | F185: 383 | G185: 1123 | H185: 0.3410507569 | I185: 0.9321148825 | J185: 0.03133159269 | K185: 323 | L185: 34 | M185: 5 | N185: 6 | O185: 6 | P185: 9
A186: Q75 | B186: RQ6 | C186: ROYAL LIVERPOOL AND BROADGREEN UNIVERSITY HOSPITALS NHS TRUST | D186: RQ614 | E186: Royal Liverpool University Dental Hospital - RQ614 | F186: 15 | G186: 70 | H186: 0.2142857143 | I186: 0.8666666667 | J186: 0.06666666667 | K186: 10 | L186: 3 | M186: 1 | N186: 0 | O186: 1 | P186: 0
A187: Q75 | B187: RQ6 | C187: ROYAL LIVERPOOL AND BROADGREEN UNIVERSITY HOSPITALS NHS TRUST | D187: RQ617 | E187: The Royal Liverpool University Hospital - RQ617 | F187: 1241 | G187: 4683 | H187: 0.2650010677 | I187: 0.9121676068 | J187: 0.03706688155 | K187: 963 | L187: 169 | M187: 36 | N187: 22 | O187: 24 | P187: 27
A188: Q75 | B188: RVY | C188: SOUTHPORT AND ORMSKIRK HOSPITAL NHS TRUST | D188: RVY02 | E188: Ormskirk and District General Hospital - RVY02 | F188: 478 | G188: 1666 | H188: 0.2869147659 | I188: 0.9790794979 | J188: 0.006276150628 | K188: 412 | L188: 56 | M188: 5 | N188: 2 | O188: 1 | P188: 2
A189: Q75 | B189: RVY | C189: SOUTHPORT AND ORMSKIRK HOSPITAL NHS TRUST | D189: RVY01 | E189: Southport and Formby District General Hospital - RVY01 | F189: 459 | G189: 2004 | H189: 0.2290419162 | I189: 0.9389978214 | J189: 0.02178649237 | K189: 356 | L189: 75 | M189: 11 | N189: 7 | O189: 3 | P189: 7
A190: Q75 | B190: RBN | C190: ST HELENS AND KNOWSLEY HOSPITALS NHS TRUST | D190: RBN02 | E190: St Helens Hospital - RBN02 | F190: 1 | G190: 2 | H190: 0.5 | I190: * | J190: * | K190: * | L190: * | M190: * | N190: * | O190: * | P190: *
A191: Q75 | B191: RBN | C191: ST HELENS AND KNOWSLEY HOSPITALS NHS TRUST | D191: RBN01 | E191: Whiston Hospital - RBN01 | F191: 564 | G191: 2007 | H191: 0.2810164425 | I191: 0.9680851064 | J191: 0.01418439716 | K191: * | L191: * | M191: * | N191: * | O191: * | P191: *
A192: Q75 | B192: REN | C192: THE CLATTERBRIDGE CANCER CENTRE NHS FOUNDATION TRUST | D192: REN20 | E192: The Clatterbridge Cancer Centre - REN20 | F192: 77 | G192: 330 | H192: 0.2333333333 | I192: 0.974025974 | J192: 0 | K192: 69 | L192: 6 | M192: 0 | N192: 0 | O192: 0 | P192: 2
A193: Q75 | B193: RET | C193: THE WALTON CENTRE NHS FOUNDATION TRUST | D193: RET20 | E193: The Walton Centre For Neurology and Neurosurgery NHS Trust - RET20 | F193: 460 | G193: 1014 | H193: 0.4536489152 | I193: 0.9804347826 | J193: 0.008695652174 | K193: 418 | L193: 33 | M193: 5 | N193: 2 | O193: 2 | P193: 0
A194: Q75 | B194: RWW | C194: WARRINGTON AND HALTON HOSPITALS NHS FOUNDATION TRUST | D194: RWWHG | E194: Halton Hospital - RWWHG | F194: 921 | G194: 1571 | H194: 0.5862507957 | I194: 0.9923995657 | J194: 0.00217155266 | K194: 864 | L194: 50 | M194: 1 | N194: 0 | O194: 2 | P194: 4
A195: Q75 | B195: RWW | C195: WARRINGTON AND HALTON HOSPITALS NHS FOUNDATION TRUST | D195: RWWWH | E195: Warrington Hospital - RWWWH | F195: 1669 | G195: 3469 | H195: 0.4811184779 | I195: 0.9550629119 | J195: 0.01138406231 | K195: 1323 | L195: 271 | M195: 32 | N195: 8 | O195: 11 | P195: 24
A196: Q75 | B196: RBL | C196: WIRRAL UNIVERSITY TEACHING HOSPITAL NHS FOUNDATION TRUST | D196: RBL14 | E196: Arrowe Park Hospital - RBL14 | F196: 1167 | G196: 4830 | H196: 0.2416149068 | I196: 0.9674378749 | J196: 0.01285347044 | K196: 975 | L196: 154 | M196: 18 | N196: 9 | O196: 6 | P196: 5
A197: Q75 | B197: RBL | C197: WIRRAL UNIVERSITY TEACHING HOSPITAL NHS FOUNDATION TRUST | D197: RBL20 | E197: Clatterbridge Hospital - RBL20 | F197: 137 | G197: 1079 | H197: 0.1269694161 | I197: 0.9781021898 | J197: 0 | K197: 122 | L197: 12 | M197: 3 | N197: 0 | O197: 0 | P197: 0
A198: Q76 | B198: RJF | C198: BURTON HOSPITALS NHS FOUNDATION TRUST | D198: RJF02 | E198: Queen's Hospital, Burton Upon Trent - RJF02 | F198: 850 | G198: 3854 | H198: 0.2205500778 | I198: 0.9741176471 | J198: 0.008235294118 | K198: 726 | L198: 102 | M198: 6 | N198: 1 | O198: 6 | P198: 9
A199: Q76 | B199: RFS | C199: CHESTERFIELD ROYAL HOSPITAL NHS FOUNDATION TRUST | D199: RFSDA | E199: Chesterfield Royal Hospital - RFSDA | F199: 804 | G199: 3047 | H199: 0.2638660978 | I199: 0.9589552239 | J199: 0.01119402985 | K199: 639 | L199: 132 | M199: 15 | N199: 4 | O199: 5 | P199: 9
A200: Q76 | B200: RTG | C200: DERBY TEACHING HOSPITALS NHS FOUNDATION TRUST | D200: RTGFA | E200: London Road Community Hospital - RTGFA | F200: 40 | G200: 90 | H200: 0.4444444444 | I200: 0.9 | J200: 0.025 | K200: 29 | L200: 7 | M200: 3 | N200: 1 | O200: 0 | P200: 0
A201: Q76 | B201: RTG | C201: DERBY TEACHING HOSPITALS NHS FOUNDATION TRUST | D201: RTGFG | E201: Royal Derby Hospital - RTGFG | F201: 2943 | G201: 13246 | H201: 0.2221802808 | I201: 0.9408766565 | J201: 0.02140672783 | K201: 2332 | L201: 437 | M201: 69 | N201: 27 | O201: 36 | P201: 42
A202: Q76 | B202: RX1 | C202: NOTTINGHAM UNIVERSITY HOSPITALS NHS TRUST | D202: RX1CC | E202: Nottingham University Hospitals NHS Trust - City Campus - RX1CC | F202: 1799 | G202: 3456 | H202: 0.5205439815 | I202: 0.9649805447 | J202: 0.00611450806 | K202: 1497 | L202: 239 | M202: 19 | N202: 6 | O202: 5 | P202: 33
A203: Q76 | B203: RX1 | C203: NOTTINGHAM UNIVERSITY HOSPITALS NHS TRUST | D203: RX1RA | E203: Nottingham University Hospitals NHS Trust - Queen's Medical Centre Campus - RX1RA | F203: 2939 | G203: 7370 | H203: 0.3987788331 | I203: 0.960190541 | J203: 0.01020755359 | K203: 2473 | L203: 349 | M203: 38 | N203: 16 | O203: 14 | P203: 49
A204: Q76 | B204: RK5 | C204: SHERWOOD FOREST HOSPITALS NHS FOUNDATION TRUST | D204: RK5BC | E204: King's Mill Hospital - RK5BC | F204: 638 | G204: 5417 | H204: 0.1177773675 | I204: 0.9686520376 | J204: 0.007836990596 | K204: 534 | L204: 84 | M204: 10 | N204: 1 | O204: 4 | P204: 5
A205: Q76 | B205: RK5 | C205: SHERWOOD FOREST HOSPITALS NHS FOUNDATION TRUST | D205: RK5BL | E205: Mansfield Community Hospital - RK5BL | F205: 42 | G205: 52 | H205: 0.8076923077 | I205: 0.9047619048 | J205: 0.02380952381 | K205: 36 | L205: 2 | M205: 1 | N205: 1 | O205: 0 | P205: 2
A206: Q76 | B206: RK5 | C206: SHERWOOD FOREST HOSPITALS NHS FOUNDATION TRUST | D206: RK5HP | E206: Newark Hospital - RK5HP | F206: 158 | G206: 656 | H206: 0.2408536585 | I206: 0.9746835443 | J206: 0.0253164557 | K206: 111 | L206: 43 | M206: 0 | N206: 4 | O206: 0 | P206: 0
A207: Q76 | B207: RXW | C207: SHREWSBURY AND TELFORD HOSPITAL NHS TRUST | D207: RXWAS | E207: Royal Shrewsbury Hospital - RXWAS | F207: 498 | G207: 3389 | H207: 0.1469460018 | I207: 0.9558232932 | J207: 0.0140562249 | K207: 415 | L207: 61 | M207: 4 | N207: 2 | O207: 5 | P207: 11
A208: Q76 | B208: RXW | C208: SHREWSBURY AND TELFORD HOSPITAL NHS TRUST | D208: RXWAT | E208: The Princess Royal Hospital - RXWAT | F208: 619 | G208: 3354 | H208: 0.1845557543 | I208: 0.9725363489 | J208: 0.0113085622 | K208: 537 | L208: 65 | M208: 4 | N208: 2 | O208: 5 | P208: 6
... 307 more rows

Sheet Wards
A10: Region (Geo) Code | B10: Trust Code | C10: Trust Name | D10: Site Code | E10: Site Name | F10: Ward Name | G10: Total Responses | H10: Total Eligible | I10: Response Rate | J10: Percentage Recommended | K10: Percentage Not Recommended | L10: Breakdown of Responses | R10: First Speciality | S10: Second Speciality
L11: Extremely Likely | M11: Likely | N11: Neither | O11: Unlikely | P11: Extremely Unlikely | Q11: Don't Know
F12: England (including Independent Sector Providers) | G12: 223848 | H12: 890562 | I12: 0.2513558854 | J12: 0.9557601587 | K12: 0.01521568207 | L12: 178476 | M12: 35469 | N12: 4172 | O12: 1613 | P12: 1793 | Q12: 2325 | R12: - | S12: -
F13: England (excluding Independent Sector Providers) | G13: 207844 | H13: 846924 | I13: 0.2454104501 | J13: 0.9533688728 | K13: 0.01601682031 | L13: 163859 | M13: 34293 | N13: 4103 | O13: 1597 | P13: 1732 | Q13: 2260 | R13: - | S13: -
F14: Selection (excluding suppressed data) | G14: =SUBTOTAL(9,G15:G6000) -> 222322 | H14: =SUBTOTAL(9,H15:H6000) -> 886302 | I14: =IFERROR(G14/H14, "NA") -> 0.2508422637 | J14: =IFERROR((L14+M14)/SUM(L14:Q14), "-") -> 0.9557836611 | K14: =IFERROR((O14+P14)/SUM(L14:Q14), "-") -> 0.01517160313 | L14: =SUBTOTAL(9,L15:L6000) -> 174871 | M14: 34913 | N14: 4084 | O14: 1576 | P14: 1754 | Q14: 2291 | R14: - | S14: -
A15: Q70 | B15: RBD | C15: DORSET COUNTY HOSPITAL NHS FOUNDATION TRUST | D15: RBD01 | E15: Dorset County Hospital - RBD01 | F15: Abbotsbury | G15: 125 | H15: 220 | I15: 0.5681818182 | J15: 0.96 | K15: 0.008 | L15: 97 | M15: 23 | N15: 3 | O15: 0 | P15: 1 | Q15: 1 | R15: 100 - GENERAL SURGERY | S15: 0
A16: Q70 | B16: RBD | C16: DORSET COUNTY HOSPITAL NHS FOUNDATION TRUST | D16: RBD01 | E16: Dorset County Hospital - RBD01 | F16: Barnes | G16: 30 | H16: 60 | I16: 0.5 | J16: 0.8666666667 | K16: 0.03333333333 | L16: 19 | M16: 7 | N16: 0 | O16: 1 | P16: 0 | Q16: 3 | R16: 430 - GERIATRIC MEDICINE | S16: 0
A17: Q70 | B17: RBD | C17: DORSET COUNTY HOSPITAL NHS FOUNDATION TRUST | D17: RBD01 | E17: Dorset County Hospital - RBD01 | F17: Day Lewis | G17: 13 | H17: 57 | I17: 0.2280701754 | J17: 1 | K17: 0 | L17: 10 | M17: 3 | N17: 0 | O17: 0 | P17: 0 | Q17: 0 | R17: 430 - GERIATRIC MEDICINE | S17: 300 - GENERAL MEDICINE
A18: Q70 | B18: RBD | C18: DORSET COUNTY HOSPITAL NHS FOUNDATION TRUST | D18: RBD01 | E18: Dorset County Hospital - RBD01 | F18: Fortuneswell | G18: 12 | H18: 49 | I18: 0.2448979592 | J18: 1 | K18: 0 | L18: * | M18: * | N18: * | O18: * | P18: * | Q18: * | R18: 823 - HAEMATOLOGY | S18: 300 - GENERAL MEDICINE
A19: Q70 | B19: RBD | C19: DORSET COUNTY HOSPITAL NHS FOUNDATION TRUST | D19: RBD01 | E19: Dorset County Hospital - RBD01 | F19: HDU/ITU | G19: 0 | H19: 6 | I19: 0 | J19: NA | K19: NA | L19: 0 | M19: 0 | N19: 0 | O19: 0 | P19: 0 | Q19: 0 | R19: 300 - GENERAL MEDICINE | S19: 100 - GENERAL SURGERY
A20: Q70 | B20: RBD | C20: DORSET COUNTY HOSPITAL NHS FOUNDATION TRUST | D20: RBD01 | E20: Dorset County Hospital - RBD01 | F20: Hinton | G20: 17 | H20: 60 | I20: 0.2833333333 | J20: 1 | K20: 0 | L20: 16 | M20: 1 | N20: 0 | O20: 0 | P20: 0 | Q20: 0 | R20: 300 - GENERAL MEDICINE | S20: 0
A21: Q70 | B21: RBD | C21: DORSET COUNTY HOSPITAL NHS FOUNDATION TRUST | D21: RBD01 | E21: Dorset County Hospital - RBD01 | F21: Ilchester Integrated Assessment Unit | G21: 53 | H21: 168 | I21: 0.3154761905 | J21: 0.9622641509 | K21: 0 | L21: 49 | M21: 2 | N21: 2 | O21: 0 | P21: 0 | Q21: 0 | R21: 300 - GENERAL MEDICINE | S21: 0
A22: Q70 | B22: RBD | C22: DORSET COUNTY HOSPITAL NHS FOUNDATION TRUST | D22: RBD01 | E22: Dorset County Hospital - RBD01 | F22: Kingfisher | G22: 4 | H22: 129 | I22: 0.03100775194 | J22: * | K22: * | L22: * | M22: * | N22: * | O22: * | P22: * | Q22: * | R22: 420 - PAEDIATRICS | S22: 0
A23: Q70 | B23: RBD | C23: DORSET COUNTY HOSPITAL NHS FOUNDATION TRUST | D23: RBD01 | E23: Dorset County Hospital - RBD01 | F23: Lulworth | G23: 64 | H23: 146 | I23: 0.4383561644 | J23: 0.984375 | K23: 0 | L23: 56 | M23: 7 | N23: 1 | O23: 0 | P23: 0 | Q23: 0 | R23: 100 - GENERAL SURGERY | S23: 101 - UROLOGY
A24: Q70 | B24: RBD | C24: DORSET COUNTY HOSPITAL NHS FOUNDATION TRUST | D24: RBD01 | E24: Dorset County Hospital - RBD01 | F24: Maud Alex/CCU | G24: 52 | H24: 52 | I24: 1 | J24: 1 | K24: 0 | L24: 52 | M24: 0 | N24: 0 | O24: 0 | P24: 0 | Q24: 0 | R24: 320 - CARDIOLOGY | S24: 300 - GENERAL MEDICINE
A25: Q70 | B25: RBD | C25: DORSET COUNTY HOSPITAL NHS FOUNDATION TRUST | D25: RBD01 | E25: Dorset County Hospital - RBD01 | F25: Moreton | G25: 41 | H25: 82 | I25: 0.5 | J25: 0.9756097561 | K25: 0 | L25: 36 | M25: 4 | N25: 0 | O25: 0 | P25: 0 | Q25: 1 | R25: 300 - GENERAL MEDICINE | S25: 301 - GASTROENTEROLOGY
A26: Q70 | B26: RBD | C26: DORSET COUNTY HOSPITAL NHS FOUNDATION TRUST | D26: RBD01 | E26: Dorset County Hospital - RBD01 | F26: POW | G26: 21 | H26: 49 | I26: 0.4285714286 | J26: 1 | K26: 0 | L26: 18 | M26: 3 | N26: 0 | O26: 0 | P26: 0 | Q26: 0 | R26: 361 - NEPHROLOGY | S26: 300 - GENERAL MEDICINE
A27: Q70 | B27: RBD | C27: DORSET COUNTY HOSPITAL NHS FOUNDATION TRUST | D27: RBD01 | E27: Dorset County Hospital - RBD01 | F27: Purbeck | G27: 16 | H27: 73 | I27: 0.2191780822 | J27: 1 | K27: 0 | L27: 16 | M27: 0 | N27: 0 | O27: 0 | P27: 0 | Q27: 0 | R27: 110 - TRAUMA & ORTHOPAEDICS | S27: 100 - GENERAL SURGERY
A28: Q70 | B28: RBD | C28: DORSET COUNTY HOSPITAL NHS FOUNDATION TRUST | D28: RBD01 | E28: Dorset County Hospital - RBD01 | F28: Ridgeway | G28: 110 | H28: 141 | I28: 0.780141844 | J28: 0.9909090909 | K28: 0 | L28: 101 | M28: 8 | N28: 0 | O28: 0 | P28: 0 | Q28: 1 | R28: 110 - TRAUMA & ORTHOPAEDICS | S28: 101 - UROLOGY
A29: Q70 | B29: RBD | C29: DORSET COUNTY HOSPITAL NHS FOUNDATION TRUST | D29: RBD01 | E29: Dorset County Hospital - RBD01 | F29: Stroke Unit | G29: 12 | H29: 36 | I29: 0.3333333333 | J29: 1 | K29: 0 | L29: 10 | M29: 2 | N29: 0 | O29: 0 | P29: 0 | Q29: 0 | R29: 430 - GERIATRIC MEDICINE | S29: 300 - GENERAL MEDICINE
A30: Q70 | B30: RN5 | C30: HAMPSHIRE HOSPITALS NHS FOUNDATION TRUST | D30: RN542 | E30: Andover War Memorial Hospital - RN542 | F30: Daycases | G30: 76 | H30: 198 | I30: 0.3838383838 | J30: 0.9605263158 | K30: 0.01315789474 | L30: 65 | M30: 8 | N30: 1 | O30: 1 | P30: 0 | Q30: 1 | R30: 0 | S30: 0
A31: Q70 | B31: RN5 | C31: HAMPSHIRE HOSPITALS NHS FOUNDATION TRUST | D31: RN542 | E31: Andover War Memorial Hospital - RN542 | F31: Kingfisher IP | G31: 12 | H31: 22 | I31: 0.5454545455 | J31: 0.9166666667 | K31: 0 | L31: 6 | M31: 5 | N31: 0 | O31: 0 | P31: 0 | Q31: 1 | R31: 300 - GENERAL MEDICINE | S31: 0
A32: Q70 | B32: RN5 | C32: HAMPSHIRE HOSPITALS NHS FOUNDATION TRUST | D32: RN506 | E32: Basingstoke and North Hampshire Hospital - RN506 | F32: AAU IP | G32: 49 | H32: 236 | I32: 0.2076271186 | J32: 0.8775510204 | K32: 0.0612244898 | L32: 37 | M32: 6 | N32: 1 | O32: 1 | P32: 2 | Q32: 2 | R32: 300 - GENERAL MEDICINE | S32: 0
A33: Q70 | B33: RN5 | C33: HAMPSHIRE HOSPITALS NHS FOUNDATION TRUST | D33: RN506 | E33: Basingstoke and North Hampshire Hospital - RN506 | F33: C2 IP | G33: 15 | H33: 69 | I33: 0.2173913043 | J33: 1 | K33: 0 | L33: 11 | M33: 4 | N33: 0 | O33: 0 | P33: 0 | Q33: 0 | R33: 100 - GENERAL SURGERY | S33: 0
A34: Q70 | B34: RN5 | C34: HAMPSHIRE HOSPITALS NHS FOUNDATION TRUST | D34: RN506 | E34: Basingstoke and North Hampshire Hospital - RN506 | F34: C3 IP | G34: 40 | H34: 146 | I34: 0.2739726027 | J34: 1 | K34: 0 | L34: 37 | M34: 3 | N34: 0 | O34: 0 | P34: 0 | Q34: 0 | R34: 100 - GENERAL SURGERY | S34: 0
A35: Q70 | B35: RN5 | C35: HAMPSHIRE HOSPITALS NHS FOUNDATION TRUST | D35: RN506 | E35: Basingstoke and North Hampshire Hospital - RN506 | F35: C4 IP | G35: 24 | H35: 72 | I35: 0.3333333333 | J35: 1 | K35: 0 | L35: 20 | M35: 4 | N35: 0 | O35: 0 | P35: 0 | Q35: 0 | R35: 100 - GENERAL SURGERY | S35: 0
A36: Q70 | B36: RN5 | C36: HAMPSHIRE HOSPITALS NHS FOUNDATION TRUST | D36: RN506 | E36: Basingstoke and North Hampshire Hospital - RN506 | F36: CCU IP | G36: 72 | H36: 137 | I36: 0.5255474453 | J36: 0.9583333333 | K36: 0 | L36: 60 | M36: 9 | N36: 2 | O36: 0 | P36: 0 | Q36: 1 | R36: 320 - CARDIOLOGY | S36: 0
A37: Q70 | B37: RN5 | C37: HAMPSHIRE HOSPITALS NHS FOUNDATION TRUST | D37: RN506 | E37: Basingstoke and North Hampshire Hospital - RN506 | F37: D1 IP | G37: 77 | H37: 128 | I37: 0.6015625 | J37: 0.961038961 | K37: 0.01298701299 | L37: 60 | M37: 14 | N37: 1 | O37: 1 | P37: 0 | Q37: 1 | R37: 110 - TRAUMA & ORTHOPAEDICS | S37: 0
A38: Q70 | B38: RN5 | C38: HAMPSHIRE HOSPITALS NHS FOUNDATION TRUST | D38: RN506 | E38: Basingstoke and North Hampshire Hospital - RN506 | F38: D3 IP | G38: 11 | H38: 49 | I38: 0.2244897959 | J38: 1 | K38: 0 | L38: 9 | M38: 2 | N38: 0 | O38: 0 | P38: 0 | Q38: 0 | R38: 110 - TRAUMA & ORTHOPAEDICS | S38: 0
A39: Q70 | B39: RN5 | C39: HAMPSHIRE HOSPITALS NHS FOUNDATION TRUST | D39: RN506 | E39: Basingstoke and North Hampshire Hospital - RN506 | F39: D4 IP | G39: 2 | H39: 47 | I39: 0.04255319149 | J39: * | K39: * | L39: * | M39: * | N39: * | O39: * | P39: * | Q39: * | R39: 110 - TRAUMA & ORTHOPAEDICS | S39: 0
A40: Q70 | B40: RN5 | C40: HAMPSHIRE HOSPITALS NHS FOUNDATION TRUST | D40: RN506 | E40: Basingstoke and North Hampshire Hospital - RN506 | F40: Daycases | G40: 415 | H40: 2431 | I40: 0.1707116413 | J40: 0.9397590361 | K40: 0.02891566265 | L40: 327 | M40: 63 | N40: 10 | O40: 9 | P40: 3 | Q40: 3 | R40: 0 | S40: 0
A41: Q70 | B41: RN5 | C41: HAMPSHIRE HOSPITALS NHS FOUNDATION TRUST | D41: RN506 | E41: Basingstoke and North Hampshire Hospital - RN506 | F41: DTCW IP | G41: 54 | H41: 83 | I41: 0.6506024096 | J41: 0.9814814815 | K41: 0 | L41: 46 | M41: 7 | N41: 1 | O41: 0 | P41: 0 | Q41: 0 | R41: 100 - GENERAL SURGERY | S41: 0
A42: Q70 | B42: RN5 | C42: HAMPSHIRE HOSPITALS NHS FOUNDATION TRUST | D42: RN506 | E42: Basingstoke and North Hampshire Hospital - RN506 | F42: E1 IP | G42: 9 | H42: 38 | I42: 0.2368421053 | J42: 1 | K42: 0 | L42: 6 | M42: 3 | N42: 0 | O42: 0 | P42: 0 | Q42: 0 | R42: 300 - GENERAL MEDICINE | S42: 0
A43: Q70 | B43: RN5 | C43: HAMPSHIRE HOSPITALS NHS FOUNDATION TRUST | D43: RN506 | E43: Basingstoke and North Hampshire Hospital - RN506 | F43: E2 IP | G43: 18 | H43: 33 | I43: 0.5454545455 | J43: 0.8333333333 | K43: 0 | L43: 10 | M43: 5 | N43: 3 | O43: 0 | P43: 0 | Q43: 0 | R43: 300 - GENERAL MEDICINE | S43: 0
A44: Q70 | B44: RN5 | C44: HAMPSHIRE HOSPITALS NHS FOUNDATION TRUST | D44: RN506 | E44: Basingstoke and North Hampshire Hospital - RN506 | F44: E3 IP | G44: 11 | H44: 69 | I44: 0.1594202899 | J44: 1 | K44: 0 | L44: 10 | M44: 1 | N44: 0 | O44: 0 | P44: 0 | Q44: 0 | R44: 300 - GENERAL MEDICINE | S44: 0
A45: Q70 | B45: RN5 | C45: HAMPSHIRE HOSPITALS NHS FOUNDATION TRUST | D45: RN506 | E45: Basingstoke and North Hampshire Hospital - RN506 | F45: E4 IP | G45: 10 | H45: 37 | I45: 0.2702702703 | J45: 1 | K45: 0 | L45: 9 | M45: 1 | N45: 0 | O45: 0 | P45: 0 | Q45: 0 | R45: 320 - CARDIOLOGY | S45: 0
A46: Q70 | B46: RN5 | C46: HAMPSHIRE HOSPITALS NHS FOUNDATION TRUST | D46: RN506 | E46: Basingstoke and North Hampshire Hospital - RN506 | F46: EIW IP | G46: 0 | H46: 2 | I46: 0 | J46: NA | K46: NA | L46: 0 | M46: 0 | N46: 0 | O46: 0 | P46: 0 | Q46: 0 | R46: 300 - GENERAL MEDICINE | S46: 0
A47: Q70 | B47: RN5 | C47: HAMPSHIRE HOSPITALS NHS FOUNDATION TRUST | D47: RN506 | E47: Basingstoke and North Hampshire Hospital - RN506 | F47: F1 IP | G47: 26 | H47: 25 | I47: 1.04 | J47: 0.9230769231 | K47: 0.03846153846 | L47: 22 | M47: 2 | N47: 0 | O47: 0 | P47: 1 | Q47: 1 | R47: 314 - REHABILITATION | S47: 0
A48: Q70 | B48: RN5 | C48: HAMPSHIRE HOSPITALS NHS FOUNDATION TRUST | D48: RN506 | E48: Basingstoke and North Hampshire Hospital - RN506 | F48: F2 IP | G48: 7 | H48: 14 | I48: 0.5 | J48: 1 | K48: 0 | L48: 6 | M48: 1 | N48: 0 | O48: 0 | P48: 0 | Q48: 0 | R48: 430 - GERIATRIC MEDICINE | S48: 0
A49: Q70 | B49: RN5 | C49: HAMPSHIRE HOSPITALS NHS FOUNDATION TRUST | D49: RN506 | E49: Basingstoke and North Hampshire Hospital - RN506 | F49: F3 IP | G49: 5 | H49: 24 | I49: 0.2083333333 | J49: 1 | K49: 0 | L49: * | M49: * | N49: * | O49: * | P49: * | Q49: * | R49: 430 - GERIATRIC MEDICINE | S49: 0
A50: Q70 | B50: RN5 | C50: HAMPSHIRE HOSPITALS NHS FOUNDATION TRUST | D50: RN506 | E50: Basingstoke and North Hampshire Hospital - RN506 | F50: FIRS IP | G50: 11 | H50: 25 | I50: 0.44 | J50: 0.9090909091 | K50: 0.09090909091 | L50: 5 | M50: 5 | N50: 0 | O50: 0 | P50: 1 | Q50: 0 | R50: 430 - GERIATRIC MEDICINE | S50: 0
A51: Q70 | B51: RN5 | C51: HAMPSHIRE HOSPITALS NHS FOUNDATION TRUST | D51: RN506 | E51: Basingstoke and North Hampshire Hospital - RN506 | F51: GWRD IP | G51: 74 | H51: 290 | I51: 0.2551724138 | J51: 0.9864864865 | K51: 0.01351351351 | L51: 71 | M51: 2 | N51: 0 | O51: 0 | P51: 1 | Q51: 0 | R51: 420 - PAEDIATRICS | S51: 0
A52: Q70 | B52: RN5 | C52: HAMPSHIRE HOSPITALS NHS FOUNDATION TRUST | D52: RN506 | E52: Basingstoke and North Hampshire Hospital - RN506 | F52: SSW IP | G52: 15 | H52: 157 | I52: 0.09554140127 | J52: 0.8666666667 | K52: 0.1333333333 | L52: 11 | M52: 2 | N52: 0 | O52: 1 | P52: 1 | Q52: 0 | R52: 180 - ACCIDENT & EMERGENCY | S52: 0
A53: Q70 | B53: RN5 | C53: HAMPSHIRE HOSPITALS NHS FOUNDATION TRUST | D53: RN506 | E53: Basingstoke and North Hampshire Hospital - RN506 | F53: Wessex WX IP | G53: 0 | H53: 20 | I53: 0 | J53: NA | K53: NA | L53: 0 | M53: 0 | N53: 0 | O53: 0 | P53: 0 | Q53: 0 | R53: 823 - HAEMATOLOGY | S53: 0
A54: Q70 | B54: RN5 | C54: HAMPSHIRE HOSPITALS NHS FOUNDATION TRUST | D54: RN506 | E54: Basingstoke and North Hampshire Hospital - RN506 | F54: WHU IP | G54: 39 | H54: 111 | I54: 0.3513513514 | J54: 0.9743589744 | K54: 0 | L54: 35 | M54: 3 | N54: 1 | O54: 0 | P54: 0 | Q54: 0 | R54: 502 - GYNAECOLOGY | S54: 0
A55: Q70 | B55: RN5 | C55: HAMPSHIRE HOSPITALS NHS FOUNDATION TRUST | D55: RN541 | E55: Royal Hampshire County Hospital - RN541 | F55: ATL IP | G55: 45 | H55: 158 | I55: 0.2848101266 | J55: 1 | K55: 0 | L55: 43 | M55: 2 | N55: 0 | O55: 0 | P55: 0 | Q55: 0 | R55: 502 - GYNAECOLOGY | S55: 0
A56: Q70 | B56: RN5 | C56: HAMPSHIRE HOSPITALS NHS FOUNDATION TRUST | D56: RN541 | E56: Royal Hampshire County Hospital - RN541 | F56: Bartlett IP | G56: 19 | H56: 29 | I56: 0.6551724138 | J56: 0.9473684211 | K56: 0 | L56: 13 | M56: 5 | N56: 1 | O56: 0 | P56: 0 | Q56: 0 | R56: 110 - TRAUMA & ORTHOPAEDICS | S56: 0
A57: Q70 | B57: RN5 | C57: HAMPSHIRE HOSPITALS NHS FOUNDATION TRUST | D57: RN541 | E57: Royal Hampshire County Hospital - RN541 | F57: Clarke IP | G57: 6 | H57: 49 | I57: 0.1224489796 | J57: 0.6666666667 | K57: 0 | L57: 4 | M57: 0 | N57: 2 | O57: 0 | P57: 0 | Q57: 0 | R57: 320 - CARDIOLOGY | S57: 0
A58: Q70 | B58: RN5 | C58: HAMPSHIRE HOSPITALS NHS FOUNDATION TRUST | D58: RN541 | E58: Royal Hampshire County Hospital - RN541 | F58: Clifton IP | G58: 17 | H58: 24 | I58: 0.7083333333 | J58: 0.9411764706 | K58: 0 | L58: 7 | M58: 9 | N58: 1 | O58: 0 | P58: 0 | Q58: 0 | R58: 430 - GERIATRIC MEDICINE | S58: 0
A59: Q70 | B59: RN5 | C59: HAMPSHIRE HOSPITALS NHS FOUNDATION TRUST | D59: RN541 | E59: Royal Hampshire County Hospital - RN541 | F59: Daycases | G59: 376 | H59: 1550 | I59: 0.2425806452 | J59: 0.9494680851 | K59: 0.01595744681 | L59: 299 | M59: 58 | N59: 8 | O59: 3 | P59: 3 | Q59: 5 | R59: 0 | S59: 0
A60: Q70 | B60: RN5 | C60: HAMPSHIRE HOSPITALS NHS FOUNDATION TRUST | D60: RN541 | E60: Royal Hampshire County Hospital - RN541 | F60: Freshfield IP | G60: 15 | H60: 30 | I60: 0.5 | J60: 1 | K60: 0 | L60: 9 | M60: 6 | N60: 0 | O60: 0 | P60: 0 | Q60: 0 | R60: 430 - GERIATRIC MEDICINE | S60: 0
A61: Q70 | B61: RN5 | C61: HAMPSHIRE HOSPITALS NHS FOUNDATION TRUST | D61: RN541 | E61: Royal Hampshire County Hospital - RN541 | F61: Kemp Welch IP | G61: 27 | H61: 76 | I61: 0.3552631579 | J61: 0.962962963 | K61: 0 | L61: 22 | M61: 4 | N61: 1 | O61: 0 | P61: 0 | Q61: 0 | R61: 100 - GENERAL SURGERY | S61: 0
A62: Q70 | B62: RN5 | C62: HAMPSHIRE HOSPITALS NHS FOUNDATION TRUST | D62: RN541 | E62: Royal Hampshire County Hospital - RN541 | F62: McGill AMU IP | G62: 79 | H62: 275 | I62: 0.2872727273 | J62: 0.8987341772 | K62: 0.05063291139 | L62: 53 | M62: 18 | N62: 4 | O62: 1 | P62: 3 | Q62: 0 | R62: 300 - GENERAL MEDICINE | S62: 0
A63: Q70 | B63: RN5 | C63: HAMPSHIRE HOSPITALS NHS FOUNDATION TRUST | D63: RN541 | E63: Royal Hampshire County Hospital - RN541 | F63: Northbrook IP | G63: 3 | H63: 173 | I63: 0.01734104046 | J63: * | K63: * | L63: * | M63: * | N63: * | O63: * | P63: * | Q63: * | R63: 420 - PAEDIATRICS | S63: 0
A64: Q70 | B64: RN5 | C64: HAMPSHIRE HOSPITALS NHS FOUNDATION TRUST | D64: RN541 | E64: Royal Hampshire County Hospital - RN541 | F64: Shawford IP | G64: 10 | H64: 49 | I64: 0.2040816327 | J64: 0.9 | K64: 0 | L64: 9 | M64: 0 | N64: 0 | O64: 0 | P64: 0 | Q64: 1 | R64: 430 - GERIATRIC MEDICINE | S64: 0
A65: Q70 | B65: RN5 | C65: HAMPSHIRE HOSPITALS NHS FOUNDATION TRUST | D65: RN541 | E65: Royal Hampshire County Hospital - RN541 | F65: St Cross IP | G65: 31 | H65: 67 | I65: 0.4626865672 | J65: 0.9677419355 | K65: 0 | L65: 24 | M65: 6 | N65: 1 | O65: 0 | P65: 0 | Q65: 0 | R65: 110 - TRAUMA & ORTHOPAEDICS | S65: 0
A66: Q70 | B66: RN5 | C66: HAMPSHIRE HOSPITALS NHS FOUNDATION TRUST | D66: RN541 | E66: Royal Hampshire County Hospital - RN541 | F66: TC Endo & Sur IP | G66: 23 | H66: 211 | I66: 0.1090047393 | J66: 0.8260869565 | K66: 0 | L66: 16 | M66: 3 | N66: 2 | O66: 0 | P66: 0 | Q66: 2 | R66: 100 - GENERAL SURGERY | S66: 0
A67: Q70 | B67: RN5 | C67: HAMPSHIRE HOSPITALS NHS FOUNDATION TRUST | D67: RN541 | E67: Royal Hampshire County Hospital - RN541 | F67: Twyford IP | G67: 15 | H67: 60 | I67: 0.25 | J67: 1 | K67: 0 | L67: 13 | M67: 2 | N67: 0 | O67: 0 | P67: 0 | Q67: 0 | R67: 300 - GENERAL MEDICINE | S67: 0
A68: Q70 | B68: RN5 | C68: HAMPSHIRE HOSPITALS NHS FOUNDATION TRUST | D68: RN541 | E68: Royal Hampshire County Hospital - RN541 | F68: Victoria IP | G68: 5 | H68: 56 | I68: 0.08928571429 | J68: 0.8 | K68: 0 | L68: * | M68: * | N68: * | O68: * | P68: * | Q68: * | R68: 301 - GASTROENTEROLOGY | S68: 0
A69: Q70 | B69: RN5 | C69: HAMPSHIRE HOSPITALS NHS FOUNDATION TRUST | D69: RN541 | E69: Royal Hampshire County Hospital - RN541 | F69: Wainwright IP | G69: 12 | H69: 41 | I69: 0.2926829268 | J69: 1 | K69: 0 | L69: 10 | M69: 2 | N69: 0 | O69: 0 | P69: 0 | Q69: 0 | R69: 100 - GENERAL SURGERY | S69: 0
A70: Q70 | B70: RN5 | C70: HAMPSHIRE HOSPITALS NHS FOUNDATION TRUST | D70: RN541 | E70: Royal Hampshire County Hospital - RN541 | F70: Wykeham IP | G70: 17 | H70: 23 | I70: 0.7391304348 | J70: 0.8235294118 | K70: 0 | L70: 1 | M70: 13 | N70: 3 | O70: 0 | P70: 0 | Q70: 0 | R70: 300 - GENERAL MEDICINE | S70: 0
A71: Q70 | B71: R1F | C71: ISLE OF WIGHT NHS TRUST | D71: R1F01 | E71: St Mary's Hospital - R1F01 | F71: Alverstone | G71: 30 | H71: 42 | I71: 0.7142857143 | J71: 0.9333333333 | K71: 0.06666666667 | L71: 19 | M71: 9 | N71: 0 | O71: 1 | P71: 1 | Q71: 0 | R71: 110 - TRAUMA & ORTHOPAEDICS | S71: 0
A72: Q70 | B72: R1F | C72: ISLE OF WIGHT NHS TRUST | D72: R1F01 | E72: St Mary's Hospital - R1F01 | F72: Children's Ward | G72: 16 | H72: 84 | I72: 0.1904761905 | J72: 0.9375 | K72: 0 | L72: 13 | M72: 2 | N72: 1 | O72: 0 | P72: 0 | Q72: 0 | R72: 171 - PAEDIATRIC SURGERY | S72: 420 - PAEDIATRICS
A73: Q70 | B73: R1F | C73: ISLE OF WIGHT NHS TRUST | D73: R1F01 | E73: St Mary's Hospital - R1F01 | F73: Colwell | G73: 2 | H73: 59 | I73: 0.03389830508 | J73: * | K73: * | L73: * | M73: * | N73: * | O73: * | P73: * | Q73: * | R73: 300 - GENERAL MEDICINE | S73: 302 - ENDOCRINOLOGY
A74: Q70 | B74: R1F | C74: ISLE OF WIGHT NHS TRUST | D74: R1F01 | E74: St Mary's Hospital - R1F01 | F74: Coronary Care Unit | G74: 37 | H74: 60 | I74: 0.6166666667 | J74: 0.9459459459 | K74: 0 | L74: 33 | M74: 2 | N74: 0 | O74: 0 | P74: 0 | Q74: 2 | R74: 320 - CARDIOLOGY | S74: 300 - GENERAL MEDICINE
A75: Q70 | B75: R1F | C75: ISLE OF WIGHT NHS TRUST | D75: R1F01 | E75: St Mary's Hospital - R1F01 | F75: Daycases | G75: 14 | H75: 577 | I75: 0.02426343154 | J75: 0.9285714286 | K75: 0 | L75: 12 | M75: 1 | N75: 1 | O75: 0 | P75: 0 | Q75: 0 | R75: 0 | S75: 0
A76: Q70 | B76: R1F | C76: ISLE OF WIGHT NHS TRUST | D76: R1F01 | E76: St Mary's Hospital - R1F01 | F76: Luccombe | G76: 67 | H76: 96 | I76: 0.6979166667 | J76: 0.9104477612 | K76: 0 | L76: 46 | M76: 15 | N76: 4 | O76: 0 | P76: 0 | Q76: 2 | R76: 110 - TRAUMA & ORTHOPAEDICS | S76: 100 - GENERAL SURGERY
A77: Q70 | B77: R1F | C77: ISLE OF WIGHT NHS TRUST | D77: R1F01 | E77: St Mary's Hospital - R1F01 | F77: Medical Assessment Unit | G77: 78 | H77: 109 | I77: 0.7155963303 | J77: 0.9615384615 | K77: 0.02564102564 | L77: 50 | M77: 25 | N77: 1 | O77: 0 | P77: 2 | Q77: 0 | R77: 300 - GENERAL MEDICINE | S77: 100 - GENERAL SURGERY
A78: Q70 | B78: R1F | C78: ISLE OF WIGHT NHS TRUST | D78: R1F01 | E78: St Mary's Hospital - R1F01 | F78: Mottistone | G78: 13 | H78: 78 | I78: 0.1666666667 | J78: 0.9230769231 | K78: 0 | L78: 7 | M78: 5 | N78: 1 | O78: 0 | P78: 0 | Q78: 0 | R78: 100 - GENERAL SURGERY | S78: 101 - UROLOGY
A79: Q70 | B79: R1F | C79: ISLE OF WIGHT NHS TRUST | D79: R1F01 | E79: St Mary's Hospital - R1F01 | F79: St Helens | G79: 14 | H79: 70 | I79: 0.2 | J79: 1 | K79: 0 | L79: 14 | M79: 0 | N79: 0 | O79: 0 | P79: 0 | Q79: 0 | R79: 100 - GENERAL SURGERY | S79: 101 - UROLOGY
A80: Q70 | B80: R1F | C80: ISLE OF WIGHT NHS TRUST | D80: R1F01 | E80: St Mary's Hospital - R1F01 | F80: Whippingham | G80: 2 | H80: 63 | I80: 0.03174603175 | J80: * | K80: * | L80: * | M80: * | N80: * | O80: * | P80: * | Q80: * | R80: 100 - GENERAL SURGERY | S80: 300 - GENERAL MEDICINE
A81: Q70 | B81: RD3 | C81: POOLE HOSPITAL NHS FOUNDATION TRUST | D81: RD304 | E81: Poole General Hospital NHS Trust HQ - RD304 | F81: A2 | G81: 0 | H81: 3 | I81: 0 | J81: NA | K81: NA | L81: 0 | M81: 0 | N81: 0 | O81: 0 | P81: 0 | Q81: 0 | R81: 192 - CRITICAL CARE MEDICINE | S81: 0
A82: Q70 | B82: RD3 | C82: POOLE HOSPITAL NHS FOUNDATION TRUST | D82: RD304 | E82: Poole General Hospital NHS Trust HQ - RD304 | F82: A4 | G82: 45 | H82: 86 | I82: 0.523255814 | J82: 0.9333333333 | K82: 0.02222222222 | L82: 37 | M82: 5 | N82: 2 | O82: 1 | P82: 0 | Q82: 0 | R82: 340 - RESPIRATORY MEDICINE | S82: 300 - GENERAL MEDICINE
A83: Q70 | B83: RD3 | C83: POOLE HOSPITAL NHS FOUNDATION TRUST | D83: RD304 | E83: Poole General Hospital NHS Trust HQ - RD304 | F83: A5 | G83: 38 | H83: 73 | I83: 0.5205479452 | J83: 1 | K83: 0 | L83: 36 | M83: 2 | N83: 0 | O83: 0 | P83: 0 | Q83: 0 | R83: 300 - GENERAL MEDICINE | S83: 0
A84: Q70 | B84: RD3 | C84: POOLE HOSPITAL NHS FOUNDATION TRUST | D84: RD304 | E84: Poole General Hospital NHS Trust HQ - RD304 | F84: B2 | G84: 41 | H84: 247 | I84: 0.1659919028 | J84: 0.9512195122 | K84: 0 | L84: 32 | M84: 7 | N84: 2 | O84: 0 | P84: 0 | Q84: 0 | R84: 100 - GENERAL SURGERY | S84: 145 - ORAL & MAXILLO FACIAL SURGERY
A85: Q70 | B85: RD3 | C85: POOLE HOSPITAL NHS FOUNDATION TRUST | D85: RD304 | E85: Poole General Hospital NHS Trust HQ - RD304 | F85: B3 | G85: 19 | H85: 72 | I85: 0.2638888889 | J85: 1 | K85: 0 | L85: 16 | M85: 3 | N85: 0 | O85: 0 | P85: 0 | Q85: 0 | R85: 110 - TRAUMA & ORTHOPAEDICS | S85: 0
A86: Q70 | B86: RD3 | C86: POOLE HOSPITAL NHS FOUNDATION TRUST | D86: RD304 | E86: Poole General Hospital NHS Trust HQ - RD304 | F86: B4 | G86: 98 | H86: 181 | I86: 0.5414364641 | J86: 0.9897959184 | K86: 0 | L86: 85 | M86: 12 | N86: 0 | O86: 0 | P86: 0 | Q86: 1 | R86: 100 - GENERAL SURGERY | S86: 0
A87: Q70 | B87: RD3 | C87: POOLE HOSPITAL NHS FOUNDATION TRUST | D87: RD304 | E87: Poole General Hospital NHS Trust HQ - RD304 | F87: C3 | G87: 33 | H87: 32 | I87: 1.03125 | J87: 0.8787878788 | K87: 0 | L87: 23 | M87: 6 | N87: 2 | O87: 0 | P87: 0 | Q87: 2 | R87: 110 - TRAUMA & ORTHOPAEDICS | S87: 0
A88: Q70 | B88: RD3 | C88: POOLE HOSPITAL NHS FOUNDATION TRUST | D88: RD304 | E88: Poole General Hospital NHS Trust HQ - RD304 | F88: CCU | G88: 19 | H88: 12 | I88: 1.583333333 | J88: 1 | K88: 0 | L88: 19 | M88: 0 | N88: 0 | O88: 0 | P88: 0 | Q88: 0 | R88: 320 - CARDIOLOGY | S88: 0
A89: Q70 | B89: RD3 | C89: POOLE HOSPITAL NHS FOUNDATION TRUST | D89: RD304 | E89: Poole General Hospital NHS Trust HQ - RD304 | F89: D1 | G89: 2 | H89: 9 | I89: 0.2222222222 | J89: * | K89: * | L89: * | M89: * | N89: * | O89: * | P89: * | Q89: * | R89: 400 - NEUROLOGY | S89: 410 - RHEUMATOLOGY
A90: Q70 | B90: RD3 | C90: POOLE HOSPITAL NHS FOUNDATION TRUST | D90: RD304 | E90: Poole General Hospital NHS Trust HQ - RD304 | F90: Dorset Cancer Centre | G90: 0 | H90: 21 | I90: 0 | J90: NA | K90: NA | L90: 0 | M90: 0 | N90: 0 | O90: 0 | P90: 0 | Q90: 0 | R90: 370 - MEDICAL ONCOLOGY | S90: 0
A91: Q70 | B91: RD3 | C91: POOLE HOSPITAL NHS FOUNDATION TRUST | D91: RD304 | E91: Poole General Hospital NHS Trust HQ - RD304 | F91: DSU | G91: 144 | H91: 552 | I91: 0.2608695652 | J91: 1 | K91: 0 | L91: 132 | M91: 12 | N91: 0 | O91: 0 | P91: 0 | Q91: 0 | R91: 100 - GENERAL SURGERY | S91: 0
A92: Q70 | B92: RD3 | C92: POOLE HOSPITAL NHS FOUNDATION TRUST | D92: RD304 | E92: Poole General Hospital NHS Trust HQ - RD304 | F92: Durlston | G92: 57 | H92: 61 | I92: 0.9344262295 | J92: 1 | K92: 0 | L92: 53 | M92: 4 | N92: 0 | O92: 0 | P92: 0 | Q92: 0 | R92: 823 - HAEMATOLOGY | S92: 800 - CLINICAL ONCOLOGY
A93: Q70 | B93: RD3 | C93: POOLE HOSPITAL NHS FOUNDATION TRUST | D93: RD304 | E93: Poole General Hospital NHS Trust HQ - RD304 | F93: E3 | G93: 29 | H93: 55 | I93: 0.5272727273 | J93: 1 | K93: 0 | L93: 28 | M93: 1 | N93: 0 | O93: 0 | P93: 0 | Q93: 0 | R93: 110 - TRAUMA & ORTHOPAEDICS | S93: 0
A94: Q70 | B94: RD3 | C94: POOLE HOSPITAL NHS FOUNDATION TRUST | D94: RD304 | E94: Poole General Hospital NHS Trust HQ - RD304 | F94: Endoscopy | G94: 164 | H94: 664 | I94: 0.2469879518 | J94: 0.993902439 | K94: 0 | L94: 155 | M94: 8 | N94: 0 | O94: 0 | P94: 0 | Q94: 1 | R94: 326 - ACUTE INTERNAL MEDICINE | S94: 0
A95: Q70 | B95: RD3 | C95: POOLE HOSPITAL NHS FOUNDATION TRUST | D95: RD304 | E95: Poole General Hospital NHS Trust HQ - RD304 | F95: Forest Holme | G95: 8 | H95: 11 | I95: 0.7272727273 | J95: 1 | K95: 0 | L95: 7 | M95: 1 | N95: 0 | O95: 0 | P95: 0 | Q95: 0 | R95: 315 - PALLIATIVE MEDICINE | S95: 0
A96: Q70 | B96: RD3 | C96: POOLE HOSPITAL NHS FOUNDATION TRUST | D96: RD304 | E96: Poole General Hospital NHS Trust HQ - RD304 | F96: Kimmeridge | G96: 18 | H96: 32 | I96: 0.5625 | J96: 1 | K96: 0 | L96: 13 | M96: 5 | N96: 0 | O96: 0 | P96: 0 | Q96: 0 | R96: 430 - GERIATRIC MEDICINE | S96: 0
A97: Q70 | B97: RD3 | C97: POOLE HOSPITAL NHS FOUNDATION TRUST | D97: RD304 | E97: Poole General Hospital NHS Trust HQ - RD304 | F97: Lilliput | G97: 26 | H97: 31 | I97: 0.8387096774 | J97: 1 | K97: 0 | L97: 24 | M97: 2 | N97: 0 | O97: 0 | P97: 0 | Q97: 0 | R97: 430 - GERIATRIC MEDICINE | S97: 0
A98: Q70 | B98: RD3 | C98: POOLE HOSPITAL NHS FOUNDATION TRUST | D98: RD304 | E98: Poole General Hospital NHS Trust HQ - RD304 | F98: Lulworth | G98: 25 | H98: 28 | I98: 0.8928571429 | J98: 1 | K98: 0 | L98: 21 | M98: 4 | N98: 0 | O98: 0 | P98: 0 | Q98: 0 | R98: 430 - GERIATRIC MEDICINE | S98: 0
A99: Q70 | B99: RD3 | C99: POOLE HOSPITAL NHS FOUNDATION TRUST | D99: RD304 | E99: Poole General Hospital NHS Trust HQ - RD304 | F99: Lytchett | G99: 16 | H99: 27 | I99: 0.5925925926 | J99: 0.9375 | K99: 0 | L99: 13 | M99: 2 | N99: 0 | O99: 0 | P99: 0 | Q99: 1 | R99: 430 - GERIATRIC MEDICINE | S99: 0
A100: Q70 | B100: RD3 | C100: POOLE HOSPITAL NHS FOUNDATION TRUST | D100: RD304 | E100: Poole General Hospital NHS Trust HQ - RD304 | F100: MIU | G100: 0 | H100: 575 | I100: 0 | J100: NA | K100: NA | L100: 0 | M100: 0 | N100: 0 | O100: 0 | P100: 0 | Q100: 0 | R100: 300 - GENERAL MEDICINE | S100: 0
A101: Q70 | B101: RD3 | C101: POOLE HOSPITAL NHS FOUNDATION TRUST | D101: RD304 | E101: Poole General Hospital NHS Trust HQ - RD304 | F101: Sandbanks | G101: 46 | H101: 87 | I101: 0.5287356322 | J101: 1 | K101: 0 | L101: 41 | M101: 5 | N101: 0 | O101: 0 | P101: 0 | Q101: 0 | R101: 370 - MEDICAL ONCOLOGY | S101: 0
A102: Q70 | B102: RD3 | C102: POOLE HOSPITAL NHS FOUNDATION TRUST | D102: RD304 | E102: Poole General Hospital NHS Trust HQ - RD304 | F102: SCUA | G102: 48 | H102: 56 | I102: 0.8571428571 | J102: 1 | K102: 0 | L102: 42 | M102: 6 | N102: 0 | O102: 0 | P102: 0 | Q102: 0 | R102: 300 - GENERAL MEDICINE | S102: 0
A103: Q70 | B103: RD3 | C103: POOLE HOSPITAL NHS FOUNDATION TRUST | D103: RD304 | E103: Poole General Hospital NHS Trust HQ - RD304 | F103: SCUR | G103: 4 | H103: 12 | I103: 0.3333333333 | J103: * | K103: * | L103: * | M103: * | N103: * | O103: * | P103: * | Q103: * | R103: 430 - GERIATRIC MEDICINE | S103: 0
A104: Q70 | B104: RD3 | C104: POOLE HOSPITAL NHS FOUNDATION TRUST | D104: RD304 | E104: Poole General Hospital NHS Trust HQ - RD304 | F104: SSSU | G104: 0 | H104: 29 | I104: 0 | J104: NA | K104: NA | L104: 0 | M104: 0 | N104: 0 | O104: 0 | P104: 0 | Q104: 0 | R104: 100 - GENERAL SURGERY | S104: 0
A105: Q70 | B105: RHU | C105: PORTSMOUTH HOSPITALS NHS TRUST | D105: RHU10 | E105: Gosport War Memorial Hospital - RHU10 | F105: Ark Royal | G105: 14 | H105: 14 | I105: 1 | J105: 0.9285714286 | K105: 0 | L105: 10 | M105: 3 | N105: 1 | O105: 0 | P105: 0 | Q105: 0 | R105: 430 - GERIATRIC MEDICINE | S105: 0
A106: Q70 | B106: RHU | C106: PORTSMOUTH HOSPITALS NHS TRUST | D106: RHU04 | E106: Petersfield Community Hospital - RHU04 | F106: Cedar Ward | G106: 5 | H106: 13 | I106: 0.3846153846 | J106: 1 | K106: 0 | L106: 5 | M106: 0 | N106: 0 | O106: 0 | P106: 0 | Q106: 0 | R106: 430 - GERIATRIC MEDICINE | S106: 0
A107: Q70 | B107: RHU | C107: PORTSMOUTH HOSPITALS NHS TRUST | D107: RHU03 | E107: Queen Alexandra Hospital - RHU03 | F107: A5,6 | G107: 132 | H107: 503 | I107: 0.2624254473 | J107: 0.9393939394 | K107: 0 | L107: 104 | M107: 20 | N107: 4 | O107: 0 | P107: 0 | Q107: 4 | R107: 502 - GYNAECOLOGY | S107: 0
A108: Q70 | B108: RHU | C108: PORTSMOUTH HOSPITALS NHS TRUST | D108: RHU03 | E108: Queen Alexandra Hospital - RHU03 | F108: A7 | G108: 7 | H108: 223 | I108: 0.03139013453 | J108: 1 | K108: 0 | L108: 7 | M108: 0 | N108: 0 | O108: 0 | P108: 0 | Q108: 0 | R108: 420 - PAEDIATRICS | S108: 0
A109: Q70 | B109: RHU | C109: PORTSMOUTH HOSPITALS NHS TRUST | D109: RHU03 | E109: Queen Alexandra Hospital - RHU03 | F109: A8 | G109: 13 | H109: 305 | I109: 0.04262295082 | J109: 0.9230769231 | K109: 0 | L109: 9 | M109: 3 | N109: 1 | O109: 0 | P109: 0 | Q109: 0 | R109: 420 - PAEDIATRICS | S109: 0
A110: Q70 | B110: RHU | C110: PORTSMOUTH HOSPITALS NHS TRUST | D110: RHU03 | E110: Queen Alexandra Hospital - RHU03 | F110: Amluree Day Hospital | G110: 13 | H110: 0 | I110: NA | J110: 1 | K110: 0 | L110: 12 | M110: 1 | N110: 0 | O110: 0 | P110: 0 | Q110: 0 | R110: 100 - GENERAL SURGERY | S110: 0
A111: Q70 | B111: RHU | C111: PORTSMOUTH HOSPITALS NHS TRUST | D111: RHU03 | E111: Queen Alexandra Hospital - RHU03 | F111: C5 | G111: 47 | H111: 127 | I111: 0.3700787402 | J111: 0.9361702128 | K111: 0 | L111: 41 | M111: 3 | N111: 3 | O111: 0 | P111: 0 | Q111: 0 | R111: 301 - GASTROENTEROLOGY | S111: 0
A112: Q70 | B112: RHU | C112: PORTSMOUTH HOSPITALS NHS TRUST | D112: RHU03 | E112: Queen Alexandra Hospital - RHU03 | F112: C6 | G112: 49 | H112: 137 | I112: 0.3576642336 | J112: 1 | K112: 0 | L112: 38 | M112: 11 | N112: 0 | O112: 0 | P112: 0 | Q112: 0 | R112: 320 - CARDIOLOGY | S112: 300 - GENERAL MEDICINE
A113: Q70 | B113: RHU | C113: PORTSMOUTH HOSPITALS NHS TRUST | D113: RHU03 | E113: Queen Alexandra Hospital - RHU03 | F113: C7 | G113: 78 | H113: 114 | I113: 0.6842105263 | J113: 0.9871794872 | K113: 0 | L113: 73 | M113: 4 | N113: 0 | O113: 0 | P113: 0 | Q113: 1 | R113: 320 - CARDIOLOGY | S113: 0
A114: Q70 | B114: RHU | C114: PORTSMOUTH HOSPITALS NHS TRUST | D114: RHU03 | E114: Queen Alexandra Hospital - RHU03 | F114: Cardiology Day Unit | G114: 1 | H114: 236 | I114: 0.004237288136 | J114: * | K114: * | L114: * | M114: * | N114: * | O114: * | P114: * | Q114: * | R114: 320 - CARDIOLOGY | S114: 0
A115: Q70 | B115: RHU | C115: PORTSMOUTH HOSPITALS NHS TRUST | D115: RHU03 | E115: Queen Alexandra Hospital - RHU03 | F115: CAUQ | G115: 0 | H115: 258 | I115: 0 | J115: NA | K115: NA | L115: 0 | M115: 0 | N115: 0 | O115: 0 | P115: 0 | Q115: 0 | R115: 321 - PAEDIATRIC CARDIOLOGY | S115: 0
A116: Q70 | B116: RHU | C116: PORTSMOUTH HOSPITALS NHS TRUST | D116: RHU03 | E116: Queen Alexandra Hospital - RHU03 | F116: CHOC Day Unit | G116: 124 | H116: 369 | I116: 0.3360433604 | J116: 0.9274193548 | K116: 0.008064516129 | L116: 101 | M116: 14 | N116: 1 | O116: 0 | P116: 1 | Q116: 7 | R116: 823 - HAEMATOLOGY | S116: 0
A117: Q70 | B117: RHU | C117: PORTSMOUTH HOSPITALS NHS TRUST | D117: RHU03 | E117: Queen Alexandra Hospital - RHU03 | F117: D1 | G117: 49 | H117: 55 | I117: 0.8909090909 | J117: 0.9795918367 | K117: 0 | L117: 41 | M117: 7 | N117: 0 | O117: 0 | P117: 0 | Q117: 1 | R117: 110 - TRAUMA & ORTHOPAEDICS | S117: 0
A118: Q70 | B118: RHU | C118: PORTSMOUTH HOSPITALS NHS TRUST | D118: RHU03 | E118: Queen Alexandra Hospital - RHU03 | F118: D2 | G118: 12 | H118: 53 | I118: 0.2264150943 | J118: 1 | K118: 0 | L118: 10 | M118: 2 | N118: 0 | O118: 0 | P118: 0 | Q118: 0 | R118: 300 - GENERAL MEDICINE | S118: 0
A119: Q70 | B119: RHU | C119: PORTSMOUTH HOSPITALS NHS TRUST | D119: RHU03 | E119: Queen Alexandra Hospital - RHU03 | F119: D3 | G119: 6 | H119: 67 | I119: 0.08955223881 | J119: 1 | K119: 0 | L119: 4 | M119: 2 | N119: 0 | O119: 0 | P119: 0 | Q119: 0 | R119: 300 - GENERAL MEDICINE | S119: 0
A120: Q70 | B120: RHU | C120: PORTSMOUTH HOSPITALS NHS TRUST | D120: RHU03 | E120: Queen Alexandra Hospital - RHU03 | F120: D4 | G120: 34 | H120: 65 | I120: 0.5230769231 | J120: 0.9411764706 | K120: 0.02941176471 | L120: 27 | M120: 5 | N120: 0 | O120: 1 | P120: 0 | Q120: 1 | R120: 110 - TRAUMA & ORTHOPAEDICS | S120: 0
A121: Q70 | B121: RHU | C121: PORTSMOUTH HOSPITALS NHS TRUST | D121: RHU03 | E121: Queen Alexandra Hospital - RHU03 | F121: D5 | G121: 124 | H121: 245 | I121: 0.506122449 | J121: 0.9919354839 | K121: 0 | L121: 105 | M121: 18 | N121: 0 | O121: 0 | P121: 0 | Q121: 1 | R121: 110 - TRAUMA & ORTHOPAEDICS | S121: 0
A122: Q70 | B122: RHU | C122: PORTSMOUTH HOSPITALS NHS TRUST | D122: RHU03 | E122: Queen Alexandra Hospital - RHU03 | F122: D6 | G122: 20 | H122: 41 | I122: 0.487804878 | J122: 1 | K122: 0 | L122: 18 | M122: 2 | N122: 0 | O122: 0 | P122: 0 | Q122: 0 | R122: 110 - TRAUMA & ORTHOPAEDICS | S122: 0
A123: Q70 | B123: RHU | C123: PORTSMOUTH HOSPITALS NHS TRUST | D123: RHU03 | E123: Queen Alexandra Hospital - RHU03 | F123: D7 | G123: 79 | H123: 131 | I123: 0.6030534351 | J123: 0.9620253165 | K123: 0 | L123: 59 | M123: 17 | N123: 1 | O123: 0 | P123: 0 | Q123: 2 | R123: 101 - UROLOGY | S123: 160 - PLASTIC SURGERY
A124: Q70 | B124: RHU | C124: PORTSMOUTH HOSPITALS NHS TRUST | D124: RHU03 | E124: Queen Alexandra Hospital - RHU03 | F124: D8 | G124: 83 | H124: 155 | I124: 0.535483871 | J124: 0.9638554217 | K124: 0 | L124: 67 | M124: 13 | N124: 1 | O124: 0 | P124: 0 | Q124: 2 | R124: 120 - ENT | S124: 0
A125: Q70 | B125: RHU | C125: PORTSMOUTH HOSPITALS NHS TRUST | D125: RHU03 | E125: Queen Alexandra Hospital - RHU03 | F125: Day Surgery Unit | G125: 228 | H125: 1156 | I125: 0.1972318339 | J125: 0.9210526316 | K125: 0.02192982456 | L125: 177 | M125: 33 | N125: 8 | O125: 2 | P125: 3 | Q125: 5 | R125: 100 - GENERAL SURGERY | S125: 0
A126: Q70 | B126: RHU | C126: PORTSMOUTH HOSPITALS NHS TRUST | D126: RHU03 | E126: Queen Alexandra Hospital - RHU03 | F126: E1 | G126: 89 | H126: 334 | I126: 0.2664670659 | J126: 0.9325842697 | K126: 0.01123595506 | L126: 67 | M126: 16 | N126: 4 | O126: 0 | P126: 1 | Q126: 1 | R126: 100 - GENERAL SURGERY | S126: 0
A127: Q70 | B127: RHU | C127: PORTSMOUTH HOSPITALS NHS TRUST | D127: RHU03 | E127: Queen Alexandra Hospital - RHU03 | F127: E2 | G127: 65 | H127: 0 | I127: NA | J127: 0.9230769231 | K127: 0 | L127: 41 | M127: 19 | N127: 4 | O127: 0 | P127: 0 | Q127: 1 | R127: 100 - GENERAL SURGERY | S127: 0
A128: Q70 | B128: RHU | C128: PORTSMOUTH HOSPITALS NHS TRUST | D128: RHU03 | E128: Queen Alexandra Hospital - RHU03 | F128: E3 | G128: 69 | H128: 144 | I128: 0.4791666667 | J128: 0.9710144928 | K128: 0 | L128: 48 | M128: 19 | N128: 1 | O128: 0 | P128: 0 | Q128: 1 | R128: 100 - GENERAL SURGERY | S128: 0
A129: Q70 | B129: RHU | C129: PORTSMOUTH HOSPITALS NHS TRUST | D129: RHU03 | E129: Queen Alexandra Hospital - RHU03 | F129: E4 (flex capacity) | G129: 0 | H129: 126 | I129: 0 | J129: NA | K129: NA | L129: 0 | M129: 0 | N129: 0 | O129: 0 | P129: 0 | Q129: 0 | R129: 100 - GENERAL SURGERY | S129: 0
A130: Q70 | B130: RHU | C130: PORTSMOUTH HOSPITALS NHS TRUST | D130: RHU03 | E130: Queen Alexandra Hospital - RHU03 | F130: E5 (ITU) | G130: 0 | H130: 5 | I130: 0 | J130: NA | K130: NA | L130: 0 | M130: 0 | N130: 0 | O130: 0 | P130: 0 | Q130: 0 | R130: 192 - CRITICAL CARE MEDICINE | S130: 0
A131: Q70 | B131: RHU | C131: PORTSMOUTH HOSPITALS NHS TRUST | D131: RHU03 | E131: Queen Alexandra Hospital - RHU03 | F131: E6 | G131: 3 | H131: 15 | I131: 0.2 | J131: * | K131: * | L131: * | M131: * | N131: * | O131: * | P131: * | Q131: * | R131: 340 - RESPIRATORY MEDICINE | S131: 0
A132: Q70 | B132: RHU | C132: PORTSMOUTH HOSPITALS NHS TRUST | D132: RHU03 | E132: Queen Alexandra Hospital - RHU03 | F132: E7 | G132: 13 | H132: 76 | I132: 0.1710526316 | J132: 0.9230769231 | K132: 0 | L132: 10 | M132: 2 | N132: 0 | O132: 0 | P132: 0 | Q132: 1 | R132: 340 - RESPIRATORY MEDICINE | S132: 0
A133: Q70 | B133: RHU | C133: PORTSMOUTH HOSPITALS NHS TRUST | D133: RHU03 | E133: Queen Alexandra Hospital - RHU03 | F133: E8 | G133: 13 | H133: 124 | I133: 0.1048387097 | J133: 1 | K133: 0 | L133: 12 | M133: 1 | N133: 0 | O133: 0 | P133: 0 | Q133: 0 | R133: 326 - ACUTE INTERNAL MEDICINE | S133: 0
A134: Q70 | B134: RHU | C134: PORTSMOUTH HOSPITALS NHS TRUST | D134: RHU03 | E134: Queen Alexandra Hospital - RHU03 | F134: Endoscopy | G134: 71 | H134: 811 | I134: 0.08754623921 | J134: 0.9295774648 | K134: 0.04225352113 | L134: 60 | M134: 6 | N134: 0 | O134: 2 | P134: 1 | Q134: 2 | R134: 301 - GASTROENTEROLOGY | S134: 0
A135: Q70 | B135: RHU | C135: PORTSMOUTH HOSPITALS NHS TRUST | D135: RHU03 | E135: Queen Alexandra Hospital - RHU03 | F135: Eye Day Case | G135: 160 | H135: 739 | I135: 0.2165087957 | J135: 0.9875 | K135: 0 | L135: 145 | M135: 13 | N135: 0 | O135: 0 | P135: 0 | Q135: 2 | R135: 130 - OPHTHALMOLOGY | S135: 0
A136: Q70 | B136: RHU | C136: PORTSMOUTH HOSPITALS NHS TRUST | D136: RHU03 | E136: Queen Alexandra Hospital - RHU03 | F136: F1 | G136: 7 | H136: 9 | I136: 0.7777777778 | J136: 1 | K136: 0 | L136: 5 | M136: 2 | N136: 0 | O136: 0 | P136: 0 | Q136: 0 | R136: 314 - REHABILITATION | S136: 0
A137: Q70 | B137: RHU | C137: PORTSMOUTH HOSPITALS NHS TRUST | D137: RHU03 | E137: Queen Alexandra Hospital - RHU03 | F137: F2 MOPRS | G137: 16 | H137: 30 | I137: 0.5333333333 | J137: 0.875 | K137: 0.0625 | L137: 11 | M137: 3 | N137: 1 | O137: 0 | P137: 1 | Q137: 0 | R137: 430 - GERIATRIC MEDICINE | S137: 0
A138: Q70 | B138: RHU | C138: PORTSMOUTH HOSPITALS NHS TRUST | D138: RHU03 | E138: Queen Alexandra Hospital - RHU03 | F138: F3 | G138: 6 | H138: 21 | I138: 0.2857142857 | J138: 0.8333333333 | K138: 0 | L138: 4 | M138: 1 | N138: 1 | O138: 0 | P138: 0 | Q138: 0 | R138: 430 - GERIATRIC MEDICINE | S138: 0
A139: Q70 | B139: RHU | C139: PORTSMOUTH HOSPITALS NHS TRUST | D139: RHU03 | E139: Queen Alexandra Hospital - RHU03 | F139: F4 stroke | G139: 1 | H139: 71 | I139: 0.01408450704 | J139: * | K139: * | L139: * | M139: * | N139: * | O139: * | P139: * | Q139: * | R139: 430 - GERIATRIC MEDICINE | S139: 0
A140: Q70 | B140: RHU | C140: PORTSMOUTH HOSPITALS NHS TRUST | D140: RHU03 | E140: Queen Alexandra Hospital - RHU03 | F140: F5,6,7 | G140: 88 | H140: 146 | I140: 0.602739726 | J140: 0.9772727273 | K140: 0.02272727273 | L140: 75 | M140: 11 | N140: 0 | O140: 1 | P140: 1 | Q140: 0 | R140: 370 - MEDICAL ONCOLOGY | S140: 0
A141: Q70 | B141: RHU | C141: PORTSMOUTH HOSPITALS NHS TRUST | D141: RHU03 | E141: Queen Alexandra Hospital - RHU03 | F141: G1 | G141: 6 | H141: 10 | I141: 0.6 | J141: 0.8333333333 | K141: 0 | L141: 5 | M141: 0 | N141: 1 | O141: 0 | P141: 0 | Q141: 0 | R141: 430 - GERIATRIC MEDICINE | S141: 0
A142: Q70 | B142: RHU | C142: PORTSMOUTH HOSPITALS NHS TRUST | D142: RHU03 | E142: Queen Alexandra Hospital - RHU03 | F142: G2 | G142: 17 | H142: 38 | I142: 0.4473684211 | J142: 1 | K142: 0 | L142: 16 | M142: 1 | N142: 0 | O142: 0 | P142: 0 | Q142: 0 | R142: 430 - GERIATRIC MEDICINE | S142: 0
A143: Q70 | B143: RHU | C143: PORTSMOUTH HOSPITALS NHS TRUST | D143: RHU03 | E143: Queen Alexandra Hospital - RHU03 | F143: G3 | G143: 5 | H143: 28 | I143: 0.1785714286 | J143: 1 | K143: 0 | L143: 5 | M143: 0 | N143: 0 | O143: 0 | P143: 0 | Q143: 0 | R143: 430 - GERIATRIC MEDICINE | S143: 0
A144: Q70 | B144: RHU | C144: PORTSMOUTH HOSPITALS NHS TRUST | D144: RHU03 | E144: Queen Alexandra Hospital - RHU03 | F144: G4 | G144: 13 | H144: 18 | I144: 0.7222222222 | J144: 1 | K144: 0 | L144: 13 | M144: 0 | N144: 0 | O144: 0 | P144: 0 | Q144: 0 | R144: 430 - GERIATRIC MEDICINE | S144: 0
A145: Q70 | B145: RHU | C145: PORTSMOUTH HOSPITALS NHS TRUST | D145: RHU03 | E145: Queen Alexandra Hospital - RHU03 | F145: G5 (Private ward) | G145: 49 | H145: 128 | I145: 0.3828125 | J145: 0.9795918367 | K145: 0 | L145: 40 | M145: 8 | N145: 0 | O145: 0 | P145: 0 | Q145: 1 | R145: 100 - GENERAL SURGERY | S145: 0
A146: Q70 | B146: RHU | C146: PORTSMOUTH HOSPITALS NHS TRUST | D146: RHU03 | E146: Queen Alexandra Hospital - RHU03 | F146: G6 | G146: 0 | H146: 14 | I146: 0 | J146: NA | K146: NA | L146: 0 | M146: 0 | N146: 0 | O146: 0 | P146: 0 | Q146: 0 | R146: 361 - NEPHROLOGY | S146: 0
A147: Q70 | B147: RHU | C147: PORTSMOUTH HOSPITALS NHS TRUST | D147: RHU03 | E147: Queen Alexandra Hospital - RHU03 | F147: G7 | G147: 16 | H147: 88 | I147: 0.1818181818 | J147: 1 | K147: 0 | L147: 11 | M147: 5 | N147: 0 | O147: 0 | P147: 0 | Q147: 0 | R147: 361 - NEPHROLOGY | S147: 0
A148: Q70 | B148: RHU | C148: PORTSMOUTH HOSPITALS NHS TRUST | D148: RHU03 | E148: Queen Alexandra Hospital - RHU03 | F148: G9 | G148: 30 | H148: 92 | I148: 0.3260869565 | J148: 1 | K148: 0 | L148: 28 | M148: 2 | N148: 0 | O148: 0 | P148: 0 | Q148: 0 | R148: 361 - NEPHROLOGY | S148: 0
A149: Q70 | B149: RHU | C149: PORTSMOUTH HOSPITALS NHS TRUST | D149: RHU03 | E149: Queen Alexandra Hospital - RHU03 | F149: Hospital at Home | G149: 0 | H149: 25 | I149: 0 | J149: NA | K149: NA | L149: 0 | M149: 0 | N149: 0 | O149: 0 | P149: 0 | Q149: 0 | R149: 100 - GENERAL SURGERY | S149: 900 - COMMUNITY MEDICINE
A150: Q70 | B150: RHU | C150: PORTSMOUTH HOSPITALS NHS TRUST | D150: RHU03 | E150: Queen Alexandra Hospital - RHU03 | F150: NICU | G150: 0 | H150: 2 | I150: 0 | J150: NA | K150: NA | L150: 0 | M150: 0 | N150: 0 | O150: 0 | P150: 0 | Q150: 0 | R150: 100 - GENERAL SURGERY | S150: 0
A151: Q70 | B151: RHU | C151: PORTSMOUTH HOSPITALS NHS TRUST | D151: RHU03 | E151: Queen Alexandra Hospital - RHU03 | F151: Radiology Day Case Unit | G151: 42 | H151: 82 | I151: 0.512195122 | J151: 0.9285714286 | K151: 0 | L151: 38 | M151: 1 | N151: 0 | O151: 0 | P151: 0 | Q151: 3 | R151: 371 - NUCLEAR MEDICINE | S151: 0
A152: Q70 | B152: RHU | C152: PORTSMOUTH HOSPITALS NHS TRUST | D152: RHU03 | E152: Queen Alexandra Hospital - RHU03 | F152: Renal Day Unit | G152: 4 | H152: 116 | I152: 0.03448275862 | J152: * | K152: * | L152: * | M152: * | N152: * | O152: * | P152: * | Q152: * | R152: 361 - NEPHROLOGY | S152: 0
A153: Q70 | B153: RHU | C153: PORTSMOUTH HOSPITALS NHS TRUST | D153: RHU03 | E153: Queen Alexandra Hospital - RHU03 | F153: Respiratory Day Ward | G153: 30 | H153: 126 | I153: 0.2380952381 | J153: 1 | K153: 0 | L153: 26 | M153: 4 | N153: 0 | O153: 0 | P153: 0 | Q153: 0 | R153: 340 - RESPIRATORY MEDICINE | S153: 0
A154: Q70 | B154: RHU | C154: PORTSMOUTH HOSPITALS NHS TRUST | D154: RHU03 | E154: Queen Alexandra Hospital - RHU03 | F154: Rheumatology Day Case Suite | G154: 32 | H154: 469 | I154: 0.06823027719 | J154: 1 | K154: 0 | L154: 31 | M154: 1 | N154: 0 | O154: 0 | P154: 0 | Q154: 0 | R154: 410 - RHEUMATOLOGY | S154: 0
A155: Q70 | B155: RHU | C155: PORTSMOUTH HOSPITALS NHS TRUST | D155: RHU03 | E155: Queen Alexandra Hospital - RHU03 | F155: Surgical High Care | G155: 0 | H155: 7 | I155: 0 | J155: NA | K155: NA | L155: 0 | M155: 0 | N155: 0 | O155: 0 | P155: 0 | Q155: 0 | R155: 100 - GENERAL SURGERY | S155: 0
A156: Q70 | B156: RDZ | C156: THE ROYAL BOURNEMOUTH AND CHRISTCHURCH HOSPITALS NHS FOUNDATION TRUST | D156: RDZ20 | E156: Royal Bournemouth General Hospital - RDZ20 | F156: Daycases | G156: 473 | H156: 5022 | I156: 0.09418558343 | J156: 0.9957716702 | K156: 0.002114164905 | L156: 418 | M156: 53 | N156: 1 | O156: 1 | P156: 0 | Q156: 0 | R156: 0 | S156: 0
A157: Q70 | B157: RDZ | C157: THE ROYAL BOURNEMOUTH AND CHRISTCHURCH HOSPITALS NHS FOUNDATION TRUST | D157: RDZ20 | E157: Royal Bournemouth General Hospital - RDZ20 | F157: RB01 | G157: 28 | H157: 70 | I157: 0.4 | J157: 0.9285714286 | K157: 0 | L157: 17 | M157: 9 | N157: 1 | O157: 0 | P157: 0 | Q157: 1 | R157: 300 - GENERAL MEDICINE | S157: 0
A158: Q70 | B158: RDZ | C158: THE ROYAL BOURNEMOUTH AND CHRISTCHURCH HOSPITALS NHS FOUNDATION TRUST | D158: RDZ20 | E158: Royal Bournemouth General Hospital - RDZ20 | F158: RB02 | G158: 30 | H158: 66 | I158: 0.4545454545 | J158: 1 | K158: 0 | L158: 28 | M158: 2 | N158: 0 | O158: 0 | P158: 0 | Q158: 0 | R158: 340 - RESPIRATORY MEDICINE | S158: 0
A159: Q70 | B159: RDZ | C159: THE ROYAL BOURNEMOUTH AND CHRISTCHURCH HOSPITALS NHS FOUNDATION TRUST | D159: RDZ20 | E159: Royal Bournemouth General Hospital - RDZ20 | F159: RB03 | G159: 0 | H159: 0 | I159: NA | J159: NA | K159: NA | L159: 0 | M159: 0 | N159: 0 | O159: 0 | P159: 0 | Q159: 0 | R159: 430 - GERIATRIC MEDICINE | S159: 0
A160: Q70 | B160: RDZ | C160: THE ROYAL BOURNEMOUTH AND CHRISTCHURCH HOSPITALS NHS FOUNDATION TRUST | D160: RDZ20 | E160: Royal Bournemouth General Hospital - RDZ20 | F160: RB04 | G160: 16 | H160: 50 | I160: 0.32 | J160: 0.9375 | K160: 0 | L160: 7 | M160: 8 | N160: 1 | O160: 0 | P160: 0 | Q160: 0 | R160: 430 - GERIATRIC MEDICINE | S160: 0
A161: Q70 | B161: RDZ | C161: THE ROYAL BOURNEMOUTH AND CHRISTCHURCH HOSPITALS NHS FOUNDATION TRUST | D161: RDZ20 | E161: Royal Bournemouth General Hospital - RDZ20 | F161: RB05 | G161: 9 | H161: 43 | I161: 0.2093023256 | J161: 0.8888888889 | K161: 0 | L161: 6 | M161: 2 | N161: 1 | O161: 0 | P161: 0 | Q161: 0 | R161: 430 - GERIATRIC MEDICINE | S161: 0
A162: Q70 | B162: RDZ | C162: THE ROYAL BOURNEMOUTH AND CHRISTCHURCH HOSPITALS NHS FOUNDATION TRUST | D162: RDZ20 | E162: Royal Bournemouth General Hospital - RDZ20 | F162: RB07 | G162: 33 | H162: 72 | I162: 0.4583333333 | J162: 1 | K162: 0 | L162: 29 | M162: 4 | N162: 0 | O162: 0 | P162: 0 | Q162: 0 | R162: 110 - TRAUMA & ORTHOPAEDICS | S162: 300 - GENERAL MEDICINE
A163: Q70 | B163: RDZ | C163: THE ROYAL BOURNEMOUTH AND CHRISTCHURCH HOSPITALS NHS FOUNDATION TRUST | D163: RDZ20 | E163: Royal Bournemouth General Hospital - RDZ20 | F163: RB09 | G163: 19 | H163: 38 | I163: 0.5 | J163: 0.9473684211 | K163: 0 | L163: 17 | M163: 1 | N163: 0 | O163: 0 | P163: 0 | Q163: 1 | R163: 430 - GERIATRIC MEDICINE | S163: 0
A164: Q70 | B164: RDZ | C164: THE ROYAL BOURNEMOUTH AND CHRISTCHURCH HOSPITALS NHS FOUNDATION TRUST | D164: RDZ20 | E164: Royal Bournemouth General Hospital - RDZ20 | F164: RB11 | G164: 23 | H164: 40 | I164: 0.575 | J164: 0.9565217391 | K164: 0 | L164: 20 | M164: 2 | N164: 1 | O164: 0 | P164: 0 | Q164: 0 | R164: 303 - CLINICAL HAEMATOLOGY | S164: 0
A165: Q70 | B165: RDZ | C165: THE ROYAL BOURNEMOUTH AND CHRISTCHURCH HOSPITALS NHS FOUNDATION TRUST | D165: RDZ20 | E165: Royal Bournemouth General Hospital - RDZ20 | F165: RB12SS | G165: 62 | H165: 231 | I165: 0.2683982684 | J165: 0.9838709677 | K165: 0.01612903226 | L165: 52 | M165: 9 | N165: 0 | O165: 0 | P165: 1 | Q165: 0 | R165: 101 - UROLOGY | S165: 110 - TRAUMA & ORTHOPAEDICS
A166: Q70 | B166: RDZ | C166: THE ROYAL BOURNEMOUTH AND CHRISTCHURCH HOSPITALS NHS FOUNDATION TRUST | D166: RDZ20 | E166: Royal Bournemouth General Hospital - RDZ20 | F166: RB14 | G166: 62 | H166: 122 | I166: 0.5081967213 | J166: 0.9516129032 | K166: 0 | L166: 49 | M166: 10 | N166: 3 | O166: 0 | P166: 0 | Q166: 0 | R166: 100 - GENERAL SURGERY | S166: 300 - GENERAL MEDICINE
A167: Q70 | B167: RDZ | C167: THE ROYAL BOURNEMOUTH AND CHRISTCHURCH HOSPITALS NHS FOUNDATION TRUST | D167: RDZ20 | E167: Royal Bournemouth General Hospital - RDZ20 | F167: RB15 | G167: 74 | H167: 178 | I167: 0.4157303371 | J167: 1 | K167: 0 | L167: 49 | M167: 25 | N167: 0 | O167: 0 | P167: 0 | Q167: 0 | R167: 101 - UROLOGY | S167: 502 - GYNAECOLOGY
A168: Q70 | B168: RDZ | C168: THE ROYAL BOURNEMOUTH AND CHRISTCHURCH HOSPITALS NHS FOUNDATION TRUST | D168: RDZ20 | E168: Royal Bournemouth General Hospital - RDZ20 | F168: RB16 | G168: 32 | H168: 84 | I168: 0.380952381 | J168: 1 | K168: 0 | L168: 25 | M168: 7 | N168: 0 | O168: 0 | P168: 0 | Q168: 0 | R168: 100 - GENERAL SURGERY | S168: 0
A169: Q70 | B169: RDZ | C169: THE ROYAL BOURNEMOUTH AND CHRISTCHURCH HOSPITALS NHS FOUNDATION TRUST | D169: RDZ20 | E169: Royal Bournemouth General Hospital - RDZ20 | F169: RB17 | G169: 35 | H169: 79 | I169: 0.4430379747 | J169: 1 | K169: 0 | L169: 29 | M169: 6 | N169: 0 | O169: 0 | P169: 0 | Q169: 0 | R169: 100 - GENERAL SURGERY | S169: 0
A170: Q70 | B170: RDZ | C170: THE ROYAL BOURNEMOUTH AND CHRISTCHURCH HOSPITALS NHS FOUNDATION TRUST | D170: RDZ20 | E170: Royal Bournemouth General Hospital - RDZ20 | F170: RB18 | G170: 54 | H170: 222 | I170: 0.2432432432 | J170: 0.9259259259 | K170: 0.05555555556 | L170: 39 | M170: 11 | N170: 1 | O170: 0 | P170: 3 | Q170: 0 | R170: 100 - GENERAL SURGERY | S170: 101 - UROLOGY
A171: Q70 | B171: RDZ | C171: THE ROYAL BOURNEMOUTH AND CHRISTCHURCH HOSPITALS NHS FOUNDATION TRUST | D171: RDZ20 | E171: Royal Bournemouth General Hospital - RDZ20 | F171: RB21 | G171: 33 | H171: 71 | I171: 0.4647887324 | J171: 0.9696969697 | K171: 0 | L171: 26 | M171: 6 | N171: 1 | O171: 0 | P171: 0 | Q171: 0 | R171: 320 - CARDIOLOGY | S171: 300 - GENERAL MEDICINE
A172: Q70 | B172: RDZ | C172: THE ROYAL BOURNEMOUTH AND CHRISTCHURCH HOSPITALS NHS FOUNDATION TRUST | D172: RDZ20 | E172: Royal Bournemouth General Hospital - RDZ20 | F172: RB22 | G172: 13 | H172: 37 | I172: 0.3513513514 | J172: 0.9230769231 | K172: 0 | L172: 10 | M172: 2 | N172: 1 | O172: 0 | P172: 0 | Q172: 0 | R172: 430 - GERIATRIC MEDICINE | S172: 0
A173: Q70 | B173: RDZ | C173: THE ROYAL BOURNEMOUTH AND CHRISTCHURCH HOSPITALS NHS FOUNDATION TRUST | D173: RDZ20 | E173: Royal Bournemouth General Hospital - RDZ20 | F173: RB23 | G173: 48 | H173: 241 | I173: 0.1991701245 | J173: 1 | K173: 0 | L173: 39 | M173: 9 | N173: 0 | O173: 0 | P173: 0 | Q173: 0 | R173: 320 - CARDIOLOGY | S173: 0
A174: Q70 | B174: RDZ | C174: THE ROYAL BOURNEMOUTH AND CHRISTCHURCH HOSPITALS NHS FOUNDATION TRUST | D174: RDZ20 | E174: Royal Bournemouth General Hospital - RDZ20 | F174: RB24 | G174: 39 | H174: 86 | I174: 0.4534883721 | J174: 0.9743589744 | K174: 0 | L174: 33 | M174: 5 | N174: 1 | O174: 0 | P174: 0 | Q174: 0 | R174: 320 - CARDIOLOGY | S174: 0
A175: Q70 | B175: RDZ | C175: THE ROYAL BOURNEMOUTH AND CHRISTCHURCH HOSPITALS NHS FOUNDATION TRUST | D175: RDZ20 | E175: Royal Bournemouth General Hospital - RDZ20 | F175: RB25 | G175: 20 | H175: 95 | I175: 0.2105263158 | J175: 1 | K175: 0 | L175: 7 | M175: 13 | N175: 0 | O175: 0 | P175: 0 | Q175: 0 | R175: 430 - GERIATRIC MEDICINE | S175: 0
A176: Q70 | B176: RDZ | C176: THE ROYAL BOURNEMOUTH AND CHRISTCHURCH HOSPITALS NHS FOUNDATION TRUST | D176: RDZ20 | E176: Royal Bournemouth General Hospital - RDZ20 | F176: RB26 | G176: 47 | H176: 105 | I176: 0.4476190476 | J176: 0.9787234043 | K176: 0 | L176: 37 | M176: 9 | N176: 1 | O176: 0 | P176: 0 | Q176: 0 | R176: 430 - GERIATRIC MEDICINE | S176: 0
A177: Q70 | B177: RDZ | C177: THE ROYAL BOURNEMOUTH AND CHRISTCHURCH HOSPITALS NHS FOUNDATION TRUST | D177: RDZ20 | E177: Royal Bournemouth General Hospital - RDZ20 | F177: RBCCU | G177: 29 | H177: 42 | I177: 0.6904761905 | J177: 0.9655172414 | K177: 0 | L177: 27 | M177: 1 | N177: 1 | O177: 0 | P177: 0 | Q177: 0 | R177: 320 - CARDIOLOGY | S177: 0
A178: Q70 | B178: RDZ | C178: THE ROYAL BOURNEMOUTH AND CHRISTCHURCH HOSPITALS NHS FOUNDATION TRUST | D178: RDZ20 | E178: Royal Bournemouth General Hospital - RDZ20 | F178: RBDER | G178: 61 | H178: 158 | I178: 0.3860759494 | J178: 1 | K178: 0 | L178: 55 | M178: 6 | N178: 0 | O178: 0 | P178: 0 | Q178: 0 | R178: 110 - TRAUMA & ORTHOPAEDICS | S178: 0
A179: Q70 | B179: RDZ | C179: THE ROYAL BOURNEMOUTH AND CHRISTCHURCH HOSPITALS NHS FOUNDATION TRUST | D179: RDZ20 | E179: Royal Bournemouth General Hospital - RDZ20 | F179: RBITU | G179: 9 | H179: 7 | I179: 1.285714286 | J179: 1 | K179: 0 | L179: 8 | M179: 1 | N179: 0 | O179: 0 | P179: 0 | Q179: 0 | R179: 300 - GENERAL MEDICINE | S179: 100 - GENERAL SURGERY
A180: Q70 | B180: RDZ | C180: THE ROYAL BOURNEMOUTH AND CHRISTCHURCH HOSPITALS NHS FOUNDATION TRUST | D180: RDZ20 | E180: Royal Bournemouth General Hospital - RDZ20 | F180: RBO | G180: 49 | H180: 81 | I180: 0.6049382716 | J180: 1 | K180: 0 | L180: 43 | M180: 6 | N180: 0 | O180: 0 | P180: 0 | Q180: 0 | R180: 130 - OPHTHALMOLOGY | S180: 430 - GERIATRIC MEDICINE
A181: Q70 | B181: RDZ | C181: THE ROYAL BOURNEMOUTH AND CHRISTCHURCH HOSPITALS NHS FOUNDATION TRUST | D181: RDZ20 | E181: Royal Bournemouth General Hospital - RDZ20 | F181: RBSU | G181: 20 | H181: 63 | I181: 0.3174603175 | J181: 0.95 | K181: 0 | L181: 16 | M181: 3 | N181: 1 | O181: 0 | P181: 0 | Q181: 0 | R181: 430 - GERIATRIC MEDICINE | S181: 0
A182: Q70 | B182: RHM | C182: UNIVERSITY HOSPITAL SOUTHAMPTON NHS FOUNDATION TRUST | D182: RHM04 | E182: Countess Mountbatten House - RHM04 | F182: CAN CMH Inpatients | G182: 9 | H182: 13 | I182: 0.6923076923 | J182: 1 | K182: 0 | L182: 8 | M182: 1 | N182: 0 | O182: 0 | P182: 0 | Q182: 0 | R182: 315 - Palliative Medicine | S182: 800 - Clinical Oncology
A183: Q70 | B183: RHM | C183: UNIVERSITY HOSPITAL SOUTHAMPTON NHS FOUNDATION TRUST | D183: RHM12 | E183: Princess Anne Hospital - RHM12 | F183: BURLEY B - PRINCESS ANNE HOSP | G183: 0 | H183: 0 | I183: NA | J183: NA | K183: NA | L183: 0 | M183: 0 | N183: 0 | O183: 0 | P183: 0 | Q183: 0 | R183: 300 - GENERAL MEDICINE | S183: 502 - Gynaecology
A184: Q70 | B184: RHM | C184: UNIVERSITY HOSPITAL SOUTHAMPTON NHS FOUNDATION TRUST | D184: RHM12 | E184: Princess Anne Hospital - RHM12 | F184: BURLEY BABY B | G184: 0 | H184: 0 | I184: NA | J184: NA | K184: NA | L184: 0 | M184: 0 | N184: 0 | O184: 0 | P184: 0 | Q184: 0 | R184: 300 - GENERAL MEDICINE | S184: 502 - Gynaecology
A185: Q70 | B185: RHM | C185: UNIVERSITY HOSPITAL SOUTHAMPTON NHS FOUNDATION TRUST | D185: RHM12 | E185: Princess Anne Hospital - RHM12 | F185: LYNDHURST WARD | G185: 0 | H185: 2 | I185: 0 | J185: NA | K185: NA | L185: 0 | M185: 0 | N185: 0 | O185: 0 | P185: 0 | Q185: 0 | R185: 300 - GENERAL MEDICINE | S185: 502 - Gynaecology
A186: Q70 | B186: RHM | C186: UNIVERSITY HOSPITAL SOUTHAMPTON NHS FOUNDATION TRUST | D186: RHM12 | E186: Princess Anne Hospital - RHM12 | F186: NEONATAL UNIT | G186: 0 | H186: 10 | I186: 0 | J186: NA | K186: NA | L186: 0 | M186: 0 | N186: 0 | O186: 0 | P186: 0 | Q186: 0 | R186: 420 - Paediatrics | S186: 171 - Paediatric Surgery
A187: Q70 | B187: RHM | C187: UNIVERSITY HOSPITAL SOUTHAMPTON NHS FOUNDATION TRUST | D187: RHM12 | E187: Princess Anne Hospital - RHM12 | F187: W&N Bramshaw Womens Unit | G187: 43 | H187: 201 | I187: 0.2139303483 | J187: 0.9534883721 | K187: 0.02325581395 | L187: 31 | M187: 10 | N187: 1 | O187: 1 | P187: 0 | Q187: 0 | R187: 502 - Gynaecology | S187: 800 - Clinical Oncology
A188: Q70 | B188: RHM | C188: UNIVERSITY HOSPITAL SOUTHAMPTON NHS FOUNDATION TRUST | D188: RHM12 | E188: Princess Anne Hospital - RHM12 | F188: W&N Surgical day unit | G188: 25 | H188: 214 | I188: 0.1168224299 | J188: 1 | K188: 0 | L188: 21 | M188: 4 | N188: 0 | O188: 0 | P188: 0 | Q188: 0 | R188: 502 - Gynaecology | S188: 100 - General Surgery
A189: Q70 | B189: RHM | C189: UNIVERSITY HOSPITAL SOUTHAMPTON NHS FOUNDATION TRUST | D189: RHM01 | E189: Southampton General Hospital - RHM01 | F189: BURSLEDON AUTISM DAY | G189: 0 | H189: 4 | I189: 0 | J189: NA | K189: NA | L189: 0 | M189: 0 | N189: 0 | O189: 0 | P189: 0 | Q189: 0 | R189: 420 - Paediatrics | S189: 171 - PAEDIATRIC SURGERY
A190: Q70 | B190: RHM | C190: UNIVERSITY HOSPITAL SOUTHAMPTON NHS FOUNDATION TRUST | D190: RHM01 | E190: Southampton General Hospital - RHM01 | F190: BURSLEDON HOUSE | G190: 0 | H190: 4 | I190: 0 | J190: NA | K190: NA | L190: 0 | M190: 0 | N190: 0 | O190: 0 | P190: 0 | Q190: 0 | R190: 420 - Paediatrics | S190: 171 - PAEDIATRIC SURGERY
A191: Q70 | B191: RHM | C191: UNIVERSITY HOSPITAL SOUTHAMPTON NHS FOUNDATION TRUST | D191: RHM01 | E191: Southampton General Hospital - RHM01 | F191: BURSLEDON HOUSE DAY CARE | G191: 0 | H191: 0 | I191: NA | J191: NA | K191: NA | L191: 0 | M191: 0 | N191: 0 | O191: 0 | P191: 0 | Q191: 0 | R191: 420 - Paediatrics | S191: 171 - PAEDIATRIC SURGERY
A192: Q70 | B192: RHM | C192: UNIVERSITY HOSPITAL SOUTHAMPTON NHS FOUNDATION TRUST | D192: RHM01 | E192: Southampton General Hospital - RHM01 | F192: BURSLEDON PAEDIATRIC GASTRO | G192: 0 | H192: 0 | I192: NA | J192: NA | K192: NA | L192: 0 | M192: 0 | N192: 0 | O192: 0 | P192: 0 | Q192: 0 | R192: 420 - Paediatrics | S192: 171 - PAEDIATRIC SURGERY
A193: Q70 | B193: RHM | C193: UNIVERSITY HOSPITAL SOUTHAMPTON NHS FOUNDATION TRUST | D193: RHM01 | E193: Southampton General Hospital - RHM01 | F193: C3 | G193: 0 | H193: 211 | I193: 0 | J193: NA | K193: NA | L193: 0 | M193: 0 | N193: 0 | O193: 0 | P193: 0 | Q193: 0 | R193: 100 - GENERAL SURGERY | S193: 300 - GENERAL MEDICINE
A194: Q70 | B194: RHM | C194: UNIVERSITY HOSPITAL SOUTHAMPTON NHS FOUNDATION TRUST | D194: RHM01 | E194: Southampton General Hospital - RHM01 | F194: C7 HAMILTON FAIRLEY | G194: 0 | H194: 437 | I194: 0 | J194: NA | K194: NA | L194: 0 | M194: 0 | N194: 0 | O194: 0 | P194: 0 | Q194: 0 | R194: 303 - Clinical Haematology | S194: 370 - Medical Oncology
A195: Q70 | B195: RHM | C195: UNIVERSITY HOSPITAL SOUTHAMPTON NHS FOUNDATION TRUST | D195: RHM01 | E195: Southampton General Hospital - RHM01 | F195: CAN C4 | G195: 29 | H195: 80 | I195: 0.3625 | J195: 0.9310344828 | K195: 0.03448275862 | L195: 24 | M195: 3 | N195: 1 | O195: 0 | P195: 1 | Q195: 0 | R195: 800 - Clinical Oncology | S195: 370 - Medical Oncology
A196: Q70 | B196: RHM | C196: UNIVERSITY HOSPITAL SOUTHAMPTON NHS FOUNDATION TRUST | D196: RHM01 | E196: Southampton General Hospital - RHM01 | F196: CAN C6 Leukemia & Transplant | G196: 10 | H196: 20 | I196: 0.5 | J196: 1 | K196: 0 | L196: 9 | M196: 1 | N196: 0 | O196: 0 | P196: 0 | Q196: 0 | R196: 303 - Clinical Haematology | S196: 370 - Medical Oncology
A197: Q70 | B197: RHM | C197: UNIVERSITY HOSPITAL SOUTHAMPTON NHS FOUNDATION TRUST | D197: RHM01 | E197: Southampton General Hospital - RHM01 | F197: CAN C6 TYA Unit | G197: 3 | H197: 43 | I197: 0.06976744186 | J197: * | K197: * | L197: * | M197: * | N197: * | O197: * | P197: * | Q197: * | R197: 303 - Clinical Haematology | S197: 370 - Medical Oncology
A198: Q70 | B198: RHM | C198: UNIVERSITY HOSPITAL SOUTHAMPTON NHS FOUNDATION TRUST | D198: RHM01 | E198: Southampton General Hospital - RHM01 | F198: CAN D3 Ward | G198: 17 | H198: 59 | I198: 0.2881355932 | J198: 1 | K198: 0 | L198: 17 | M198: 0 | N198: 0 | O198: 0 | P198: 0 | Q198: 0 | R198: 800 - Clinical Oncology | S198: 370 - Medical Oncology
A199: Q70 | B199: RHM | C199: UNIVERSITY HOSPITAL SOUTHAMPTON NHS FOUNDATION TRUST | D199: RHM01 | E199: Southampton General Hospital - RHM01 | F199: CAR Cardiac short stay | G199: 34 | H199: 211 | I199: 0.1611374408 | J199: 0.9705882353 | K199: 0 | L199: 29 | M199: 4 | N199: 1 | O199: 0 | P199: 0 | Q199: 0 | R199: 320 - Cardiology | S199: 170 - Cardiothoracic Surgery
A200: Q70 | B200: RHM | C200: UNIVERSITY HOSPITAL SOUTHAMPTON NHS FOUNDATION TRUST | D200: RHM01 | E200: Southampton General Hospital - RHM01 | F200: CAR CHDU | G200: 9 | H200: 0 | I200: NA | J200: 1 | K200: 0 | L200: 5 | M200: 4 | N200: 0 | O200: 0 | P200: 0 | Q200: 0 | R200: 170 - Cardiothoracic Surgery | S200: 320 - Cardiology
A201: Q70 | B201: RHM | C201: UNIVERSITY HOSPITAL SOUTHAMPTON NHS FOUNDATION TRUST | D201: RHM01 | E201: Southampton General Hospital - RHM01 | F201: CAR Coronary Care Unit | G201: 37 | H201: 90 | I201: 0.4111111111 | J201: 1 | K201: 0 | L201: 33 | M201: 4 | N201: 0 | O201: 0 | P201: 0 | Q201: 0 | R201: 320 - Cardiology | S201: 300 - General Medicine
A202: Q70 | B202: RHM | C202: UNIVERSITY HOSPITAL SOUTHAMPTON NHS FOUNDATION TRUST | D202: RHM01 | E202: Southampton General Hospital - RHM01 | F202: CAR E2 | G202: 39 | H202: 53 | I202: 0.7358490566 | J202: 1 | K202: 0 | L202: 31 | M202: 8 | N202: 0 | O202: 0 | P202: 0 | Q202: 0 | R202: 170 - Cardiothoracic Surgery | S202: 320 - Cardiology
A203: Q70 | B203: RHM | C203: UNIVERSITY HOSPITAL SOUTHAMPTON NHS FOUNDATION TRUST | D203: RHM01 | E203: Southampton General Hospital - RHM01 | F203: CAR Ward D4 Vascular | G203: 33 | H203: 54 | I203: 0.6111111111 | J203: 1 | K203: 0 | L203: 25 | M203: 8 | N203: 0 | O203: 0 | P203: 0 | Q203: 0 | R203: 170 - Cardiothoracic Surgery | S203: 100 - General Surgery
A204: Q70 | B204: RHM | C204: UNIVERSITY HOSPITAL SOUTHAMPTON NHS FOUNDATION TRUST | D204: RHM01 | E204: Southampton General Hospital - RHM01 | F204: CAR Ward E3 Cardiac | G204: 65 | H204: 118 | I204: 0.5508474576 | J204: 0.9692307692 | K204: 0.01538461538 | L204: 58 | M204: 5 | N204: 1 | O204: 0 | P204: 1 | Q204: 0 | R204: 320 - Cardiology | S204: 170 - Cardiothoracic Surgery
A205: Q70 | B205: RHM | C205: UNIVERSITY HOSPITAL SOUTHAMPTON NHS FOUNDATION TRUST | D205: RHM01 | E205: Southampton General Hospital - RHM01 | F205: CAR Ward E4 Cardiac | G205: 32 | H205: 133 | I205: 0.2406015038 | J205: 0.9375 | K205: 0 | L205: 24 | M205: 6 | N205: 1 | O205: 0 | P205: 0 | Q205: 1 | R205: 320 - Cardiology | S205: 170 - Cardiothoracic Surgery
A206: Q70 | B206: RHM | C206: UNIVERSITY HOSPITAL SOUTHAMPTON NHS FOUNDATION TRUST | D206: RHM01 | E206: Southampton General Hospital - RHM01 | F206: CC - Surgical HDU | G206: 0 | H206: 0 | I206: NA | J206: NA | K206: NA | L206: 0 | M206: 0 | N206: 0 | O206: 0 | P206: 0 | Q206: 0 | R206: 100 - General Surgery | S206: 110 - Trauma & Orthopaedics
A207: Q70 | B207: RHM | C207: UNIVERSITY HOSPITAL SOUTHAMPTON NHS FOUNDATION TRUST | D207: RHM01 | E207: Southampton General Hospital - RHM01 | F207: CC Cardiac Intensive Care | G207: 0 | H207: 0 | I207: NA | J207: NA | K207: NA | L207: 0 | M207: 0 | N207: 0 | O207: 0 | P207: 0 | Q207: 0 | R207: 170 - Cardiothoracic Surgery | S207: 320 - Cardiology
A208: Q70 | B208: RHM | C208: UNIVERSITY HOSPITAL SOUTHAMPTON NHS FOUNDATION TRUST | D208: RHM01 | E208: Southampton General Hospital - RHM01 | F208: CC General Intensive Care | G208: 0 | H208: 0 | I208: NA | J208: NA | K208: NA | L208: 0 | M208: 0 | N208: 0 | O208: 0 | P208: 0 | Q208: 0 | R208: 100 - General Surgery | S208: 300 - General Medicine
A209: Q70 | B209: RHM | C209: UNIVERSITY HOSPITAL SOUTHAMPTON NHS FOUNDATION TRUST | D209: RHM01 | E209: Southampton General Hospital - RHM01 | F209: CC NICU | G209: 0 | H209: 0 | I209: NA | J209: NA | K209: NA | L209: 0 | M209: 0 | N209: 0 | O209: 0 | P209: 0 | Q209: 0 | R209: 150 - Neurosurgery | S209: 300 - General Medicine
... 4291 more rows

Sheet BS (hidden)
B1: Sort | C1: Region (Geo) | D1: Region (Geo) | E1: Trusts | F1: Trusts | G1: Sites | H1: Sites | I1: Wards | K1: Sort ranges: | L1: Sort range… | M1: Sort range… | N1: Sort range… | O1: Sort range… | Q1: Code… | R1: Name… | S1: Code… | T1: Name… | U1: Code… | V1: Code… | W1: Name… | X1: Code… | Y1: Name… | Z1: Name… | AA1: :Reference Lists | AC1: Linked Lists: | AD1: Trusts: | AE1: Code… | AF1: Name… | AG1: Sites: | AH1: Code… | AI1: Name… | AJ1: Code… | AK1: Name… | AL1: Wards: | AM1: Code… | AN1: Name… | AO1: Code… | AP1: Name… | AQ1: Name…
A2: Region (Geo) | B2: 1 | C2: 1 | D2: 1 | E2: - | F2: - | G2: - | H2: - | I2: - | L2: Region (Geo) Code | M2: Region (Geo) Code | N2: Region (Geo) Code | O2: Region (Geo) Code | Q2: Q72 | R2: NHS England Yorkshire & Humber | S2: IS1 | T2: Independent Sector Provider | U2: Q70 | V2: RBD | W2: DORSET COUNTY HOSPITAL NHS FOUNDATION TRUST | X2: RBD01 | Y2: Dorset County Hospital - RBD01 | Z2: Abbotsbury | AE2: ADP | AF2: AINTREE UNIVERSITY HOSPITAL NHS FOUNDATION TRUST | AH2: ADP | AI2: AINTREE UNIVERSITY HOSPITAL NHS FOUNDATION TRUST | AJ2: ADP02 | AK2: Addenbrooke's Hospital - RGT01 | AM2: ADP | AN2: AINTREE UNIVERSITY HOSPITAL NHS FOUNDATION TRUST | AO2: ADP02 | AP2: Addenbrooke's Hospital - RGT01 | AQ2: 1
A3: Trusts | B3: 1 | C3: 1 | D3: 1 | E3: 1 | F3: 1 | G3: - | H3: - | I3: - | L3: Region (Geography) | M3: Trust Code | N3: Trust Code | O3: Trust Code | Q3: Q73 | R3: NHS England Lancashire & Greater Manchester | S3: Q70 | T3: NHS England Central Midlands | U3: Q70 | V3: RBD | W3: DORSET COUNTY HOSPITAL NHS FOUNDATION TRUST | X3: RBD01 | Y3: Dorset County Hospital - RBD01 | Z3: Barnes | AE3: AHH | AF3: AIREDALE NHS FOUNDATION TRUST | AH3: AHH | AI3: AIREDALE NHS FOUNDATION TRUST | AJ3: AHH01 | AK3: Airedale General Hospital - RCF22 | AM3: AHH | AN3: AIREDALE NHS FOUNDATION TRUST | AO3: AHH01 | AP3: Airedale General Hospital - RCF22 | AQ3: 2
A4: Sites | B4: 1 | C4: 1 | D4: 1 | E4: 1 | F4: 1 | G4: 1 | H4: 1 | I4: - | L4: Total Responses | M4: Trust Name | N4: Trust Name | O4: Trust Name | Q4: Q74 | R4: NHS England Cumbria & North East | S4: Q71 | T4: NHS England Cheshire & Merseyside | U4: Q70 | V4: RBD | W4: DORSET COUNTY HOSPITAL NHS FOUNDATION TRUST | X4: RBD01 | Y4: Dorset County Hospital - RBD01 | Z4: Day Lewis | AE4: NAM | AF4: ALDER HEY CHILDREN'S NHS FOUNDATION TRUST | AH4: NAM | AI4: ALDER HEY CHILDREN'S NHS FOUNDATION TRUST | AJ4: NAM01 | AK4: Alder Hey Children's NHS - RBS25 | AM4: NAM | AN4: ALDER HEY CHILDREN'S NHS FOUNDATION TRUST | AO4: NAM01 | AP4: Alder Hey Children's NHS - RBS25 | AQ4: 3
A5: Wards | B5: 1 | C5: 1 | D5: 1 | E5: 1 | F5: 1 | G5: 1 | H5: 1 | I5: 1 | L5: Total Eligible | M5: Total Responses | N5: Site Code | O5: Site Code | Q5: Q75 | R5: NHS England Cheshire & Merseyside | S5: Q72 | T5: NHS England Cumbria & North East | U5: Q70 | V5: RBD | W5: DORSET COUNTY HOSPITAL NHS FOUNDATION TRUST | X5: RBD01 | Y5: Dorset County Hospital - RBD01 | Z5: Fortuneswell | AE5: NN8 | AF5: ASHFORD AND ST PETER'S HOSPITALS NHS FOUNDATION TRUST | AH5: NN8 | AI5: ASHFORD AND ST PETER'S HOSPITALS NHS FOUNDATION TRUST | AJ5: NAM02 | AK5: Alexandra Hospital - RWP01 | AM5: NN8 | AN5: ASHFORD AND ST PETER'S HOSPITALS NHS FOUNDATION TRUST | AO5: NAM02 | AP5: Alexandra Hospital - RWP01 | AQ5: 4
L6: Response Rate | M6: Total Eligible | N6: Site Name | O6: Site Name | Q6: Q76 | R6: NHS England North Midlands | S6: Q73 | T6: NHS England East | U6: Q70 | V6: RBD | W6: DORSET COUNTY HOSPITAL NHS FOUNDATION TRUST | X6: RBD01 | Y6: Dorset County Hospital - RBD01 | Z6: HDU/ITU | AE6: NQM01 | AF6: ASPEN - CLAREMONT HOSPITAL | AH6: NQM01 | AI6: ASPEN - CLAREMONT HOSPITAL | AJ6: NAM03 | AK6: Alnwick Infirmary - RTFDJ | AM6: NQM01 | AN6: ASPEN - CLAREMONT HOSPITAL | AO6: NAM03 | AP6: Alnwick Infirmary - RTFDJ | AQ6: 5
L7: Percentage Recommended | M7: Response Rate | N7: Total Responses | O7: Ward Name | Q7: Q77 | R7: NHS England West Midlands | S7: Q74 | T7: NHS England Lancashire & Greater Manchester | U7: Q70 | V7: RBD | W7: DORSET COUNTY HOSPITAL NHS FOUNDATION TRUST | X7: RBD01 | Y7: Dorset County Hospital - RBD01 | Z7: Hinton | AE7: NT2 | AF7: ASPEN - HIGHGATE HOSPITAL | AH7: NT2 | AI7: ASPEN - HIGHGATE HOSPITAL | AJ7: NAM04 | AK7: Amersham Hospital - RXQ51 | AM7: NT2 | AN7: ASPEN - HIGHGATE HOSPITAL | AO7: NAM04 | AP7: Amersham Hospital - RXQ51 | AQ7: 6
L8: Percentage Not Recommended | M8: Percentage Recommended | N8: Total Eligible | O8: Total Responses | Q8: Q78 | R8: NHS England Central Midlands | S8: Q75 | T8: NHS England London | U8: Q70 | V8: RBD | W8: DORSET COUNTY HOSPITAL NHS FOUNDATION TRUST | X8: RBD01 | Y8: Dorset County Hospital - RBD01 | Z8: Ilchester Integrated Assessment Unit | AE8: NT3 | AF8: ASPEN - HOLLY HOUSE HOSPITAL | AH8: NT3 | AI8: ASPEN - HOLLY HOUSE HOSPITAL | AJ8: NAM05 | AK8: Andover War Memorial Hospital - RN542 | AM8: NT3 | AN8: ASPEN - HOLLY HOUSE HOSPITAL | AO8: NAM05 | AP8: Andover War Memorial Hospital - RN542 | AQ8: 7
L9: Extremely Likely | M9: Percentage Not Recommended | N9: Response Rate | O9: Total Eligible | Q9: Q79 | R9: NHS England East | S9: Q76 | T9: NHS England North Midlands | U9: Q70 | V9: RBD | W9: DORSET COUNTY HOSPITAL NHS FOUNDATION TRUST | X9: RBD01 | Y9: Dorset County Hospital - RBD01 | Z9: Kingfisher | AE9: NT4 | AF9: ASPEN - PARKSIDE HOSPITAL | AH9: NT4 | AI9: ASPEN - PARKSIDE HOSPITAL | AJ9: NAM06 | AK9: Arrowe Park Hospital - RBL14 | AM9: NT4 | AN9: ASPEN - PARKSIDE HOSPITAL | AO9: NAM06 | AP9: Arrowe Park Hospital - RBL14 | AQ9: 9
L10: Likely | M10: Extremely Likely | N10: Percentage Recommended | O10: Response Rate | Q10: Q80 | R10: NHS England South West | S10: Q77 | T10: NHS England South Central | U10: Q70 | V10: RBD | W10: DORSET COUNTY HOSPITAL NHS FOUNDATION TRUST | X10: RBD01 | Y10: Dorset County Hospital - RBD01 | Z10: Lulworth | AE10: NTP | AF10: BARKING, HAVERING AND REDBRIDGE UNIVERSITY HOSPITALS NHS TRUST | AH10: NTP | AI10: BARKING, HAVERING AND REDBRIDGE UNIVERSITY HOSPITALS NHS TRUST | AJ10: NAM07 | AK10: Ashford Hospital - RTK02 | AM10: NTP | AN10: BARKING, HAVERING AND REDBRIDGE UNIVERSITY HOSPITALS NHS TRUST | AO10: NAM07 | AP10: Ashford Hospital - RTK02 | AQ10: 10
L11: Neither | M11: Likely | N11: Percentage Not Recommended | O11: Percentage Recommended | Q11: Q81 | R11: NHS England South East | S11: Q78 | T11: NHS England South East | U11: Q70 | V11: RBD | W11: DORSET COUNTY HOSPITAL NHS FOUNDATION TRUST | X11: RBD01 | Y11: Dorset County Hospital - RBD01 | Z11: Maud Alex/CCU | AE11: NV3 | AF11: BARNSLEY HOSPITAL NHS FOUNDATION TRUST | AH11: NV3 | AI11: BARNSLEY HOSPITAL NHS FOUNDATION TRUST | AJ11: NN801 | AK11: Ashtead Hospital - NVC01 | AM11: NV3 | AN11: BARNSLEY HOSPITAL NHS FOUNDATION TRUST | AO11: NN801 | AP11: Ashtead Hospital - NVC01 | AQ11: 11
L12: Unlikely | M12: Neither | N12: Extremely Likely | O12: Percentage Not Recommended | Q12: Q82 | R12: NHS England South Central | S12: Q79 | T12: NHS England South West | U12: Q70 | V12: RBD | W12: DORSET COUNTY HOSPITAL NHS FOUNDATION TRUST | X12: RBD01 | Y12: Dorset County Hospital - RBD01 | Z12: Moreton | AE12: NVC | AF12: BARTS HEALTH NHS TRUST | AH12: NVC | AI12: BARTS HEALTH NHS TRUST | AJ12: NN802 | AK12: Aspen - Claremont Hospital - NYW04 | AM12: NVC | AN12: BARTS HEALTH NHS TRUST | AO12: NN802 | AP12: Aspen - Claremont Hospital - NYW04 | AQ12: 12
L13: Extremely Unlikely | M13: Unlikely | N13: Likely | O13: Extremely Likely | Q13: Q70 | R13: NHS England Wessex | S13: Q80 | T13: NHS England Wessex | U13: Q70 | V13: RBD | W13: DORSET COUNTY HOSPITAL NHS FOUNDATION TRUST | X13: RBD01 | Y13: Dorset County Hospital - RBD01 | Z13: POW | AE13: NVG | AF13: BASILDON AND THURROCK UNIVERSITY HOSPITALS NHS FOUNDATION TRUST | AH13: NVG | AI13: BASILDON AND THURROCK UNIVERSITY HOSPITALS NHS FOUNDATION TRUST | AJ13: NQM01 | AK13: Aspen - Highgate Hospital - NYW03 | AM13: NVG | AN13: BASILDON AND THURROCK UNIVERSITY HOSPITALS NHS FOUNDATION TRUST | AO13: NQM01 | AP13: Aspen - Highgate Hospital - NYW03 | AQ13: 12
L14: Don't Know | M14: Extremely Unlikely | N14: Neither | O14: Likely | Q14: Q71 | R14: NHS England London | S14: Q81 | T14: NHS England West Midlands | U14: Q70 | V14: RBD | W14: DORSET COUNTY HOSPITAL NHS FOUNDATION TRUST | X14: RBD01 | Y14: Dorset County Hospital - RBD01 | Z14: Purbeck | AE14: NWF01 | AF14: BEDFORD HOSPITAL NHS TRUST | AH14: NWF01 | AI14: BEDFORD HOSPITAL NHS TRUST | AJ14: NT202 | AK14: Aspen - Holly House Hospital - NYW01 | AM14: NWF01 | AN14: BEDFORD HOSPITAL NHS TRUST | AO14: NT202 | AP14: Aspen - Holly House Hospital - NYW01 | AQ14: 13
M15: Don't Know | N15: Unlikely | O15: Neither | Q15: IS1 | R15: Independent Sector Provider | S15: Q82 | T15: NHS England Yorkshire & Humber | U15: Q70 | V15: RBD | W15: DORSET COUNTY HOSPITAL NHS FOUNDATION TRUST | X15: RBD01 | Y15: Dorset County Hospital - RBD01 | Z15: Ridgeway | AE15: NXM01 | AF15: BENENDEN HOSPITAL | AH15: NXM01 | AI15: BENENDEN HOSPITAL | AJ15: NT204 | AK15: Aspen - Parkside Hospital - NYW02 | AM15: NXM01 | AN15: BENENDEN HOSPITAL | AO15: NT204 | AP15: Aspen - Parkside Hospital - NYW02 | AQ15: 14
M16: SMS/Text / Smartphone App | N16: Extremely Unlikely | O16: Unlikely | Q16: paired list for ref | S16: unparied list for dropdown | U16: Q70 | V16: RBD | W16: DORSET COUNTY HOSPITAL NHS FOUNDATION TRUST | X16: RBD01 | Y16: Dorset County Hospital - RBD01 | Z16: Stroke Unit | AE16: NYW01 | AF16: BIRMINGHAM CHILDREN'S HOSPITAL NHS FOUNDATION TRUST | AH16: NYW01 | AI16: BIRMINGHAM CHILDREN'S HOSPITAL NHS FOUNDATION TRUST | AJ16: NT205 | AK16: Barlborough NHS Treatment Centre - NTP13 | AM16: NYW01 | AN16: BIRMINGHAM CHILDREN'S HOSPITAL NHS FOUNDATION TRUST | AO16: NT205 | AP16: Barlborough NHS Treatment Centre - NTP13 | AQ16: 14
M17: Electronic tablet/kiosk at point of discharge | N17: Don't Know | O17: Extremely Unlikely | U17: Q70 | V17: RN5 | W17: HAMPSHIRE HOSPITALS NHS FOUNDATION TRUST | X17: RN542 | Y17: Andover War Memorial Hospital - RN542 | Z17: Daycases | AE17: NYW02 | AF17: BIRMINGHAM WOMEN'S NHS FOUNDATION TRUST | AH17: NYW02 | AI17: BIRMINGHAM WOMEN'S NHS FOUNDATION TRUST | AJ17: NT206 | AK17: Barnet Hospital - RAL26 | AM17: NYW02 | AN17: BIRMINGHAM WOMEN'S NHS FOUNDATION TRUST | AO17: NT206 | AP17: Barnet Hospital - RAL26 | AQ17: 15
M18: Paper / postcard at point of discharge | O18: Don't Know | U18: Q70 | V18: RN5 | W18: HAMPSHIRE HOSPITALS NHS FOUNDATION TRUST | X18: RN542 | Y18: Andover War Memorial Hospital - RN542 | Z18: Kingfisher IP | AE18: NYW03 | AF18: BLACKPOOL TEACHING HOSPITALS NHS FOUNDATION TRUST | AH18: NYW03 | AI18: BLACKPOOL TEACHING HOSPITALS NHS FOUNDATION TRUST | AJ18: NT209 | AK18: Barnsley Hospital NHS Foundation Trust HQ - RFFAA | AM18: NYW03 | AN18: BLACKPOOL TEACHING HOSPITALS NHS FOUNDATION TRUST | AO18: NT209 | AP18: Barnsley Hospital NHS Foundation Trust HQ - RFFAA | AQ18: 17
M19: Paper survey, sent to the patients home | O19: First Speciality | U19: Q70 | V19: RN5 | W19: HAMPSHIRE HOSPITALS NHS FOUNDATION TRUST | X19: RN506 | Y19: Basingstoke and North Hampshire Hospital - RN506 | Z19: AAU IP | AE19: NYW04 | AF19: BMI HEALTHCARE | AH19: NYW04 | AI19: BMI HEALTHCARE | AJ19: NT210 | AK19: Basildon University Hospital - RDDH0 | AM19: NYW04 | AN19: BMI HEALTHCARE | AO19: NT210 | AP19: Basildon University Hospital - RDDH0 | AQ19: 18
M20: Telephone survey once patient is home | O20: Second Speciality | U20: Q70 | V20: RN5 | W20: HAMPSHIRE HOSPITALS NHS FOUNDATION TRUST | X20: RN506 | Y20: Basingstoke and North Hampshire Hospital - RN506 | Z20: C2 IP | AE20: R1F | AF20: BOLTON NHS FOUNDATION TRUST | AH20: R1F | AI20: BOLTON NHS FOUNDATION TRUST | AJ20: NT211 | AK20: Basingstoke and North Hampshire Hospital - RN506 | AM20: R1F | AN20: BOLTON NHS FOUNDATION TRUST | AO20: NT211 | AP20: Basingstoke and North Hampshire Hospital - RN506 | AQ20: 18
M21: Online survey once patient is home | U21: Q70 | V21: RN5 | W21: HAMPSHIRE HOSPITALS NHS FOUNDATION TRUST | X21: RN506 | Y21: Basingstoke and North Hampshire Hospital - RN506 | Z21: C3 IP | AE21: R1H | AF21: BRADFORD TEACHING HOSPITALS NHS FOUNDATION TRUST | AH21: R1H | AI21: BRADFORD TEACHING HOSPITALS NHS FOUNDATION TRUST | AJ21: NT212 | AK21: Bassetlaw Hospital - RP5BA | AM21: R1H | AN21: BRADFORD TEACHING HOSPITALS NHS FOUNDATION TRUST | AO21: NT212 | AP21: Bassetlaw Hospital - RP5BA | AQ21: 19
M22: Other | U22: Q70 | V22: RN5 | W22: HAMPSHIRE HOSPITALS NHS FOUNDATION TRUST | X22: RN506 | Y22: Basingstoke and North Hampshire Hospital - RN506 | Z22: C4 IP | AE22: R1K | AF22: BRIGHTON AND SUSSEX UNIVERSITY HOSPITALS NHS TRUST | AH22: R1K | AI22: BRIGHTON AND SUSSEX UNIVERSITY HOSPITALS NHS TRUST | AJ22: NT213 | AK22: Bedford Hospital South Wing - RC110 | AM22: R1K | AN22: BRIGHTON AND SUSSEX UNIVERSITY HOSPITALS NHS TRUST | AO22: NT213 | AP22: Bedford Hospital South Wing - RC110 | AQ22: 20
U23: Q70 | V23: RN5 | W23: HAMPSHIRE HOSPITALS NHS FOUNDATION TRUST | X23: RN506 | Y23: Basingstoke and North Hampshire Hospital - RN506 | Z23: CCU IP | AE23: RA2 | AF23: BUCKINGHAMSHIRE HEALTHCARE NHS TRUST | AH23: RA2 | AI23: BUCKINGHAMSHIRE HEALTHCARE NHS TRUST | AJ23: NT214 | AK23: Benenden Hospital - NWF01 | AM23: RA2 | AN23: BUCKINGHAMSHIRE HEALTHCARE NHS TRUST | AO23: NT214 | AP23: Benenden Hospital - NWF01 | AQ23: 21
U24: Q70 | V24: RN5 | W24: HAMPSHIRE HOSPITALS NHS FOUNDATION TRUST | X24: RN506 | Y24: Basingstoke and North Hampshire Hospital - RN506 | Z24: D1 IP | AE24: RA3 | AF24: BURTON HOSPITALS NHS FOUNDATION TRUST | AH24: RA3 | AI24: BURTON HOSPITALS NHS FOUNDATION TRUST | AJ24: NT215 | AK24: Berwick Infirmary - RTFDH | AM24: RA3 | AN24: BURTON HOSPITALS NHS FOUNDATION TRUST | AO24: NT215 | AP24: Berwick Infirmary - RTFDH | AQ24: 22
U25: Q70 | V25: RN5 | W25: HAMPSHIRE HOSPITALS NHS FOUNDATION TRUST | X25: RN506 | Y25: Basingstoke and North Hampshire Hospital - RN506 | Z25: D3 IP | AE25: RA4 | AF25: CALDERDALE AND HUDDERSFIELD NHS FOUNDATION TRUST | AH25: RA4 | AI25: CALDERDALE AND HUDDERSFIELD NHS FOUNDATION TRUST | AJ25: NT216 | AK25: Bexhill Hospital - RXC03 | AM25: RA4 | AN25: CALDERDALE AND HUDDERSFIELD NHS FOUNDATION TRUST | AO25: NT216 | AP25: Bexhill Hospital - RXC03 | AQ25: 23
U26: Q70 | V26: RN5 | W26: HAMPSHIRE HOSPITALS NHS FOUNDATION TRUST | X26: RN506 | Y26: Basingstoke and North Hampshire Hospital - RN506 | Z26: D4 IP | AE26: RA7 | AF26: CAMBRIDGE UNIVERSITY HOSPITALS NHS FOUNDATION TRUST | AH26: RA7 | AI26: CAMBRIDGE UNIVERSITY HOSPITALS NHS FOUNDATION TRUST | AJ26: NT218 | AK26: Birch Hill Hospital - RW605 | AM26: RA7 | AN26: CAMBRIDGE UNIVERSITY HOSPITALS NHS FOUNDATION TRUST | AO26: NT218 | AP26: Birch Hill Hospital - RW605 | AQ26: 24
U27: Q70 | V27: RN5 | W27: HAMPSHIRE HOSPITALS NHS FOUNDATION TRUST | X27: RN506 | Y27: Basingstoke and North Hampshire Hospital - RN506 | Z27: Daycases | AE27: RA9 | AF27: CARE UK | AH27: RA9 | AI27: CARE UK | AJ27: NT219 | AK27: Birmingham Children's Hospital - RQ301 | AM27: RA9 | AN27: CARE UK | AO27: NT219 | AP27: Birmingham Children's Hospital - RQ301 | AQ27: 26
U28: Q70 | V28: RN5 | W28: HAMPSHIRE HOSPITALS NHS FOUNDATION TRUST | X28: RN506 | Y28: Basingstoke and North Hampshire Hospital - RN506 | Z28: DTCW IP | AE28: RAE | AF28: CENTRAL MANCHESTER UNIVERSITY HOSPITALS NHS FOUNDATION TRUST | AH28: RAE | AI28: CENTRAL MANCHESTER UNIVERSITY HOSPITALS NHS FOUNDATION TRUST | AJ28: NT222 | AK28: Birmingham Midland Eye Centre (Bmec) - RXK03 | AM28: RAE | AN28: CENTRAL MANCHESTER UNIVERSITY HOSPITALS NHS FOUNDATION TRUST | AO28: NT222 | AP28: Birmingham Midland Eye Centre (Bmec) - RXK03 | AQ28: 28
U29: Q70 | V29: RN5 | W29: HAMPSHIRE HOSPITALS NHS FOUNDATION TRUST | X29: RN506 | Y29: Basingstoke and North Hampshire Hospital - RN506 | Z29: E1 IP | AE29: RAJ | AF29: CHELSEA AND WESTMINSTER HOSPITAL NHS FOUNDATION TRUST | AH29: RAJ | AI29: CHELSEA AND WESTMINSTER HOSPITAL NHS FOUNDATION TRUST | AJ29: NT224 | AK29: Birmingham Treatment Centre - RXKTC | AM29: RAJ | AN29: CHELSEA AND WESTMINSTER HOSPITAL NHS FOUNDATION TRUST | AO29: NT224 | AP29: Birmingham Treatment Centre - RXKTC | AQ29: 29
U30: Q70 | V30: RN5 | W30: HAMPSHIRE HOSPITALS NHS FOUNDATION TRUST | X30: RN506 | Y30: Basingstoke and North Hampshire Hospital - RN506 | Z30: E2 IP | AE30: RAL | AF30: CHESTERFIELD ROYAL HOSPITAL NHS FOUNDATION TRUST | AH30: RAL | AI30: CHESTERFIELD ROYAL HOSPITAL NHS FOUNDATION TRUST | AJ30: NT225 | AK30: Birmingham Women's Hospital - RLU01 | AM30: RAL | AN30: CHESTERFIELD ROYAL HOSPITAL NHS FOUNDATION TRUST | AO30: NT225 | AP30: Birmingham Women's Hospital - RLU01 | AQ30: 30
U31: Q70 | V31: RN5 | W31: HAMPSHIRE HOSPITALS NHS FOUNDATION TRUST | X31: RN506 | Y31: Basingstoke and North Hampshire Hospital - RN506 | Z31: E3 IP | AE31: RAN | AF31: CIRCLE | AH31: RAN | AI31: CIRCLE | AJ31: NT226 | AK31: Bishop Auckland Hospital - RXPBA | AM31: RAN | AN31: CIRCLE | AO31: NT226 | AP31: Bishop Auckland Hospital - RXPBA | AQ31: 31
U32: Q70 | V32: RN5 | W32: HAMPSHIRE HOSPITALS NHS FOUNDATION TRUST | X32: RN506 | Y32: Basingstoke and North Hampshire Hospital - RN506 | Z32: E4 IP | AE32: RAP | AF32: CITY HOSPITALS SUNDERLAND NHS FOUNDATION TRUST | AH32: RAP | AI32: CITY HOSPITALS SUNDERLAND NHS FOUNDATION TRUST | AJ32: NT229 | AK32: Blackpool Victoria Hospital - RXL01 | AM32: RAP | AN32: CITY HOSPITALS SUNDERLAND NHS FOUNDATION TRUST | AO32: NT229 | AP32: Blackpool Victoria Hospital - RXL01 | AQ32: 32
U33: Q70 | V33: RN5 | W33: HAMPSHIRE HOSPITALS NHS FOUNDATION TRUST | X33: RN506 | Y33: Basingstoke and North Hampshire Hospital - RN506 | Z33: EIW IP | AE33: RAS | AF33: COLCHESTER HOSPITAL UNIVERSITY NHS FOUNDATION TRUST | AH33: RAS | AI33: COLCHESTER HOSPITAL UNIVERSITY NHS FOUNDATION TRUST | AJ33: NT230 | AK33: Blakelands NHS Treatment Centre - NVC31 | AM33: RAS | AN33: COLCHESTER HOSPITAL UNIVERSITY NHS FOUNDATION TRUST | AO33: NT230 | AP33: Blakelands NHS Treatment Centre - NVC31 | AQ33: 33
U34: Q70 | V34: RN5 | W34: HAMPSHIRE HOSPITALS NHS FOUNDATION TRUST | X34: RN506 | Y34: Basingstoke and North Hampshire Hospital - RN506 | Z34: F1 IP | AE34: RAX | AF34: COUNTESS OF CHESTER HOSPITAL NHS FOUNDATION TRUST | AH34: RAX | AI34: COUNTESS OF CHESTER HOSPITAL NHS FOUNDATION TRUST | AJ34: NT233 | AK34: Blyth Community Hospital - RTFDX | AM34: RAX | AN34: COUNTESS OF CHESTER HOSPITAL NHS FOUNDATION TRUST | AO34: NT233 | AP34: Blyth Community Hospital - RTFDX | AQ34: 34
U35: Q70 | V35: RN5 | W35: HAMPSHIRE HOSPITALS NHS FOUNDATION TRUST | X35: RN506 | Y35: Basingstoke and North Hampshire Hospital - RN506 | Z35: F2 IP | AE35: RBA | AF35: COUNTY DURHAM AND DARLINGTON NHS FOUNDATION TRUST | AH35: RBA | AI35: COUNTY DURHAM AND DARLINGTON NHS FOUNDATION TRUST | AJ35: NT235 | AK35: BMI - Bath Clinic - NT402 | AM35: RBA | AN35: COUNTY DURHAM AND DARLINGTON NHS FOUNDATION TRUST | AO35: NT235 | AP35: BMI - Bath Clinic - NT402 | AQ35: 35
U36: Q70 | V36: RN5 | W36: HAMPSHIRE HOSPITALS NHS FOUNDATION TRUST | X36: RN506 | Y36: Basingstoke and North Hampshire Hospital - RN506 | Z36: F3 IP | AE36: RBD | AF36: CROYDON HEALTH SERVICES NHS TRUST | AH36: RBD | AI36: CROYDON HEALTH SERVICES NHS TRUST | AJ36: NT237 | AK36: BMI - Bishops Wood - NT405 | AM36: RBD | AN36: CROYDON HEALTH SERVICES NHS TRUST | AO36: NT237 | AP36: BMI - Bishops Wood - NT405 | AQ36: 36
U37: Q70 | V37: RN5 | W37: HAMPSHIRE HOSPITALS NHS FOUNDATION TRUST | X37: RN506 | Y37: Basingstoke and North Hampshire Hospital - RN506 | Z37: FIRS IP | AE37: RBK | AF37: DARTFORD AND GRAVESHAM NHS TRUST | AH37: RBK | AI37: DARTFORD AND GRAVESHAM NHS TRUST | AJ37: NT238 | AK37: BMI - Chelsfield Park Hospital - NT409 | AM37: RBK | AN37: DARTFORD AND GRAVESHAM NHS TRUST | AO37: NT238 | AP37: BMI - Chelsfield Park Hospital - NT409 | AQ37: 37
U38: Q70 | V38: RN5 | W38: HAMPSHIRE HOSPITALS NHS FOUNDATION TRUST | X38: RN506 | Y38: Basingstoke and North Hampshire Hospital - RN506 | Z38: GWRD IP | AE38: RBL | AF38: DERBY TEACHING HOSPITALS NHS FOUNDATION TRUST | AH38: RBL | AI38: DERBY TEACHING HOSPITALS NHS FOUNDATION TRUST | AJ38: NT239 | AK38: BMI - Fawkham Manor Hospital - NT414 | AM38: RBL | AN38: DERBY TEACHING HOSPITALS NHS FOUNDATION TRUST | AO38: NT239 | AP38: BMI - Fawkham Manor Hospital - NT414 | AQ38: 38
U39: Q70 | V39: RN5 | W39: HAMPSHIRE HOSPITALS NHS FOUNDATION TRUST | X39: RN506 | Y39: Basingstoke and North Hampshire Hospital - RN506 | Z39: SSW IP | AE39: RBN | AF39: DONCASTER AND BASSETLAW HOSPITALS NHS FOUNDATION TRUST | AH39: RBN | AI39: DONCASTER AND BASSETLAW HOSPITALS NHS FOUNDATION TRUST | AJ39: NT241 | AK39: BMI - Goring Hall Hospital - NT417 | AM39: RBN | AN39: DONCASTER AND BASSETLAW HOSPITALS NHS FOUNDATION TRUST | AO39: NT241 | AP39: BMI - Goring Hall Hospital - NT417 | AQ39: 41
U40: Q70 | V40: RN5 | W40: HAMPSHIRE HOSPITALS NHS FOUNDATION TRUST | X40: RN506 | Y40: Basingstoke and North Hampshire Hospital - RN506 | Z40: Wessex WX IP | AE40: RBQ | AF40: DORSET COUNTY HOSPITAL NHS FOUNDATION TRUST | AH40: RBQ | AI40: DORSET COUNTY HOSPITAL NHS FOUNDATION TRUST | AJ40: NT242 | AK40: BMI - Sarum Road Hospital - NT433 | AM40: RBQ | AN40: DORSET COUNTY HOSPITAL NHS FOUNDATION TRUST | AO40: NT242 | AP40: BMI - Sarum Road Hospital - NT433 | AQ40: 54
U41: Q70 | V41: RN5 | W41: HAMPSHIRE HOSPITALS NHS FOUNDATION TRUST | X41: RN506 | Y41: Basingstoke and North Hampshire Hospital - RN506 | Z41: WHU IP | AE41: RBS | AF41: EAST AND NORTH HERTFORDSHIRE NHS TRUST | AH41: RBS | AI41: EAST AND NORTH HERTFORDSHIRE NHS TRUST | AJ41: NT244 | AK41: BMI - Shirley Oaks Hospital - NT436 | AM41: RBS | AN41: EAST AND NORTH HERTFORDSHIRE NHS TRUST | AO41: NT244 | AP41: BMI - Shirley Oaks Hospital - NT436 | AQ41: 75
U42: Q70 | V42: RN5 | W42: HAMPSHIRE HOSPITALS NHS FOUNDATION TRUST | X42: RN541 | Y42: Royal Hampshire County Hospital - RN541 | Z42: ATL IP | AE42: RBT | AF42: EAST CHESHIRE NHS TRUST | AH42: RBT | AI42: EAST CHESHIRE NHS TRUST | AJ42: NT245 | AK42: BMI - The Alexandra Hospital - NT401 | AM42: RBT | AN42: EAST CHESHIRE NHS TRUST | AO42: NT245 | AP42: BMI - The Alexandra Hospital - NT401 | AQ42: 78
U43: Q70 | V43: RN5 | W43: HAMPSHIRE HOSPITALS NHS FOUNDATION TRUST | X43: RN541 | Y43: Royal Hampshire County Hospital - RN541 | Z43: Bartlett IP | AE43: RBV | AF43: EAST KENT HOSPITALS UNIVERSITY NHS FOUNDATION TRUST | AH43: RBV | AI43: EAST KENT HOSPITALS UNIVERSITY NHS FOUNDATION TRUST | AJ43: NT301 | AK43: BMI - The Beardwood Hospital - NT403 | AM43: RBV | AN43: EAST KENT HOSPITALS UNIVERSITY NHS FOUNDATION TRUST | AO43: NT301 | AP43: BMI - The Beardwood Hospital - NT403 | AQ43: 100
U44: Q70 | V44: RN5 | W44: HAMPSHIRE HOSPITALS NHS FOUNDATION TRUST | X44: RN541 | Y44: Royal Hampshire County Hospital - RN541 | Z44: Clarke IP | AE44: RBZ | AF44: EAST KENT MEDICAL SERVICES LTD | AH44: RBZ | AI44: EAST KENT MEDICAL SERVICES LTD | AJ44: NT302 | AK44: BMI - The Beaumont Hospital - NT404 | AM44: RBZ | AN44: EAST KENT MEDICAL SERVICES LTD | AO44: NT302 | AP44: BMI - The Beaumont Hospital - NT404 | AQ44: 101
U45: Q70 | V45: RN5 | W45: HAMPSHIRE HOSPITALS NHS FOUNDATION TRUST | X45: RN541 | Y45: Royal Hampshire County Hospital - RN541 | Z45: Clifton IP | AE45: RC1 | AF45: EAST LANCASHIRE HOSPITALS NHS TRUST | AH45: RC1 | AI45: EAST LANCASHIRE HOSPITALS NHS TRUST | AJ45: NT304 | AK45: BMI - The Blackheath Hospital - NT406 | AM45: RC1 | AN45: EAST LANCASHIRE HOSPITALS NHS TRUST | AO45: NT304 | AP45: BMI - The Blackheath Hospital - NT406 | AQ45: 200
U46: Q70 | V46: RN5 | W46: HAMPSHIRE HOSPITALS NHS FOUNDATION TRUST | X46: RN541 | Y46: Royal Hampshire County Hospital - RN541 | Z46: Daycases | AE46: RC9 | AF46: EAST SUSSEX HEALTHCARE NHS TRUST | AH46: RC9 | AI46: EAST SUSSEX HEALTHCARE NHS TRUST | AJ46: NT305 | AK46: BMI - The Chaucer Hospital - NT408 | AM46: RC9 | AN46: EAST SUSSEX HEALTHCARE NHS TRUST | AO46: NT305 | AP46: BMI - The Chaucer Hospital - NT408 | AQ46: 202
U47: Q70 | V47: RN5 | W47: HAMPSHIRE HOSPITALS NHS FOUNDATION TRUST | X47: RN541 | Y47: Royal Hampshire County Hospital - RN541 | Z47: Freshfield IP | AE47: RCB | AF47: EPSOM AND ST HELIER UNIVERSITY HOSPITALS NHS TRUST | AH47: RCB | AI47: EPSOM AND ST HELIER UNIVERSITY HOSPITALS NHS TRUST | AJ47: NT308 | AK47: BMI - The Chiltern Hospital - NT410 | AM47: RCB | AN47: EPSOM AND ST HELIER UNIVERSITY HOSPITALS NHS TRUST | AO47: NT308 | AP47: BMI - The Chiltern Hospital - NT410 | AQ47: 203
U48: Q70 | V48: RN5 | W48: HAMPSHIRE HOSPITALS NHS FOUNDATION TRUST | X48: RN541 | Y48: Royal Hampshire County Hospital - RN541 | Z48: Kemp Welch IP | AE48: RCD | AF48: FAIRFIELD HOSPITAL | AH48: RCD | AI48: FAIRFIELD HOSPITAL | AJ48: NT309 | AK48: BMI - The Clementine Churchill Hospital - NT411 | AM48: RCD | AN48: FAIRFIELD HOSPITAL | AO48: NT309 | AP48: BMI - The Clementine Churchill Hospital - NT411 | AQ48: 204
U49: Q70 | V49: RN5 | W49: HAMPSHIRE HOSPITALS NHS FOUNDATION TRUST | X49: RN541 | Y49: Royal Hampshire County Hospital - RN541 | Z49: McGill AMU IP | AE49: RCF | AF49: FOSCOTE COURT (BANBURY) TRUST LTD | AH49: RCF | AI49: FOSCOTE COURT (BANBURY) TRUST LTD | AJ49: NT310 | AK49: BMI - The Droitwich Spa Hospital - NT412 | AM49: RCF | AN49: FOSCOTE COURT (BANBURY) TRUST LTD | AO49: NT310 | AP49: BMI - The Droitwich Spa Hospital - NT412 | AQ49: 205
U50: Q70 | V50: RN5 | W50: HAMPSHIRE HOSPITALS NHS FOUNDATION TRUST | X50: RN541 | Y50: Royal Hampshire County Hospital - RN541 | Z50: Northbrook IP | AE50: RCU | AF50: FRIMLEY HEALTH NHS FOUNDATION TRUST | AH50: RCU | AI50: FRIMLEY HEALTH NHS FOUNDATION TRUST | AJ50: NT312 | AK50: BMI - The Esperance Hospital - NT413 | AM50: RCU | AN50: FRIMLEY HEALTH NHS FOUNDATION TRUST | AO50: NT312 | AP50: BMI - The Esperance Hospital - NT413 | AQ50: 206
U51: Q70 | V51: RN5 | W51: HAMPSHIRE HOSPITALS NHS FOUNDATION TRUST | X51: RN541 | Y51: Royal Hampshire County Hospital - RN541 | Z51: Shawford IP | AE51: RCX | AF51: GATESHEAD HEALTH NHS FOUNDATION TRUST | AH51: RCX | AI51: GATESHEAD HEALTH NHS FOUNDATION TRUST | AJ51: NT313 | AK51: BMI - The Garden Hospital - NT416 | AM51: RCX | AN51: GATESHEAD HEALTH NHS FOUNDATION TRUST | AO51: NT313 | AP51: BMI - The Garden Hospital - NT416 | AQ51: 207
U52: Q70 | V52: RN5 | W52: HAMPSHIRE HOSPITALS NHS FOUNDATION TRUST | X52: RN541 | Y52: Royal Hampshire County Hospital - RN541 | Z52: St Cross IP | AE52: RD1 | AF52: GEORGE ELIOT HOSPITAL NHS TRUST | AH52: RD1 | AI52: GEORGE ELIOT HOSPITAL NHS TRUST | AJ52: NT314 | AK52: BMI - The Hampshire Clinic - NT418 | AM52: RD1 | AN52: GEORGE ELIOT HOSPITAL NHS TRUST | AO52: NT314 | AP52: BMI - The Hampshire Clinic - NT418 | AQ52: 208
U53: Q70 | V53: RN5 | W53: HAMPSHIRE HOSPITALS NHS FOUNDATION TRUST | X53: RN541 | Y53: Royal Hampshire County Hospital - RN541 | Z53: TC Endo & Sur IP | AE53: RD3 | AF53: GLOUCESTERSHIRE HOSPITALS NHS FOUNDATION TRUST | AH53: RD3 | AI53: GLOUCESTERSHIRE HOSPITALS NHS FOUNDATION TRUST | AJ53: NT315 | AK53: BMI - The Harbour Hospital - NT419 | AM53: RD3 | AN53: GLOUCESTERSHIRE HOSPITALS NHS FOUNDATION TRUST | AO53: NT315 | AP53: BMI - The Harbour Hospital - NT419 | AQ53: 209
U54: Q70 | V54: RN5 | W54: HAMPSHIRE HOSPITALS NHS FOUNDATION TRUST | X54: RN541 | Y54: Royal Hampshire County Hospital - RN541 | Z54: Twyford IP | AE54: RD8 | AF54: GREAT ORMOND STREET HOSPITAL FOR CHILDREN NHS FOUNDATION TRUST | AH54: RD8 | AI54: GREAT ORMOND STREET HOSPITAL FOR CHILDREN NHS FOUNDATION TRUST | AJ54: NT316 | AK54: BMI - The Highfield Hospital - NT420 | AM54: RD8 | AN54: GREAT ORMOND STREET HOSPITAL FOR CHILDREN NHS FOUNDATION TRUST | AO54: NT316 | AP54: BMI - The Highfield Hospital - NT420 | AQ54: 216
U55: Q70 | V55: RN5 | W55: HAMPSHIRE HOSPITALS NHS FOUNDATION TRUST | X55: RN541 | Y55: Royal Hampshire County Hospital - RN541 | Z55: Victoria IP | AE55: RDD | AF55: GREAT WESTERN HOSPITALS NHS FOUNDATION TRUST | AH55: RDD | AI55: GREAT WESTERN HOSPITALS NHS FOUNDATION TRUST | AJ55: NT317 | AK55: BMI - The Kings Oak Hospital - NT421 | AM55: RDD | AN55: GREAT WESTERN HOSPITALS NHS FOUNDATION TRUST | AO55: NT317 | AP55: BMI - The Kings Oak Hospital - NT421 | AQ55: 301
U56: Q70 | V56: RN5 | W56: HAMPSHIRE HOSPITALS NHS FOUNDATION TRUST | X56: RN541 | Y56: Royal Hampshire County Hospital - RN541 | Z56: Wainwright IP | AE56: RDE | AF56: GUY'S AND ST THOMAS' NHS FOUNDATION TRUST | AH56: RDE | AI56: GUY'S AND ST THOMAS' NHS FOUNDATION TRUST | AJ56: NT318 | AK56: BMI - The London Independent Hospital - NT422 | AM56: RDE | AN56: GUY'S AND ST THOMAS' NHS FOUNDATION TRUST | AO56: NT318 | AP56: BMI - The London Independent Hospital - NT422 | AQ56: 302
U57: Q70 | V57: RN5 | W57: HAMPSHIRE HOSPITALS NHS FOUNDATION TRUST | X57: RN541 | Y57: Royal Hampshire County Hospital - RN541 | Z57: Wykeham IP | AE57: RDU | AF57: HAMPSHIRE HOSPITALS NHS FOUNDATION TRUST | AH57: RDU | AI57: HAMPSHIRE HOSPITALS NHS FOUNDATION TRUST | AJ57: NT319 | AK57: BMI - The Manor Hospital - NT423 | AM57: RDU | AN57: HAMPSHIRE HOSPITALS NHS FOUNDATION TRUST | AO57: NT319 | AP57: BMI - The Manor Hospital - NT423 | AQ57: 303
U58: Q70 | V58: R1F | W58: ISLE OF WIGHT NHS TRUST | X58: R1F01 | Y58: St Mary's Hospital - R1F01 | Z58: Alverstone | AE58: RDZ | AF58: HARROGATE AND DISTRICT NHS FOUNDATION TRUST | AH58: RDZ | AI58: HARROGATE AND DISTRICT NHS FOUNDATION TRUST | AJ58: NT320 | AK58: BMI - The Meriden Hospital - NT424 | AM58: RDZ | AN58: HARROGATE AND DISTRICT NHS FOUNDATION TRUST | AO58: NT320 | AP58: BMI - The Meriden Hospital - NT424 | AQ58: 304
U59: Q70 | V59: R1F | W59: ISLE OF WIGHT NHS TRUST | X59: R1F01 | Y59: St Mary's Hospital - R1F01 | Z59: Children's Ward | AE59: RE9 | AF59: HEART OF ENGLAND NHS FOUNDATION TRUST | AH59: RE9 | AI59: HEART OF ENGLAND NHS FOUNDATION TRUST | AJ59: NT321 | AK59: BMI - The Park Hospital - NT427 | AM59: RE9 | AN59: HEART OF ENGLAND NHS FOUNDATION TRUST | AO59: NT321 | AP59: BMI - The Park Hospital - NT427 | AQ59: 305
U60: Q70 | V60: R1F | W60: ISLE OF WIGHT NHS TRUST | X60: R1F01 | Y60: St Mary's Hospital - R1F01 | Z60: Colwell | AE60: REF | AF60: HINCHINGBROOKE HEALTH CARE NHS TRUST | AH60: REF | AI60: HINCHINGBROOKE HEALTH CARE NHS TRUST | AJ60: NT322 | AK60: BMI - The Princess Margaret Hospital - NT428 | AM60: REF | AN60: HINCHINGBROOKE HEALTH CARE NHS TRUST | AO60: NT322 | AP60: BMI - The Princess Margaret Hospital - NT428 | AQ60: 306
U61: Q70 | V61: R1F | W61: ISLE OF WIGHT NHS TRUST | X61: R1F01 | Y61: St Mary's Hospital - R1F01 | Z61: Coronary Care Unit | AE61: REM | AF61: HOMERTON UNIVERSITY HOSPITAL NHS FOUNDATION TRUST | AH61: REM | AI61: HOMERTON UNIVERSITY HOSPITAL NHS FOUNDATION TRUST | AJ61: NT324 | AK61: BMI - The Priory Hospital - NT429 | AM61: REM | AN61: HOMERTON UNIVERSITY HOSPITAL NHS FOUNDATION TRUST | AO61: NT324 | AP61: BMI - The Priory Hospital - NT429 | AQ61: 307
U62: Q70 | V62: R1F | W62: ISLE OF WIGHT NHS TRUST | X62: R1F01 | Y62: St Mary's Hospital - R1F01 | Z62: Daycases | AE62: REN | AF62: HULL AND EAST YORKSHIRE HOSPITALS NHS TRUST | AH62: REN | AI62: HULL AND EAST YORKSHIRE HOSPITALS NHS TRUST | AJ62: NT325 | AK62: BMI - The Ridgeway Hospital - NT430 | AM62: REN | AN62: HULL AND EAST YORKSHIRE HOSPITALS NHS TRUST | AO62: NT325 | AP62: BMI - The Ridgeway Hospital - NT430 | AQ62: 308
U63: Q70 | V63: R1F | W63: ISLE OF WIGHT NHS TRUST | X63: R1F01 | Y63: St Mary's Hospital - R1F01 | Z63: Luccombe | AE63: REP | AF63: IMPERIAL COLLEGE HEALTHCARE NHS TRUST | AH63: REP | AI63: IMPERIAL COLLEGE HEALTHCARE NHS TRUST | AJ63: NT327 | AK63: BMI - The Runnymede Hospital - NT431 | AM63: REP | AN63: IMPERIAL COLLEGE HEALTHCARE NHS TRUST | AO63: NT327 | AP63: BMI - The Runnymede Hospital - NT431 | AQ63: 309
U64: Q70 | V64: R1F | W64: ISLE OF WIGHT NHS TRUST | X64: R1F01 | Y64: St Mary's Hospital - R1F01 | Z64: Medical Assessment Unit | AE64: RET | AF64: IPSWICH HOSPITAL NHS TRUST | AH64: RET | AI64: IPSWICH HOSPITAL NHS TRUST | AJ64: NT332 | AK64: BMI - The Sandringham Hospital - NT432 | AM64: RET | AN64: IPSWICH HOSPITAL NHS TRUST | AO64: NT332 | AP64: BMI - The Sandringham Hospital - NT432 | AQ64: 310
U65: Q70 | V65: R1F | W65: ISLE OF WIGHT NHS TRUST | X65: R1F01 | Y65: St Mary's Hospital - R1F01 | Z65: Mottistone | AE65: RF4 | AF65: ISLE OF WIGHT NHS TRUST | AH65: RF4 | AI65: ISLE OF WIGHT NHS TRUST | AJ65: NT333 | AK65: BMI - The Saxon Clinic - NT434 | AM65: RF4 | AN65: ISLE OF WIGHT NHS TRUST | AO65: NT333 | AP65: BMI - The Saxon Clinic - NT434 | AQ65: 311
U66: Q70 | V66: R1F | W66: ISLE OF WIGHT NHS TRUST | X66: R1F01 | Y66: St Mary's Hospital - R1F01 | Z66: St Helens | AE66: RFF | AF66: JAMES PAGET UNIVERSITY HOSPITALS NHS FOUNDATION TRUST | AH66: RFF | AI66: JAMES PAGET UNIVERSITY HOSPITALS NHS FOUNDATION TRUST | AJ66: NT337 | AK66: BMI - The Shelburne Hospital - NT435 | AM66: RFF | AN66: JAMES PAGET UNIVERSITY HOSPITALS NHS FOUNDATION TRUST | AO66: NT337 | AP66: BMI - The Shelburne Hospital - NT435 | AQ66: 312
U67: Q70 | V67: R1F | W67: ISLE OF WIGHT NHS TRUST | X67: R1F01 | Y67: St Mary's Hospital - R1F01 | Z67: Whippingham | AE67: RFR | AF67: KENT INSTITUTE OF MEDICINE AND SURGERY | AH67: RFR | AI67: KENT INSTITUTE OF MEDICINE AND SURGERY | AJ67: NT339 | AK67: BMI - The Sloane Hospital - NT437 | AM67: RFR | AN67: KENT INSTITUTE OF MEDICINE AND SURGERY | AO67: NT339 | AP67: BMI - The Sloane Hospital - NT437 | AQ67: 313
U68: Q70 | V68: RD3 | W68: POOLE HOSPITAL NHS FOUNDATION TRUST | X68: RD304 | Y68: Poole General Hospital NHS Trust HQ - RD304 | Z68: A2 | AE68: RFS | AF68: KETTERING GENERAL HOSPITAL NHS FOUNDATION TRUST | AH68: RFS | AI68: KETTERING GENERAL HOSPITAL NHS FOUNDATION TRUST | AJ68: NT343 | AK68: BMI - The Somerfield Hospital - NT438 | AM68: RFS | AN68: KETTERING GENERAL HOSPITAL NHS FOUNDATION TRUST | AO68: NT343 | AP68: BMI - The Somerfield Hospital - NT438 | AQ68: 401
U69: Q70 | V69: RD3 | W69: POOLE HOSPITAL NHS FOUNDATION TRUST | X69: RD304 | Y69: Poole General Hospital NHS Trust HQ - RD304 | Z69: A4 | AE69: RGM | AF69: KING'S COLLEGE HOSPITAL NHS FOUNDATION TRUST | AH69: RGM | AI69: KING'S COLLEGE HOSPITAL NHS FOUNDATION TRUST | AJ69: NT344 | AK69: BMI - The South Cheshire Private Hospital - NT439 | AM69: RGM | AN69: KING'S COLLEGE HOSPITAL NHS FOUNDATION TRUST | AO69: NT344 | AP69: BMI - The South Cheshire Private Hospital - NT439 | AQ69: 402
U70: Q70 | V70: RD3 | W70: POOLE HOSPITAL NHS FOUNDATION TRUST | X70: RD304 | Y70: Poole General Hospital NHS Trust HQ - RD304 | Z70: A5 | AE70: RGN | AF70: KINGSTON HOSPITAL NHS FOUNDATION TRUST | AH70: RGN | AI70: KINGSTON HOSPITAL NHS FOUNDATION TRUST | AJ70: NT345 | AK70: BMI - The Winterbourne Hospital - NT443 | AM70: RGN | AN70: KINGSTON HOSPITAL NHS FOUNDATION TRUST | AO70: NT345 | AP70: BMI - The Winterbourne Hospital - NT443 | AQ70: 403
U71: Q70 | V71: RD3 | W71: POOLE HOSPITAL NHS FOUNDATION TRUST | X71: RD304 | Y71: Poole General Hospital NHS Trust HQ - RD304 | Z71: B2 | AE71: RGP | AF71: LANCASHIRE TEACHING HOSPITALS NHS FOUNDATION TRUST | AH71: RGP | AI71: LANCASHIRE TEACHING HOSPITALS NHS FOUNDATION TRUST | AJ71: NT346 | AK71: BMI - Thornbury Hospital - NT440 | AM71: RGP | AN71: LANCASHIRE TEACHING HOSPITALS NHS FOUNDATION TRUST | AO71: NT346 | AP71: BMI - Thornbury Hospital - NT440 | AQ71: 404
U72: Q70 | V72: RD3 | W72: POOLE HOSPITAL NHS FOUNDATION TRUST | X72: RD304 | Y72: Poole General Hospital NHS Trust HQ - RD304 | Z72: B3 | AE72: RGQ | AF72: LEEDS TEACHING HOSPITALS NHS TRUST | AH72: RGQ | AI72: LEEDS TEACHING HOSPITALS NHS TRUST | AJ72: NT347 | AK72: BMI - Three Shires Hospital - NT441 | AM72: RGQ | AN72: LEEDS TEACHING HOSPITALS NHS TRUST | AO72: NT347 | AP72: BMI - Three Shires Hospital - NT441 | AQ72: 405
U73: Q70 | V73: RD3 | W73: POOLE HOSPITAL NHS FOUNDATION TRUST | X73: RD304 | Y73: Poole General Hospital NHS Trust HQ - RD304 | Z73: B4 | AE73: RGR | AF73: LEWISHAM AND GREENWICH NHS TRUST | AH73: RGR | AI73: LEWISHAM AND GREENWICH NHS TRUST | AJ73: NT348 | AK73: BMI Gisburne Park Hospital - NT497 | AM73: RGR | AN73: LEWISHAM AND GREENWICH NHS TRUST | AO73: NT348 | AP73: BMI Gisburne Park Hospital - NT497 | AQ73: 406
U74: Q70 | V74: RD3 | W74: POOLE HOSPITAL NHS FOUNDATION TRUST | X74: RD304 | Y74: Poole General Hospital NHS Trust HQ - RD304 | Z74: C3 | AE74: RGT | AF74: LIVERPOOL HEART AND CHEST HOSPITAL NHS FOUNDATION TRUST | AH74: RGT | AI74: LIVERPOOL HEART AND CHEST HOSPITAL NHS FOUNDATION TRUST | AJ74: NT350 | AK74: BMI Mount Alvernia Hospital - NT455 | AM74: RGT | AN74: LIVERPOOL HEART AND CHEST HOSPITAL NHS FOUNDATION TRUST | AO74: NT350 | AP74: BMI Mount Alvernia Hospital - NT455 | AQ74: 407
U75: Q70 | V75: RD3 | W75: POOLE HOSPITAL NHS FOUNDATION TRUST | X75: RD304 | Y75: Poole General Hospital NHS Trust HQ - RD304 | Z75: CCU | AE75: RH8 | AF75: LIVERPOOL WOMEN'S NHS FOUNDATION TRUST | AH75: RH8 | AI75: LIVERPOOL WOMEN'S NHS FOUNDATION TRUST | AJ75: NT351 | AK75: BMI Southend Private Hospital - NT490 | AM75: RH8 | AN75: LIVERPOOL WOMEN'S NHS FOUNDATION TRUST | AO75: NT351 | AP75: BMI Southend Private Hospital - NT490 | AQ75: 408
U76: Q70 | V76: RD3 | W76: POOLE HOSPITAL NHS FOUNDATION TRUST | X76: RD304 | Y76: Poole General Hospital NHS Trust HQ - RD304 | Z76: D1 | AE76: RHM | AF76: LONDON NORTH WEST HEALTHCARE NHS TRUST | AH76: RHM | AI76: LONDON NORTH WEST HEALTHCARE NHS TRUST | AJ76: NT364 | AK76: BMI St Edmunds Hospital - NT446 | AM76: RHM | AN76: LONDON NORTH WEST HEALTHCARE NHS TRUST | AO76: NT364 | AP76: BMI St Edmunds Hospital - NT446 | AQ76: 409
U77: Q70 | V77: RD3 | W77: POOLE HOSPITAL NHS FOUNDATION TRUST | X77: RD304 | Y77: Poole General Hospital NHS Trust HQ - RD304 | Z77: Dorset Cancer Centre | AE77: RHQ | AF77: LUTON AND DUNSTABLE UNIVERSITY HOSPITAL NHS FOUNDATION TRUST | AH77: RHQ | AI77: LUTON AND DUNSTABLE UNIVERSITY HOSPITAL NHS FOUNDATION TRUST | AJ77: NT401 | AK77: BMI The Cavell Hospital - NT451 | AM77: RHQ | AN77: LUTON AND DUNSTABLE UNIVERSITY HOSPITAL NHS FOUNDATION TRUST | AO77: NT401 | AP77: BMI The Cavell Hospital - NT451 | AQ77: 410
U78: Q70 | V78: RD3 | W78: POOLE HOSPITAL NHS FOUNDATION TRUST | X78: RD304 | Y78: Poole General Hospital NHS Trust HQ - RD304 | Z78: DSU | AE78: RHU | AF78: MAIDSTONE AND TUNBRIDGE WELLS NHS TRUST | AH78: RHU | AI78: MAIDSTONE AND TUNBRIDGE WELLS NHS TRUST | AJ78: NT402 | AK78: BMI The Duchy Hospital - NT447 | AM78: RHU | AN78: MAIDSTONE AND TUNBRIDGE WELLS NHS TRUST | AO78: NT402 | AP78: BMI The Duchy Hospital - NT447 | AQ78: 03 Ward (Dept 48)
U79: Q70 | V79: RD3 | W79: POOLE HOSPITAL NHS FOUNDATION TRUST | X79: RD304 | Y79: Poole General Hospital NHS Trust HQ - RD304 | Z79: Durlston | AE79: RHW | AF79: MEDWAY NHS FOUNDATION TRUST | AH79: RHW | AI79: MEDWAY NHS FOUNDATION TRUST | AJ79: NT403 | AK79: BMI The Edgbaston Hospital - NT445 | AM79: RHW | AN79: MEDWAY NHS FOUNDATION TRUST | AO79: NT403 | AP79: BMI The Edgbaston Hospital - NT445 | AQ79: 04 - Critical Care Central; North; South
U80: Q70 | V80: RD3 | W80: POOLE HOSPITAL NHS FOUNDATION TRUST | X80: RD304 | Y80: Poole General Hospital NHS Trust HQ - RD304 | Z80: E3 | AE80: RJ1 | AF80: MID CHESHIRE HOSPITALS NHS FOUNDATION TRUST | AH80: RJ1 | AI80: MID CHESHIRE HOSPITALS NHS FOUNDATION TRUST | AJ80: NT404 | AK80: BMI The Huddersfield Hospital - NT448 | AM80: RJ1 | AN80: MID CHESHIRE HOSPITALS NHS FOUNDATION TRUST | AO80: NT404 | AP80: BMI The Huddersfield Hospital - NT448 | AQ80: 04 Ward (Dept 52)
U81: Q70 | V81: RD3 | W81: POOLE HOSPITAL NHS FOUNDATION TRUST | X81: RD304 | Y81: Poole General Hospital NHS Trust HQ - RD304 | Z81: Endoscopy | AE81: RJ2 | AF81: MID ESSEX HOSPITAL SERVICES NHS TRUST | AH81: RJ2 | AI81: MID ESSEX HOSPITAL SERVICES NHS TRUST | AJ81: NT405 | AK81: BMI The Lancaster Hospital - NT449 | AM81: RJ2 | AN81: MID ESSEX HOSPITAL SERVICES NHS TRUST | AO81: NT405 | AP81: BMI The Lancaster Hospital - NT449 | AQ81: 05A North; South
U82: Q70 | V82: RD3 | W82: POOLE HOSPITAL NHS FOUNDATION TRUST | X82: RD304 | Y82: Poole General Hospital NHS Trust HQ - RD304 | Z82: Forest Holme | AE82: RJ6 | AF82: MID YORKSHIRE HOSPITALS NHS TRUST | AH82: RJ6 | AI82: MID YORKSHIRE HOSPITALS NHS TRUST | AJ82: NT406 | AK82: BMI The Lincoln Hospital - NT450 | AM82: RJ6 | AN82: MID YORKSHIRE HOSPITALS NHS TRUST | AO82: NT406 | AP82: BMI The Lincoln Hospital - NT450 | AQ82: 05B North; South
U83: Q70 | V83: RD3 | W83: POOLE HOSPITAL NHS FOUNDATION TRUST | X83: RD304 | Y83: Poole General Hospital NHS Trust HQ - RD304 | Z83: Kimmeridge | AE83: RJ7 | AF83: MILTON KEYNES UNIVERSITY HOSPITAL NHS FOUNDATION TRUST | AH83: RJ7 | AI83: MILTON KEYNES UNIVERSITY HOSPITAL NHS FOUNDATION TRUST | AJ83: NT408 | AK83: BMI Woodlands Hospital - NT457 | AM83: RJ7 | AN83: MILTON KEYNES UNIVERSITY HOSPITAL NHS FOUNDATION TRUST | AO83: NT408 | AP83: BMI Woodlands Hospital - NT457 | AQ83: 06A (HASU)
U84: Q70 | V84: RD3 | W84: POOLE HOSPITAL NHS FOUNDATION TRUST | X84: RD304 | Y84: Poole General Hospital NHS Trust HQ - RD304 | Z84: Lilliput | AE84: RJC | AF84: MOORFIELDS EYE HOSPITAL NHS FOUNDATION TRUST | AH84: RJC | AI84: MOORFIELDS EYE HOSPITAL NHS FOUNDATION TRUST | AJ84: NT409 | AK84: Bodmin NHS Treatment Centre - NVC24 | AM84: RJC | AN84: MOORFIELDS EYE HOSPITAL NHS FOUNDATION TRUST | AO84: NT409 | AP84: Bodmin NHS Treatment Centre - NVC24 | AQ84: 06B North; South
U85: Q70 | V85: RD3 | W85: POOLE HOSPITAL NHS FOUNDATION TRUST | X85: RD304 | Y85: Poole General Hospital NHS Trust HQ - RD304 | Z85: Lulworth | AE85: RJE | AF85: NORFOLK AND NORWICH UNIVERSITY HOSPITALS NHS FOUNDATION TRUST | AH85: RJE | AI85: NORFOLK AND NORWICH UNIVERSITY HOSPITALS NHS FOUNDATION TRUST | AJ85: NT410 | AK85: Boston NHS Treatment Centre - NVC27 | AM85: RJE | AN85: NORFOLK AND NORWICH UNIVERSITY HOSPITALS NHS FOUNDATION TRUST | AO85: NT410 | AP85: Boston NHS Treatment Centre - NVC27 | AQ85: 07A North; South
U86: Q70 | V86: RD3 | W86: POOLE HOSPITAL NHS FOUNDATION TRUST | X86: RD304 | Y86: Poole General Hospital NHS Trust HQ - RD304 | Z86: Lytchett | AE86: RJF | AF86: NORTH BRISTOL NHS TRUST | AH86: RJF | AI86: NORTH BRISTOL NHS TRUST | AJ86: NT411 | AK86: Bradford Royal Infirmary - RAE01 | AM86: RJF | AN86: NORTH BRISTOL NHS TRUST | AO86: NT411 | AP86: Bradford Royal Infirmary - RAE01 | AQ86: 07B North; South
U87: Q70 | V87: RD3 | W87: POOLE HOSPITAL NHS FOUNDATION TRUST | X87: RD304 | Y87: Poole General Hospital NHS Trust HQ - RD304 | Z87: MIU | AE87: RJL | AF87: NORTH CUMBRIA UNIVERSITY HOSPITALS NHS TRUST | AH87: RJL | AI87: NORTH CUMBRIA UNIVERSITY HOSPITALS NHS TRUST | AJ87: NT412 | AK87: Bridlington and District Hospital - RCBNH | AM87: RJL | AN87: NORTH CUMBRIA UNIVERSITY HOSPITALS NHS TRUST | AO87: NT412 | AP87: Bridlington and District Hospital - RCBNH | AQ87: 08A North; South
U88: Q70 | V88: RD3 | W88: POOLE HOSPITAL NHS FOUNDATION TRUST | X88: RD304 | Y88: Poole General Hospital NHS Trust HQ - RD304 | Z88: Sandbanks | AE88: RJN | AF88: NORTH MIDDLESEX UNIVERSITY HOSPITAL NHS TRUST | AH88: RJN | AI88: NORTH MIDDLESEX UNIVERSITY HOSPITAL NHS TRUST | AJ88: NT413 | AK88: Brighton General Hospital - RXH05 | AM88: RJN | AN88: NORTH MIDDLESEX UNIVERSITY HOSPITAL NHS TRUST | AO88: NT413 | AP88: Brighton General Hospital - RXH05 | AQ88: 08B North; South
U89: Q70 | V89: RD3 | W89: POOLE HOSPITAL NHS FOUNDATION TRUST | X89: RD304 | Y89: Poole General Hospital NHS Trust HQ - RD304 | Z89: SCUA | AE89: RJR | AF89: NORTH TEES AND HARTLEPOOL NHS FOUNDATION TRUST | AH89: RJR | AI89: NORTH TEES AND HARTLEPOOL NHS FOUNDATION TRUST | AJ89: NT414 | AK89: Bristol Eye Hospital - RA708 | AM89: RJR | AN89: NORTH TEES AND HARTLEPOOL NHS FOUNDATION TRUST | AO89: NT414 | AP89: Bristol Eye Hospital - RA708 | AQ89: 09A North; South
U90: Q70 | V90: RD3 | W90: POOLE HOSPITAL NHS FOUNDATION TRUST | X90: RD304 | Y90: Poole General Hospital NHS Trust HQ - RD304 | Z90: SCUR | AE90: RJZ | AF90: NORTHAMPTON GENERAL HOSPITAL NHS TRUST | AH90: RJZ | AI90: NORTHAMPTON GENERAL HOSPITAL NHS TRUST | AJ90: NT416 | AK90: Bristol Haematology and Oncology Centre - RA710 | AM90: RJZ | AN90: NORTHAMPTON GENERAL HOSPITAL NHS TRUST | AO90: NT416 | AP90: Bristol Haematology and Oncology Centre - RA710 | AQ90: 09B North; South
U91: Q70 | V91: RD3 | W91: POOLE HOSPITAL NHS FOUNDATION TRUST | X91: RD304 | Y91: Poole General Hospital NHS Trust HQ - RD304 | Z91: SSSU | AE91: RK5 | AF91: NORTHERN DEVON HEALTHCARE NHS TRUST | AH91: RK5 | AI91: NORTHERN DEVON HEALTHCARE NHS TRUST | AJ91: NT417 | AK91: Bristol Royal Hospital For Children - RA723 | AM91: RK5 | AN91: NORTHERN DEVON HEALTHCARE NHS TRUST | AO91: NT417 | AP91: Bristol Royal Hospital For Children - RA723 | AQ91: 10 East
U92: Q70 | V92: RHU | W92: PORTSMOUTH HOSPITALS NHS TRUST | X92: RHU10 | Y92: Gosport War Memorial Hospital - RHU10 | Z92: Ark Royal | AE92: RK9 | AF92: NORTHERN LINCOLNSHIRE AND GOOLE NHS FOUNDATION TRUST | AH92: RK9 | AI92: NORTHERN LINCOLNSHIRE AND GOOLE NHS FOUNDATION TRUST | AJ92: NT418 | AK92: Bristol Royal Infirmary - RA701 | AM92: RK9 | AN92: NORTHERN LINCOLNSHIRE AND GOOLE NHS FOUNDATION TRUST | AO92: NT418 | AP92: Bristol Royal Infirmary - RA701 | AQ92: 10 North
U93: Q70 | V93: RHU | W93: PORTSMOUTH HOSPITALS NHS TRUST | X93: RHU04 | Y93: Petersfield Community Hospital - RHU04 | Z93: Cedar Ward | AE93: RKB | AF93: NORTHUMBRIA HEALTHCARE NHS FOUNDATION TRUST | AH93: RKB | AI93: NORTHUMBRIA HEALTHCARE NHS FOUNDATION TRUST | AJ93: NT419 | AK93: Broadgreen Hospital - RQ601 | AM93: RKB | AN93: NORTHUMBRIA HEALTHCARE NHS FOUNDATION TRUST | AO93: NT419 | AP93: Broadgreen Hospital - RQ601 | AQ93: 10 North Ward
U94: Q70 | V94: RHU | W94: PORTSMOUTH HOSPITALS NHS TRUST | X94: RHU03 | Y94: Queen Alexandra Hospital - RHU03 | Z94: A5,6 | AE94: RKE | AF94: NOTTINGHAM UNIVERSITY HOSPITALS NHS TRUST | AH94: RKE | AI94: NOTTINGHAM UNIVERSITY HOSPITALS NHS TRUST | AJ94: NT420 | AK94: Broomfield Hospital - RQ8L0 | AM94: RKE | AN94: NOTTINGHAM UNIVERSITY HOSPITALS NHS TRUST | AO94: NT420 | AP94: Broomfield Hospital - RQ8L0 | AQ94: 10 South
U95: Q70 | V95: RHU | W95: PORTSMOUTH HOSPITALS NHS TRUST | X95: RHU03 | Y95: Queen Alexandra Hospital - RHU03 | Z95: A7 | AE95: RL1 | AF95: NUFFIELD HEALTH | AH95: RL1 | AI95: NUFFIELD HEALTH | AJ95: NT421 | AK95: Burnley General Hospital - RXR10 | AM95: RL1 | AN95: NUFFIELD HEALTH | AO95: NT421 | AP95: Burnley General Hospital - RXR10 | AQ95: 10 South Ward
U96: Q70 | V96: RHU | W96: PORTSMOUTH HOSPITALS NHS TRUST | X96: RHU03 | Y96: Queen Alexandra Hospital - RHU03 | Z96: A8 | AE96: RL4 | AF96: ORTHOPAEDICS & SPINE SPECIALIST HOSPITAL SITE | AH96: RL4 | AI96: ORTHOPAEDICS & SPINE SPECIALIST HOSPITAL SITE | AJ96: NT422 | AK96: Calderdale Royal Hospital - RWY02 | AM96: RL4 | AN96: ORTHOPAEDICS & SPINE SPECIALIST HOSPITAL SITE | AO96: NT422 | AP96: Calderdale Royal Hospital - RWY02 | AQ96: 10 Ward-Surg Onc Unit (Dept 4)
U97: Q70 | V97: RHU | W97: PORTSMOUTH HOSPITALS NHS TRUST | X97: RHU03 | Y97: Queen Alexandra Hospital - RHU03 | Z97: Amluree Day Hospital | AE97: RLN | AF97: OXFORD UNIVERSITY HOSPITALS NHS FOUNDATION TRUST | AH97: RLN | AI97: OXFORD UNIVERSITY HOSPITALS NHS FOUNDATION TRUST | AJ97: NT423 | AK97: Cannock Chase Hospital - RL4TC | AM97: RLN | AN97: OXFORD UNIVERSITY HOSPITALS NHS FOUNDATION TRUST | AO97: NT423 | AP97: Cannock Chase Hospital - RL4TC | AQ97: 10 West
U98: Q70 | V98: RHU | W98: PORTSMOUTH HOSPITALS NHS TRUST | X98: RHU03 | Y98: Queen Alexandra Hospital - RHU03 | Z98: C5 | AE98: RLQ | AF98: PAPWORTH HOSPITAL NHS FOUNDATION TRUST | AH98: RLQ | AI98: PAPWORTH HOSPITAL NHS FOUNDATION TRUST | AJ98: NT424 | AK98: Castle Hill Hospital - RWA16 | AM98: RLQ | AN98: PAPWORTH HOSPITAL NHS FOUNDATION TRUST | AO98: NT424 | AP98: Castle Hill Hospital - RWA16 | AQ98: 10B North; South
U99: Q70 | V99: RHU | W99: PORTSMOUTH HOSPITALS NHS TRUST | X99: RHU03 | Y99: Queen Alexandra Hospital - RHU03 | Z99: C6 | AE99: RLT | AF99: PENNINE ACUTE HOSPITALS NHS TRUST | AH99: RLT | AI99: PENNINE ACUTE HOSPITALS NHS TRUST | AJ99: NT427 | AK99: Central Middlesex Hospital - R1K02 | AM99: RLT | AN99: PENNINE ACUTE HOSPITALS NHS TRUST | AO99: NT427 | AP99: Central Middlesex Hospital - R1K02 | AQ99: 10E
U100: Q70 | V100: RHU | W100: PORTSMOUTH HOSPITALS NHS TRUST | X100: RHU03 | Y100: Queen Alexandra Hospital - RHU03 | Z100: C7 | AE100: RLU | AF100: PETERBOROUGH AND STAMFORD HOSPITALS NHS FOUNDATION TRUST | AH100: RLU | AI100: PETERBOROUGH AND STAMFORD HOSPITALS NHS FOUNDATION TRUST | AJ100: NT428 | AK100: Chapel Allerton Hospital - RR819 | AM100: RLU | AN100: PETERBOROUGH AND STAMFORD HOSPITALS NHS FOUNDATION TRUST | AO100: NT428 | AP100: Chapel Allerton Hospital - RR819 | AQ100: 10F Elective Orthopaedics
U101: Q70 | V101: RHU | W101: PORTSMOUTH HOSPITALS NHS TRUST | X101: RHU03 | Y101: Queen Alexandra Hospital - RHU03 | Z101: Cardiology Day Unit | AE101: RM1 | AF101: PLYMOUTH HOSPITALS NHS TRUST | AH101: RM1 | AI101: PLYMOUTH HOSPITALS NHS TRUST | AJ101: NT429 | AK101: Charing Cross Hospital - RYJ02 | AM101: RM1 | AN101: PLYMOUTH HOSPITALS NHS TRUST | AO101: NT429 | AP101: Charing Cross Hospital - RYJ02 | AQ101: 10Z / BMT
U102: Q70 | V102: RHU | W102: PORTSMOUTH HOSPITALS NHS TRUST | X102: RHU03 | Y102: Queen Alexandra Hospital - RHU03 | Z102: CAUQ | AE102: RM2 | AF102: POOLE HOSPITAL NHS FOUNDATION TRUST | AH102: RM2 | AI102: POOLE HOSPITAL NHS FOUNDATION TRUST | AJ102: NT430 | AK102: Chase Farm Hospital - RALC7 | AM102: RM2 | AN102: POOLE HOSPITAL NHS FOUNDATION TRUST | AO102: NT430 | AP102: Chase Farm Hospital - RALC7 | AQ102: 11 East
U103: Q70 | V103: RHU | W103: PORTSMOUTH HOSPITALS NHS TRUST | X103: RHU03 | Y103: Queen Alexandra Hospital - RHU03 | Z103: CHOC Day Unit | AE103: RM3 | AF103: PORTSMOUTH HOSPITALS NHS TRUST | AH103: RM3 | AI103: PORTSMOUTH HOSPITALS NHS TRUST | AJ103: NT431 | AK103: Chelsea and Westminster Hospital - RQM01 | AM103: RM3 | AN103: PORTSMOUTH HOSPITALS NHS TRUST | AO103: NT431 | AP103: Chelsea and Westminster Hospital - RQM01 | AQ103: 11 SOUTH
U104: Q70 | V104: RHU | W104: PORTSMOUTH HOSPITALS NHS TRUST | X104: RHU03 | Y104: Queen Alexandra Hospital - RHU03 | Z104: D1 | AE104: RMC | AF104: PROBUS SURGERY LIMITED | AH104: RMC | AI104: PROBUS SURGERY LIMITED | AJ104: NT432 | AK104: Cheltenham General Hospital - RTE01 | AM104: RMC | AN104: PROBUS SURGERY LIMITED | AO104: NT432 | AP104: Cheltenham General Hospital - RTE01 | AQ104: 11 South Ward
U105: Q70 | V105: RHU | W105: PORTSMOUTH HOSPITALS NHS TRUST | X105: RHU03 | Y105: Queen Alexandra Hospital - RHU03 | Z105: D2 | AE105: RMP | AF105: QUEEN VICTORIA HOSPITAL NHS FOUNDATION TRUST | AH105: RMP | AI105: QUEEN VICTORIA HOSPITAL NHS FOUNDATION TRUST | AJ105: NT433 | AK105: Cherry Tree Hospital - RWJ03 | AM105: RMP | AN105: QUEEN VICTORIA HOSPITAL NHS FOUNDATION TRUST | AO105: NT433 | AP105: Cherry Tree Hospital - RWJ03 | AQ105: 11 Ward (Dept 4)
U106: Q70 | V106: RHU | W106: PORTSMOUTH HOSPITALS NHS TRUST | X106: RHU03 | Y106: Queen Alexandra Hospital - RHU03 | Z106: D3 | AE106: RN3 | AF106: RAMSAY HEALTHCARE UK OPERATIONS LIMITED | AH106: RN3 | AI106: RAMSAY HEALTHCARE UK OPERATIONS LIMITED | AJ106: NT434 | AK106: Chesterfield Royal Hospital - RFSDA | AM106: RN3 | AN106: RAMSAY HEALTHCARE UK OPERATIONS LIMITED | AO106: NT434 | AP106: Chesterfield Royal Hospital - RFSDA | AQ106: 11 West
U107: Q70 | V107: RHU | W107: PORTSMOUTH HOSPITALS NHS TRUST | X107: RHU03 | Y107: Queen Alexandra Hospital - RHU03 | Z107: D4 | AE107: RN5 | AF107: ROYAL BERKSHIRE NHS FOUNDATION TRUST | AH107: RN5 | AI107: ROYAL BERKSHIRE NHS FOUNDATION TRUST | AJ107: NT435 | AK107: Chichester Treatment Centre - RYR05 | AM107: RN5 | AN107: ROYAL BERKSHIRE NHS FOUNDATION TRUST | AO107: NT435 | AP107: Chichester Treatment Centre - RYR05 | AQ107: 11A North; South
U108: Q70 | V108: RHU | W108: PORTSMOUTH HOSPITALS NHS TRUST | X108: RHU03 | Y108: Queen Alexandra Hospital - RHU03 | Z108: D5 | AE108: RN7 | AF108: ROYAL BROMPTON & HAREFIELD NHS FOUNDATION TRUST | AH108: RN7 | AI108: ROYAL BROMPTON & HAREFIELD NHS FOUNDATION TRUST | AJ108: NT436 | AK108: Chorley and South Ribble Hospital - RXN01 | AM108: RN7 | AN108: ROYAL BROMPTON & HAREFIELD NHS FOUNDATION TRUST | AO108: NT436 | AP108: Chorley and South Ribble Hospital - RXN01 | AQ108: 11B
U109: Q70 | V109: RHU | W109: PORTSMOUTH HOSPITALS NHS TRUST | X109: RHU03 | Y109: Queen Alexandra Hospital - RHU03 | Z109: D6 | AE109: RNA | AF109: ROYAL CORNWALL HOSPITALS NHS TRUST | AH109: RNA | AI109: ROYAL CORNWALL HOSPITALS NHS TRUST | AJ109: NT437 | AK109: Churchill Hospital - RTH02 | AM109: RNA | AN109: ROYAL CORNWALL HOSPITALS NHS TRUST | AO109: NT437 | AP109: Churchill Hospital - RTH02 | AQ109: 11C
U110: Q70 | V110: RHU | W110: PORTSMOUTH HOSPITALS NHS TRUST | X110: RHU03 | Y110: Queen Alexandra Hospital - RHU03 | Z110: D7 | AE110: RNL | AF110: ROYAL DEVON AND EXETER NHS FOUNDATION TRUST | AH110: RNL | AI110: ROYAL DEVON AND EXETER NHS FOUNDATION TRUST | AJ110: NT438 | AK110: Circle - Nottingham NHS Treatment Centre - NV313 | AM110: RNL | AN110: ROYAL DEVON AND EXETER NHS FOUNDATION TRUST | AO110: NT438 | AP110: Circle - Nottingham NHS Treatment Centre - NV313 | AQ110: 11D
U111: Q70 | V111: RHU | W111: PORTSMOUTH HOSPITALS NHS TRUST | X111: RHU03 | Y111: Queen Alexandra Hospital - RHU03 | Z111: D8 | AE111: RNQ | AF111: ROYAL FREE LONDON NHS FOUNDATION TRUST | AH111: RNQ | AI111: ROYAL FREE LONDON NHS FOUNDATION TRUST | AJ111: NT439 | AK111: Circle Bath - NV302 | AM111: RNQ | AN111: ROYAL FREE LONDON NHS FOUNDATION TRUST | AO111: NT439 | AP111: Circle Bath - NV302 | AQ111: 11E
U112: Q70 | V112: RHU | W112: PORTSMOUTH HOSPITALS NHS TRUST | X112: RHU03 | Y112: Queen Alexandra Hospital - RHU03 | Z112: Day Surgery Unit | AE112: RNS | AF112: ROYAL LIVERPOOL AND BROADGREEN UNIVERSITY HOSPITALS NHS TRUST | AH112: RNS | AI112: ROYAL LIVERPOOL AND BROADGREEN UNIVERSITY HOSPITALS NHS TRUST | AJ112: NT440 | AK112: Circle Reading - NV323 | AM112: RNS | AN112: ROYAL LIVERPOOL AND BROADGREEN UNIVERSITY HOSPITALS NHS TRUST | AO112: NT440 | AP112: Circle Reading - NV323 | AQ112: 11F
U113: Q70 | V113: RHU | W113: PORTSMOUTH HOSPITALS NHS TRUST | X113: RHU03 | Y113: Queen Alexandra Hospital - RHU03 | Z113: E1 | AE113: RNZ | AF113: ROYAL NATIONAL ORTHOPAEDIC HOSPITAL NHS TRUST | AH113: RNZ | AI113: ROYAL NATIONAL ORTHOPAEDIC HOSPITAL NHS TRUST | AJ113: NT441 | AK113: Cirencester NHS Treatment Centre - NTPH4 | AM113: RNZ | AN113: ROYAL NATIONAL ORTHOPAEDIC HOSPITAL NHS TRUST | AO113: NT441 | AP113: Cirencester NHS Treatment Centre - NTPH4 | AQ113: 11M+12M - Ward 11 & 12
U114: Q70 | V114: RHU | W114: PORTSMOUTH HOSPITALS NHS TRUST | X114: RHU03 | Y114: Queen Alexandra Hospital - RHU03 | Z114: E2 | AE114: RP4 | AF114: ROYAL SURREY COUNTY HOSPITAL NHS FOUNDATION TRUST | AH114: RP4 | AI114: ROYAL SURREY COUNTY HOSPITAL NHS FOUNDATION TRUST | AJ114: NT443 | AK114: City Hospital - RXK02 | AM114: RP4 | AN114: ROYAL SURREY COUNTY HOSPITAL NHS FOUNDATION TRUST | AO114: NT443 | AP114: City Hospital - RXK02 | AQ114: 11Z
U115: Q70 | V115: RHU | W115: PORTSMOUTH HOSPITALS NHS TRUST | X115: RHU03 | Y115: Queen Alexandra Hospital - RHU03 | Z115: E3 | AE115: RP5 | AF115: ROYAL UNITED HOSPITALS BATH NHS FOUNDATION TRUST | AH115: RP5 | AI115: ROYAL UNITED HOSPITALS BATH NHS FOUNDATION TRUST | AJ115: NT445 | AK115: Clatterbridge Hospital - RBL20 | AM115: RP5 | AN115: ROYAL UNITED HOSPITALS BATH NHS FOUNDATION TRUST | AO115: NT445 | AP115: Clatterbridge Hospital - RBL20 | AQ115: 12 EAST A
U116: Q70 | V116: RHU | W116: PORTSMOUTH HOSPITALS NHS TRUST | X116: RHU03 | Y116: Queen Alexandra Hospital - RHU03 | Z116: E4 (flex capacity) | AE116: RP6 | AF116: SALFORD ROYAL NHS FOUNDATION TRUST | AH116: RP6 | AI116: SALFORD ROYAL NHS FOUNDATION TRUST | AJ116: NT446 | AK116: Clifton Park Hospital - NVC28 | AM116: RP6 | AN116: SALFORD ROYAL NHS FOUNDATION TRUST | AO116: NT446 | AP116: Clifton Park Hospital - NVC28 | AQ116: 12 EAST B
U117: Q70 | V117: RHU | W117: PORTSMOUTH HOSPITALS NHS TRUST | X117: RHU03 | Y117: Queen Alexandra Hospital - RHU03 | Z117: E5 (ITU) | AE117: RPA | AF117: SALISBURY NHS FOUNDATION TRUST | AH117: RPA | AI117: SALISBURY NHS FOUNDATION TRUST | AJ117: NT447 | AK117: Cobalt NHS Treatment Centre - NVC29 | AM117: RPA | AN117: SALISBURY NHS FOUNDATION TRUST | AO117: NT447 | AP117: Cobalt NHS Treatment Centre - NVC29 | AQ117: 12 South
U118: Q70 | V118: RHU | W118: PORTSMOUTH HOSPITALS NHS TRUST | X118: RHU03 | Y118: Queen Alexandra Hospital - RHU03 | Z118: E6 | AE118: RPC | AF118: SANDWELL AND WEST BIRMINGHAM HOSPITALS NHS TRUST | AH118: RPC | AI118: SANDWELL AND WEST BIRMINGHAM HOSPITALS NHS TRUST | AJ118: NT448 | AK118: Colchester General Hospital - RDEE4 | AM118: RPC | AN118: SANDWELL AND WEST BIRMINGHAM HOSPITALS NHS TRUST | AO118: NT448 | AP118: Colchester General Hospital - RDEE4 | AQ118: 12 Ward (Dept 4)
U119: Q70 | V119: RHU | W119: PORTSMOUTH HOSPITALS NHS TRUST | X119: RHU03 | Y119: Queen Alexandra Hospital - RHU03 | Z119: E7 | AE119: RPY | AF119: SHEFFIELD CHILDREN'S NHS FOUNDATION TRUST | AH119: RPY | AI119: SHEFFIELD CHILDREN'S NHS FOUNDATION TRUST | AJ119: NT449 | AK119: Congleton War Memorial Hospital - RJN63 | AM119: RPY | AN119: SHEFFIELD CHILDREN'S NHS FOUNDATION TRUST | AO119: NT449 | AP119: Congleton War Memorial Hospital - RJN63 | AQ119: 12 WEST
U120: Q70 | V120: RHU | W120: PORTSMOUTH HOSPITALS NHS TRUST | X120: RHU03 | Y120: Queen Alexandra Hospital - RHU03 | Z120: E8 | AE120: RQ3 | AF120: SHEFFIELD TEACHING HOSPITALS NHS FOUNDATION TRUST | AH120: RQ3 | AI120: SHEFFIELD TEACHING HOSPITALS NHS FOUNDATION TRUST | AJ120: NT450 | AK120: Conquest Hospital - RXC01 | AM120: RQ3 | AN120: SHEFFIELD TEACHING HOSPITALS NHS FOUNDATION TRUST | AO120: NT450 | AP120: Conquest Hospital - RXC01 | AQ120: 12C Emergency Orthopeadics Surgery and Plastics
U121: Q70 | V121: RHU | W121: PORTSMOUTH HOSPITALS NHS TRUST | X121: RHU03 | Y121: Queen Alexandra Hospital - RHU03 | Z121: Endoscopy | AE121: RQ6 | AF121: SHERWOOD FOREST HOSPITALS NHS FOUNDATION TRUST | AH121: RQ6 | AI121: SHERWOOD FOREST HOSPITALS NHS FOUNDATION TRUST | AJ121: NT451 | AK121: Countess Mountbatten House - RHM04 | AM121: RQ6 | AN121: SHERWOOD FOREST HOSPITALS NHS FOUNDATION TRUST | AO121: NT451 | AP121: Countess Mountbatten House - RHM04 | AQ121: 12D
U122: Q70 | V122: RHU | W122: PORTSMOUTH HOSPITALS NHS TRUST | X122: RHU03 | Y122: Queen Alexandra Hospital - RHU03 | Z122: Eye Day Case | AE122: RQ8 | AF122: SHREWSBURY AND TELFORD HOSPITAL NHS TRUST | AH122: RQ8 | AI122: SHREWSBURY AND TELFORD HOSPITAL NHS TRUST | AJ122: NT455 | AK122: Countess Of Chester Hospital - RJR05 | AM122: RQ8 | AN122: SHREWSBURY AND TELFORD HOSPITAL NHS TRUST | AO122: NT455 | AP122: Countess Of Chester Hospital - RJR05 | AQ122: 12E Neurosciences, ENT and OMFS
U123: Q70 | V123: RHU | W123: PORTSMOUTH HOSPITALS NHS TRUST | X123: RHU03 | Y123: Queen Alexandra Hospital - RHU03 | Z123: F1 | AE123: RQM | AF123: SOUTH TEES HOSPITALS NHS FOUNDATION TRUST | AH123: RQM | AI123: SOUTH TEES HOSPITALS NHS FOUNDATION TRUST | AJ123: NT457 | AK123: County Hospital - RJE09 | AM123: RQM | AN123: SOUTH TEES HOSPITALS NHS FOUNDATION TRUST | AO123: NT457 | AP123: County Hospital - RJE09 | AQ123: 12F Neurosciences, ENT and OMFS
U124: Q70 | V124: RHU | W124: PORTSMOUTH HOSPITALS NHS TRUST | X124: RHU03 | Y124: Queen Alexandra Hospital - RHU03 | Z124: F2 MOPRS | AE124: RQQ | AF124: SOUTH TYNESIDE NHS FOUNDATION TRUST | AH124: RQQ | AI124: SOUTH TYNESIDE NHS FOUNDATION TRUST | AJ124: NT490 | AK124: County Hospital Louth - RWDAA | AM124: RQQ | AN124: SOUTH TYNESIDE NHS FOUNDATION TRUST | AO124: NT490 | AP124: County Hospital Louth - RWDAA | AQ124: 13C
U125: Q70 | V125: RHU | W125: PORTSMOUTH HOSPITALS NHS TRUST | X125: RHU03 | Y125: Queen Alexandra Hospital - RHU03 | Z125: F3 | AE125: RQW | AF125: SOUTH WARWICKSHIRE NHS FOUNDATION TRUST | AH125: RQW | AI125: SOUTH WARWICKSHIRE NHS FOUNDATION TRUST | AJ125: NT497 | AK125: Crawley Hospital - RTP02 | AM125: RQW | AN125: SOUTH WARWICKSHIRE NHS FOUNDATION TRUST | AO125: NT497 | AP125: Crawley Hospital - RTP02 | AQ125: 13D General Surgery
U126: Q70 | V126: RHU | W126: PORTSMOUTH HOSPITALS NHS TRUST | X126: RHU03 | Y126: Queen Alexandra Hospital - RHU03 | Z126: F4 stroke | AE126: RQX | AF126: SOUTHEND UNIVERSITY HOSPITAL NHS FOUNDATION TRUST | AH126: RQX | AI126: SOUTHEND UNIVERSITY HOSPITAL NHS FOUNDATION TRUST | AJ126: NTP11 | AK126: Cumberland Infirmary - RNLAY | AM126: RQX | AN126: SOUTHEND UNIVERSITY HOSPITAL NHS FOUNDATION TRUST | AO126: NTP11 | AP126: Cumberland Infirmary - RNLAY | AQ126: 13E Cardiac & Respiratory
U127: Q70 | V127: RHU | W127: PORTSMOUTH HOSPITALS NHS TRUST | X127: RHU03 | Y127: Queen Alexandra Hospital - RHU03 | Z127: F5,6,7 | AE127: RR1 | AF127: SOUTHPORT AND ORMSKIRK HOSPITAL NHS TRUST | AH127: RR1 | AI127: SOUTHPORT AND ORMSKIRK HOSPITAL NHS TRUST | AJ127: NTP13 | AK127: Darent Valley Hospital - RN707 | AM127: RR1 | AN127: SOUTHPORT AND ORMSKIRK HOSPITAL NHS TRUST | AO127: NTP13 | AP127: Darent Valley Hospital - RN707 | AQ127: 13F Infection - Regional HIV & Respiratory Medicine
U128: Q70 | V128: RHU | W128: PORTSMOUTH HOSPITALS NHS TRUST | X128: RHU03 | Y128: Queen Alexandra Hospital - RHU03 | Z128: G1 | AE128: RR7 | AF128: SPIRE HEALTHCARE | AH128: RR7 | AI128: SPIRE HEALTHCARE | AJ128: NTP15 | AK128: Darlington Memorial Hospital - RXPDA | AM128: RR7 | AN128: SPIRE HEALTHCARE | AO128: NTP15 | AP128: Darlington Memorial Hospital - RXPDA | AQ128: 14A
U129: Q70 | V129: RHU | W129: PORTSMOUTH HOSPITALS NHS TRUST | X129: RHU03 | Y129: Queen Alexandra Hospital - RHU03 | Z129: G2 | AE129: RR8 | AF129: ST GEORGE'S UNIVERSITY HOSPITALS NHS FOUNDATION TRUST | AH129: RR8 | AI129: ST GEORGE'S UNIVERSITY HOSPITALS NHS FOUNDATION TRUST | AJ129: NTP16 | AK129: Derriford Hospital - RK950 | AM129: RR8 | AN129: ST GEORGE'S UNIVERSITY HOSPITALS NHS FOUNDATION TRUST | AO129: NTP16 | AP129: Derriford Hospital - RK950 | AQ129: 14B
U130: Q70 | V130: RHU | W130: PORTSMOUTH HOSPITALS NHS TRUST | X130: RHU03 | Y130: Queen Alexandra Hospital - RHU03 | Z130: G3 | AE130: RRF | AF130: ST HELENS AND KNOWSLEY HOSPITALS NHS TRUST | AH130: RRF | AI130: ST HELENS AND KNOWSLEY HOSPITALS NHS TRUST | AJ130: NTPAD | AK130: Devizes NHS Treatment Centre - NTPH3 | AM130: RRF | AN130: ST HELENS AND KNOWSLEY HOSPITALS NHS TRUST | AO130: NTPAD | AP130: Devizes NHS Treatment Centre - NTPH3 | AQ130: 14E
U131: Q70 | V131: RHU | W131: PORTSMOUTH HOSPITALS NHS TRUST | X131: RHU03 | Y131: Queen Alexandra Hospital - RHU03 | Z131: G4 | AE131: RRJ | AF131: STOCKPORT NHS FOUNDATION TRUST | AH131: RRJ | AI131: STOCKPORT NHS FOUNDATION TRUST | AJ131: NTPH1 | AK131: Dewsbury and District Hospital - RXF10 | AM131: RRJ | AN131: STOCKPORT NHS FOUNDATION TRUST | AO131: NTPH1 | AP131: Dewsbury and District Hospital - RXF10 | AQ131: 14F
U132: Q70 | V132: RHU | W132: PORTSMOUTH HOSPITALS NHS TRUST | X132: RHU03 | Y132: Queen Alexandra Hospital - RHU03 | Z132: G5 (Private ward) | AE132: RRK | AF132: SURREY AND SUSSEX HEALTHCARE NHS TRUST | AH132: RRK | AI132: SURREY AND SUSSEX HEALTHCARE NHS TRUST | AJ132: NTPH2 | AK132: Diana, Princess Of Wales Hospital - RJL30 | AM132: RRK | AN132: SURREY AND SUSSEX HEALTHCARE NHS TRUST | AO132: NTPH2 | AP132: Diana, Princess Of Wales Hospital - RJL30 | AQ132: 14M - 14M
U133: Q70 | V133: RHU | W133: PORTSMOUTH HOSPITALS NHS TRUST | X133: RHU03 | Y133: Queen Alexandra Hospital - RHU03 | Z133: G6 | AE133: RRV | AF133: TAMESIDE HOSPITAL NHS FOUNDATION TRUST | AH133: RRV | AI133: TAMESIDE HOSPITAL NHS FOUNDATION TRUST | AJ133: NTPH3 | AK133: Doncaster Royal Infirmary - RP5DR | AM133: RRV | AN133: TAMESIDE HOSPITAL NHS FOUNDATION TRUST | AO133: NTPH3 | AP133: Doncaster Royal Infirmary - RP5DR | AQ133: 15 (Neonatal Unit)
U134: Q70 | V134: RHU | W134: PORTSMOUTH HOSPITALS NHS TRUST | X134: RHU03 | Y134: Queen Alexandra Hospital - RHU03 | Z134: G7 | AE134: RT3 | AF134: TAUNTON AND SOMERSET NHS FOUNDATION TRUST | AH134: RT3 | AI134: TAUNTON AND SOMERSET NHS FOUNDATION TRUST | AJ134: NTPH4 | AK134: Dorset County Hospital - RBD01 | AM134: RT3 | AN134: TAUNTON AND SOMERSET NHS FOUNDATION TRUST | AO134: NTPH4 | AP134: Dorset County Hospital - RBD01 | AQ134: 15A
U135: Q70 | V135: RHU | W135: PORTSMOUTH HOSPITALS NHS TRUST | X135: RHU03 | Y135: Queen Alexandra Hospital - RHU03 | Z135: G9 | AE135: RTD | AF135: THE CHRISTIE NHS FOUNDATION TRUST | AH135: RTD | AI135: THE CHRISTIE NHS FOUNDATION TRUST | AJ135: NTPH5 | AK135: Duchy Hospital - NVC04 | AM135: RTD | AN135: THE CHRISTIE NHS FOUNDATION TRUST | AO135: NTPH5 | AP135: Duchy Hospital - NVC04 | AQ135: 15B
U136: Q70 | V136: RHU | W136: PORTSMOUTH HOSPITALS NHS TRUST | X136: RHU03 | Y136: Queen Alexandra Hospital - RHU03 | Z136: Hospital at Home | AE136: RTE | AF136: THE CLATTERBRIDGE CANCER CENTRE NHS FOUNDATION TRUST | AH136: RTE | AI136: THE CLATTERBRIDGE CANCER CENTRE NHS FOUNDATION TRUST | AJ136: NV302 | AK136: Ealing Hospital - R1K04 | AM136: RTE | AN136: THE CLATTERBRIDGE CANCER CENTRE NHS FOUNDATION TRUST | AO136: NV302 | AP136: Ealing Hospital - R1K04 | AQ136: 15M - 15M
U137: Q70 | V137: RHU | W137: PORTSMOUTH HOSPITALS NHS TRUST | X137: RHU03 | Y137: Queen Alexandra Hospital - RHU03 | Z137: NICU | AE137: RTF | AF137: THE DUDLEY GROUP NHS FOUNDATION TRUST | AH137: RTF | AI137: THE DUDLEY GROUP NHS FOUNDATION TRUST | AJ137: NV313 | AK137: East Surrey Hospital - RTP04 | AM137: RTF | AN137: THE DUDLEY GROUP NHS FOUNDATION TRUST | AO137: NV313 | AP137: East Surrey Hospital - RTP04 | AQ137: 1A
U138: Q70 | V138: RHU | W138: PORTSMOUTH HOSPITALS NHS TRUST | X138: RHU03 | Y138: Queen Alexandra Hospital - RHU03 | Z138: Radiology Day Case Unit | AE138: RTG | AF138: THE HILLINGDON HOSPITALS NHS FOUNDATION TRUST | AH138: RTG | AI138: THE HILLINGDON HOSPITALS NHS FOUNDATION TRUST | AJ138: NV323 | AK138: Eastbourne District General Hospital - RXC02 | AM138: RTG | AN138: THE HILLINGDON HOSPITALS NHS FOUNDATION TRUST | AO138: NV323 | AP138: Eastbourne District General Hospital - RXC02 | AQ138: 1B
U139: Q70 | V139: RHU | W139: PORTSMOUTH HOSPITALS NHS TRUST | X139: RHU03 | Y139: Queen Alexandra Hospital - RHU03 | Z139: Renal Day Unit | AE139: RTH | AF139: THE HORDER CENTRE - ST JOHNS ROAD | AH139: RTH | AI139: THE HORDER CENTRE - ST JOHNS ROAD | AJ139: NVC01 | AK139: Ellesmere Port Hospital - RJR60 | AM139: RTH | AN139: THE HORDER CENTRE - ST JOHNS ROAD | AO139: NVC01 | AP139: Ellesmere Port Hospital - RJR60 | AQ139: 1C
U140: Q70 | V140: RHU | W140: PORTSMOUTH HOSPITALS NHS TRUST | X140: RHU03 | Y140: Queen Alexandra Hospital - RHU03 | Z140: Respiratory Day Ward | AE140: RTK | AF140: THE NEWCASTLE UPON TYNE HOSPITALS NHS FOUNDATION TRUST | AH140: RTK | AI140: THE NEWCASTLE UPON TYNE HOSPITALS NHS FOUNDATION TRUST | AJ140: NVC02 | AK140: Emersons Green NHS Treatment Centre - NTPH2 | AM140: RTK | AN140: THE NEWCASTLE UPON TYNE HOSPITALS NHS FOUNDATION TRUST | AO140: NVC02 | AP140: Emersons Green NHS Treatment Centre - NTPH2 | AQ140: 1D
U141: Q70 | V141: RHU | W141: PORTSMOUTH HOSPITALS NHS TRUST | X141: RHU03 | Y141: Queen Alexandra Hospital - RHU03 | Z141: Rheumatology Day Case Suite | AE141: RTP | AF141: THE PRINCESS ALEXANDRA HOSPITAL NHS TRUST | AH141: RTP | AI141: THE PRINCESS ALEXANDRA HOSPITAL NHS TRUST | AJ141: NVC04 | AK141: Epsom Hospital - RVR50 | AM141: RTP | AN141: THE PRINCESS ALEXANDRA HOSPITAL NHS TRUST | AO141: NVC04 | AP141: Epsom Hospital - RVR50 | AQ141: 1E
U142: Q70 | V142: RHU | W142: PORTSMOUTH HOSPITALS NHS TRUST | X142: RHU03 | Y142: Queen Alexandra Hospital - RHU03 | Z142: Surgical High Care | AE142: RTR | AF142: THE QUEEN ELIZABETH HOSPITAL, KING'S LYNN, NHS FOUNDATION TRUST | AH142: RTR | AI142: THE QUEEN ELIZABETH HOSPITAL, KING'S LYNN, NHS FOUNDATION TRUST | AJ142: NVC05 | AK142: Euxton Hall Hospital - NVC05 | AM142: RTR | AN142: THE QUEEN ELIZABETH HOSPITAL, KING'S LYNN, NHS FOUNDATION TRUST | AO142: NVC05 | AP142: Euxton Hall Hospital - NVC05 | AQ142: 21B
U143: Q70 | V143: RDZ | W143: THE ROYAL BOURNEMOUTH AND CHRISTCHURCH HOSPITALS NHS FOUNDATION TRUST | X143: RDZ20 | Y143: Royal Bournemouth General Hospital - RDZ20 | Z143: Daycases | AE143: RTX | AF143: THE ROBERT JONES AND AGNES HUNT ORTHOPAEDIC HOSPITAL NHS FOUNDATION TRUST | AH143: RTX | AI143: THE ROBERT JONES AND AGNES HUNT ORTHOPAEDIC HOSPITAL NHS FOUNDATION TRUST | AJ143: NVC06 | AK143: Fairfield General Hospital - RW601 | AM143: RTX | AN143: THE ROBERT JONES AND AGNES HUNT ORTHOPAEDIC HOSPITAL NHS FOUNDATION TRUST | AO143: NVC06 | AP143: Fairfield General Hospital - RW601 | AQ143: 23 Hour Stay/A15
U144: Q70 | V144: RDZ | W144: THE ROYAL BOURNEMOUTH AND CHRISTCHURCH HOSPITALS NHS FOUNDATION TRUST | X144: RDZ20 | Y144: Royal Bournemouth General Hospital - RDZ20 | Z144: RB01 | AE144: RVJ | AF144: THE ROTHERHAM NHS FOUNDATION TRUST | AH144: RVJ | AI144: THE ROTHERHAM NHS FOUNDATION TRUST | AJ144: NVC07 | AK144: Fairfield Hospital - NVG01 | AM144: RVJ | AN144: THE ROTHERHAM NHS FOUNDATION TRUST | AO144: NVC07 | AP144: Fairfield Hospital - NVG01 | AQ144: 23 Hour Ward
U145: Q70 | V145: RDZ | W145: THE ROYAL BOURNEMOUTH AND CHRISTCHURCH HOSPITALS NHS FOUNDATION TRUST | X145: RDZ20 | Y145: Royal Bournemouth General Hospital - RDZ20 | Z145: RB02 | AE145: RVR | AF145: THE ROYAL BOURNEMOUTH AND CHRISTCHURCH HOSPITALS NHS FOUNDATION TRUST | AH145: RVR | AI145: THE ROYAL BOURNEMOUTH AND CHRISTCHURCH HOSPITALS NHS FOUNDATION TRUST | AJ145: NVC08 | AK145: Fitzwilliam Hospital - NVC06 | AM145: RVR | AN145: THE ROYAL BOURNEMOUTH AND CHRISTCHURCH HOSPITALS NHS FOUNDATION TRUST | AO145: NVC08 | AP145: Fitzwilliam Hospital - NVC06 | AQ145: 23M - Capd Training/ 23M
U146: Q70 | V146: RDZ | W146: THE ROYAL BOURNEMOUTH AND CHRISTCHURCH HOSPITALS NHS FOUNDATION TRUST | X146: RDZ20 | Y146: Royal Bournemouth General Hospital - RDZ20 | Z146: RB03 | AE146: RVV | AF146: THE ROYAL MARSDEN NHS FOUNDATION TRUST | AH146: RVV | AI146: THE ROYAL MARSDEN NHS FOUNDATION TRUST | AJ146: NVC09 | AK146: Foscote Hospital (Banbury) - AHH01 | AM146: RVV | AN146: THE ROYAL MARSDEN NHS FOUNDATION TRUST | AO146: NVC09 | AP146: Foscote Hospital (Banbury) - AHH01 | AQ146: 27M - 27M
U147: Q70 | V147: RDZ | W147: THE ROYAL BOURNEMOUTH AND CHRISTCHURCH HOSPITALS NHS FOUNDATION TRUST | X147: RDZ20 | Y147: Royal Bournemouth General Hospital - RDZ20 | Z147: RB04 | AE147: RVW | AF147: THE ROYAL ORTHOPAEDIC HOSPITAL NHS FOUNDATION TRUST | AH147: RVW | AI147: THE ROYAL ORTHOPAEDIC HOSPITAL NHS FOUNDATION TRUST | AJ147: NVC11 | AK147: Freeman Hospital - RTD01 | AM147: RVW | AN147: THE ROYAL ORTHOPAEDIC HOSPITAL NHS FOUNDATION TRUST | AO147: NVC11 | AP147: Freeman Hospital - RTD01 | AQ147: 2A
U148: Q70 | V148: RDZ | W148: THE ROYAL BOURNEMOUTH AND CHRISTCHURCH HOSPITALS NHS FOUNDATION TRUST | X148: RDZ20 | Y148: Royal Bournemouth General Hospital - RDZ20 | Z148: RB05 | AE148: RVY | AF148: THE ROYAL WOLVERHAMPTON NHS TRUST | AH148: RVY | AI148: THE ROYAL WOLVERHAMPTON NHS TRUST | AJ148: NVC12 | AK148: Friarage Hospital Site - RTR45 | AM148: RVY | AN148: THE ROYAL WOLVERHAMPTON NHS TRUST | AO148: NVC12 | AP148: Friarage Hospital Site - RTR45 | AQ148: 2AB
U149: Q70 | V149: RDZ | W149: THE ROYAL BOURNEMOUTH AND CHRISTCHURCH HOSPITALS NHS FOUNDATION TRUST | X149: RDZ20 | Y149: Royal Bournemouth General Hospital - RDZ20 | Z149: RB07 | AE149: RW3 | AF149: THE WALTON CENTRE NHS FOUNDATION TRUST | AH149: RW3 | AI149: THE WALTON CENTRE NHS FOUNDATION TRUST | AJ149: NVC13 | AK149: Frimley Park Hospital - RDU01 | AM149: RW3 | AN149: THE WALTON CENTRE NHS FOUNDATION TRUST | AO149: NVC13 | AP149: Frimley Park Hospital - RDU01 | AQ149: 2B
U150: Q70 | V150: RDZ | W150: THE ROYAL BOURNEMOUTH AND CHRISTCHURCH HOSPITALS NHS FOUNDATION TRUST | X150: RDZ20 | Y150: Royal Bournemouth General Hospital - RDZ20 | Z150: RB09 | AE150: RW6 | AF150: THE WHITTINGTON HOSPITAL NHS TRUST | AH150: RW6 | AI150: THE WHITTINGTON HOSPITAL NHS TRUST | AJ150: NVC14 | AK150: Fulwood Hall Hospital - NVC07 | AM150: RW6 | AN150: THE WHITTINGTON HOSPITAL NHS TRUST | AO150: NVC14 | AP150: Fulwood Hall Hospital - NVC07 | AQ150: 2C
U151: Q70 | V151: RDZ | W151: THE ROYAL BOURNEMOUTH AND CHRISTCHURCH HOSPITALS NHS FOUNDATION TRUST | X151: RDZ20 | Y151: Royal Bournemouth General Hospital - RDZ20 | Z151: RB11 | AE151: RWA | AF151: TORBAY AND SOUTH DEVON NHS FOUNDATION TRUST | AH151: RWA | AI151: TORBAY AND SOUTH DEVON NHS FOUNDATION TRUST | AJ151: NVC15 | AK151: Furness General Hospital - RTXBU | AM151: RWA | AN151: TORBAY AND SOUTH DEVON NHS FOUNDATION TRUST | AO151: NVC15 | AP151: Furness General Hospital - RTXBU | AQ151: 2CD
U152: Q70 | V152: RDZ | W152: THE ROYAL BOURNEMOUTH AND CHRISTCHURCH HOSPITALS NHS FOUNDATION TRUST | X152: RDZ20 | Y152: Royal Bournemouth General Hospital - RDZ20 | Z152: RB12SS | AE152: RWD | AF152: UNITED LINCOLNSHIRE HOSPITALS NHS TRUST | AH152: RWD | AI152: UNITED LINCOLNSHIRE HOSPITALS NHS TRUST | AJ152: NVC16 | AK152: George Eliot Hospital - Acute Services - RLT01 | AM152: RWD | AN152: UNITED LINCOLNSHIRE HOSPITALS NHS TRUST | AO152: NVC16 | AP152: George Eliot Hospital - Acute Services - RLT01 | AQ152: 2D
U153: Q70 | V153: RDZ | W153: THE ROYAL BOURNEMOUTH AND CHRISTCHURCH HOSPITALS NHS FOUNDATION TRUST | X153: RDZ20 | Y153: Royal Bournemouth General Hospital - RDZ20 | Z153: RB14 | AE153: RWE | AF153: UNIVERSITY COLLEGE LONDON HOSPITALS NHS FOUNDATION TRUST | AH153: RWE | AI153: UNIVERSITY COLLEGE LONDON HOSPITALS NHS FOUNDATION TRUST | AJ153: NVC17 | AK153: Glenfield Hospital - RWEAE | AM153: RWE | AN153: UNIVERSITY COLLEGE LONDON HOSPITALS NHS FOUNDATION TRUST | AO153: NVC17 | AP153: Glenfield Hospital - RWEAE | AQ153: 2X
U154: Q70 | V154: RDZ | W154: THE ROYAL BOURNEMOUTH AND CHRISTCHURCH HOSPITALS NHS FOUNDATION TRUST | X154: RDZ20 | Y154: Royal Bournemouth General Hospital - RDZ20 | Z154: RB15 | AE154: RWF | AF154: UNIVERSITY HOSPITAL OF SOUTH MANCHESTER NHS FOUNDATION TRUST | AH154: RWF | AI154: UNIVERSITY HOSPITAL OF SOUTH MANCHESTER NHS FOUNDATION TRUST | AJ154: NVC18 | AK154: Gloucestershire Royal Hospital - RTE03 | AM154: RWF | AN154: UNIVERSITY HOSPITAL OF SOUTH MANCHESTER NHS FOUNDATION TRUST | AO154: NVC18 | AP154: Gloucestershire Royal Hospital - RTE03 | AQ154: 2Y / SU
U155: Q70 | V155: RDZ | W155: THE ROYAL BOURNEMOUTH AND CHRISTCHURCH HOSPITALS NHS FOUNDATION TRUST | X155: RDZ20 | Y155: Royal Bournemouth General Hospital - RDZ20 | Z155: RB16 | AE155: RWG | AF155: UNIVERSITY HOSPITAL SOUTHAMPTON NHS FOUNDATION TRUST | AH155: RWG | AI155: UNIVERSITY HOSPITAL SOUTHAMPTON NHS FOUNDATION TRUST | AJ155: NVC19 | AK155: Good Hope Hospital - RR105 | AM155: RWG | AN155: UNIVERSITY HOSPITAL SOUTHAMPTON NHS FOUNDATION TRUST | AO155: NVC19 | AP155: Good Hope Hospital - RR105 | AQ155: 30M - 30M
U156: Q70 | V156: RDZ | W156: THE ROYAL BOURNEMOUTH AND CHRISTCHURCH HOSPITALS NHS FOUNDATION TRUST | X156: RDZ20 | Y156: Royal Bournemouth General Hospital - RDZ20 | Z156: RB17 | AE156: RWH | AF156: UNIVERSITY HOSPITALS BIRMINGHAM NHS FOUNDATION TRUST | AH156: RWH | AI156: UNIVERSITY HOSPITALS BIRMINGHAM NHS FOUNDATION TRUST | AJ156: NVC20 | AK156: Goole and District Hospital (Acute) - RJL31 | AM156: RWH | AN156: UNIVERSITY HOSPITALS BIRMINGHAM NHS FOUNDATION TRUST | AO156: NVC20 | AP156: Goole and District Hospital (Acute) - RJL31 | AQ156: 31 - Ward 31
U157: Q70 | V157: RDZ | W157: THE ROYAL BOURNEMOUTH AND CHRISTCHURCH HOSPITALS NHS FOUNDATION TRUST | X157: RDZ20 | Y157: Royal Bournemouth General Hospital - RDZ20 | Z157: RB18 | AE157: RWJ | AF157: UNIVERSITY HOSPITALS BRISTOL NHS FOUNDATION TRUST | AH157: RWJ | AI157: UNIVERSITY HOSPITALS BRISTOL NHS FOUNDATION TRUST | AJ157: NVC21 | AK157: Gosport War Memorial Hospital - RHU10 | AM157: RWJ | AN157: UNIVERSITY HOSPITALS BRISTOL NHS FOUNDATION TRUST | AO157: NVC21 | AP157: Gosport War Memorial Hospital - RHU10 | AQ157: 32M - 32M
U158: Q70 | V158: RDZ | W158: THE ROYAL BOURNEMOUTH AND CHRISTCHURCH HOSPITALS NHS FOUNDATION TRUST | X158: RDZ20 | Y158: Royal Bournemouth General Hospital - RDZ20 | Z158: RB21 | AE158: RWP | AF158: UNIVERSITY HOSPITALS COVENTRY AND WARWICKSHIRE NHS TRUST | AH158: RWP | AI158: UNIVERSITY HOSPITALS COVENTRY AND WARWICKSHIRE NHS TRUST | AJ158: NVC22 | AK158: Grantham and District Hospital - RWDLP | AM158: RWP | AN158: UNIVERSITY HOSPITALS COVENTRY AND WARWICKSHIRE NHS TRUST | AO158: NVC22 | AP158: Grantham and District Hospital - RWDLP | AQ158: 33 & HAC
U159: Q70 | V159: RDZ | W159: THE ROYAL BOURNEMOUTH AND CHRISTCHURCH HOSPITALS NHS FOUNDATION TRUST | X159: RDZ20 | Y159: Royal Bournemouth General Hospital - RDZ20 | Z159: RB22 | AE159: RWW | AF159: UNIVERSITY HOSPITALS OF LEICESTER NHS TRUST | AH159: RWW | AI159: UNIVERSITY HOSPITALS OF LEICESTER NHS TRUST | AJ159: NVC23 | AK159: Great Ormond Street Hospital Central London Site - RP401 | AM159: RWW | AN159: UNIVERSITY HOSPITALS OF LEICESTER NHS TRUST | AO159: NVC23 | AP159: Great Ormond Street Hospital Central London Site - RP401 | AQ159: 33A
U160: Q70 | V160: RDZ | W160: THE ROYAL BOURNEMOUTH AND CHRISTCHURCH HOSPITALS NHS FOUNDATION TRUST | X160: RDZ20 | Y160: Royal Bournemouth General Hospital - RDZ20 | Z160: RB23 | AE160: RWY | AF160: UNIVERSITY HOSPITALS OF MORECAMBE BAY NHS FOUNDATION TRUST | AH160: RWY | AI160: UNIVERSITY HOSPITALS OF MORECAMBE BAY NHS FOUNDATION TRUST | AJ160: NVC24 | AK160: Guy's and St Thomas' NHS Trust - RJ100 | AM160: RWY | AN160: UNIVERSITY HOSPITALS OF MORECAMBE BAY NHS FOUNDATION TRUST | AO160: NVC24 | AP160: Guy's and St Thomas' NHS Trust - RJ100 | AQ160: 33B
U161: Q70 | V161: RDZ | W161: THE ROYAL BOURNEMOUTH AND CHRISTCHURCH HOSPITALS NHS FOUNDATION TRUST | X161: RDZ20 | Y161: Royal Bournemouth General Hospital - RDZ20 | Z161: RB24 | AE161: RX1 | AF161: UNIVERSITY HOSPITALS OF NORTH MIDLANDS NHS TRUST | AH161: RX1 | AI161: UNIVERSITY HOSPITALS OF NORTH MIDLANDS NHS TRUST | AJ161: NVC25 | AK161: Guy's Hospital - RJ121 | AM161: RX1 | AN161: UNIVERSITY HOSPITALS OF NORTH MIDLANDS NHS TRUST | AO161: NVC25 | AP161: Guy's Hospital - RJ121 | AQ161: 35 - Ward 35 (ACC)
U162: Q70 | V162: RDZ | W162: THE ROYAL BOURNEMOUTH AND CHRISTCHURCH HOSPITALS NHS FOUNDATION TRUST | X162: RDZ20 | Y162: Royal Bournemouth General Hospital - RDZ20 | Z162: RB25 | AE162: RXC | AF162: WALSALL HEALTHCARE NHS TRUST | AH162: RXC | AI162: WALSALL HEALTHCARE NHS TRUST | AJ162: NVC27 | AK162: Halton Hospital - RWWHG | AM162: RXC | AN162: WALSALL HEALTHCARE NHS TRUST | AO162: NVC27 | AP162: Halton Hospital - RWWHG | AQ162: 36 - Ward 36
U163: Q70 | V163: RDZ | W163: THE ROYAL BOURNEMOUTH AND CHRISTCHURCH HOSPITALS NHS FOUNDATION TRUST | X163: RDZ20 | Y163: Royal Bournemouth General Hospital - RDZ20 | Z163: RB26 | AE163: RXF | AF163: WARRINGTON AND HALTON HOSPITALS NHS FOUNDATION TRUST | AH163: RXF | AI163: WARRINGTON AND HALTON HOSPITALS NHS FOUNDATION TRUST | AJ163: NVC28 | AK163: Haltwhistle War Memorial Hospital - RTFDU | AM163: RXF | AN163: WARRINGTON AND HALTON HOSPITALS NHS FOUNDATION TRUST | AO163: NVC28 | AP163: Haltwhistle War Memorial Hospital - RTFDU | AQ163: 37 - Ward 37
U164: Q70 | V164: RDZ | W164: THE ROYAL BOURNEMOUTH AND CHRISTCHURCH HOSPITALS NHS FOUNDATION TRUST | X164: RDZ20 | Y164: Royal Bournemouth General Hospital - RDZ20 | Z164: RBCCU | AE164: RXH | AF164: WEST HERTFORDSHIRE HOSPITALS NHS TRUST | AH164: RXH | AI164: WEST HERTFORDSHIRE HOSPITALS NHS TRUST | AJ164: NVC29 | AK164: Hammersmith Hospital - RYJ03 | AM164: RXH | AN164: WEST HERTFORDSHIRE HOSPITALS NHS TRUST | AO164: NVC29 | AP164: Hammersmith Hospital - RYJ03 | AQ164: 38A
U165: Q70 | V165: RDZ | W165: THE ROYAL BOURNEMOUTH AND CHRISTCHURCH HOSPITALS NHS FOUNDATION TRUST | X165: RDZ20 | Y165: Royal Bournemouth General Hospital - RDZ20 | Z165: RBDER | AE165: RXK | AF165: WEST SUFFOLK NHS FOUNDATION TRUST | AH165: RXK | AI165: WEST SUFFOLK NHS FOUNDATION TRUST | AJ165: NVC31 | AK165: Harefield Hospital - RT301 | AM165: RXK | AN165: WEST SUFFOLK NHS FOUNDATION TRUST | AO165: NVC31 | AP165: Harefield Hospital - RT301 | AQ165: 38B
U166: Q70 | V166: RDZ | W166: THE ROYAL BOURNEMOUTH AND CHRISTCHURCH HOSPITALS NHS FOUNDATION TRUST | X166: RDZ20 | Y166: Royal Bournemouth General Hospital - RDZ20 | Z166: RBITU | AE166: RXL | AF166: WESTERN SUSSEX HOSPITALS NHS FOUNDATION TRUST | AH166: RXL | AI166: WESTERN SUSSEX HOSPITALS NHS FOUNDATION TRUST | AJ166: NVC35 | AK166: Harrogate District Hospital - RCD01 | AM166: RXL | AN166: WESTERN SUSSEX HOSPITALS NHS FOUNDATION TRUST | AO166: NVC35 | AP166: Harrogate District Hospital - RCD01 | AQ166: 3A
U167: Q70 | V167: RDZ | W167: THE ROYAL BOURNEMOUTH AND CHRISTCHURCH HOSPITALS NHS FOUNDATION TRUST | X167: RDZ20 | Y167: Royal Bournemouth General Hospital - RDZ20 | Z167: RBO | AE167: RXN | AF167: WESTON AREA HEALTH NHS TRUST | AH167: RXN | AI167: WESTON AREA HEALTH NHS TRUST | AJ167: NVC40 | AK167: Heartlands Hospital - RR101 | AM167: RXN | AN167: WESTON AREA HEALTH NHS TRUST | AO167: NVC40 | AP167: Heartlands Hospital - RR101 | AQ167: 3A Coronary Care Unit
U168: Q70 | V168: RDZ | W168: THE ROYAL BOURNEMOUTH AND CHRISTCHURCH HOSPITALS NHS FOUNDATION TRUST | X168: RDZ20 | Y168: Royal Bournemouth General Hospital - RDZ20 | Z168: RBSU | AE168: RXP | AF168: WIRRAL UNIVERSITY TEACHING HOSPITAL NHS FOUNDATION TRUST | AH168: RXP | AI168: WIRRAL UNIVERSITY TEACHING HOSPITAL NHS FOUNDATION TRUST | AJ168: NVC44 | AK168: Heatherwood Hospital - RDU52 | AM168: RXP | AN168: WIRRAL UNIVERSITY TEACHING HOSPITAL NHS FOUNDATION TRUST | AO168: NVC44 | AP168: Heatherwood Hospital - RDU52 | AQ168: 3Alpha
U169: Q70 | V169: RHM | W169: UNIVERSITY HOSPITAL SOUTHAMPTON NHS FOUNDATION TRUST | X169: RHM04 | Y169: Countess Mountbatten House - RHM04 | Z169: CAN CMH Inpatients | AE169: RXQ | AF169: WORCESTERSHIRE ACUTE HOSPITALS NHS TRUST | AH169: RXQ | AI169: WORCESTERSHIRE ACUTE HOSPITALS NHS TRUST | AJ169: NVG01 | AK169: Hemel Hempstead Hospital - RWG08 | AM169: RXQ | AN169: WORCESTERSHIRE ACUTE HOSPITALS NHS TRUST | AO169: NVG01 | AP169: Hemel Hempstead Hospital - RWG08 | AQ169: 3B
U170: Q70 | V170: RHM | W170: UNIVERSITY HOSPITAL SOUTHAMPTON NHS FOUNDATION TRUST | X170: RHM12 | Y170: Princess Anne Hospital - RHM12 | Z170: BURLEY B - PRINCESS ANNE HOSP | AE170: RXR | AF170: WRIGHTINGTON, WIGAN AND LEIGH NHS FOUNDATION TRUST | AH170: RXR | AI170: WRIGHTINGTON, WIGAN AND LEIGH NHS FOUNDATION TRUST | AJ170: NWF01 | AK170: Hereford County Hospital - RLQ01 | AM170: RXR | AN170: WRIGHTINGTON, WIGAN AND LEIGH NHS FOUNDATION TRUST | AO170: NWF01 | AP170: Hereford County Hospital - RLQ01 | AQ170: 3C
U171: Q70 | V171: RHM | W171: UNIVERSITY HOSPITAL SOUTHAMPTON NHS FOUNDATION TRUST | X171: RHM12 | Y171: Princess Anne Hospital - RHM12 | Z171: BURLEY BABY B | AE171: RXW | AF171: WYE VALLEY NHS TRUST | AH171: RXW | AI171: WYE VALLEY NHS TRUST | AJ171: NXM01 | AK171: Hexham General Hospital - RTFDR | AM171: RXW | AN171: WYE VALLEY NHS TRUST | AO171: NXM01 | AP171: Hexham General Hospital - RTFDR | AQ171: 3D
U172: Q70 | V172: RHM | W172: UNIVERSITY HOSPITAL SOUTHAMPTON NHS FOUNDATION TRUST | X172: RHM12 | Y172: Princess Anne Hospital - RHM12 | Z172: LYNDHURST WARD | AE172: RYJ | AF172: YEOVIL DISTRICT HOSPITAL NHS FOUNDATION TRUST | AH172: RYJ | AI172: YEOVIL DISTRICT HOSPITAL NHS FOUNDATION TRUST | AJ172: NYW01 | AK172: Hillingdon Hospital - RAS01 | AM172: RYJ | AN172: YEOVIL DISTRICT HOSPITAL NHS FOUNDATION TRUST | AO172: NYW01 | AP172: Hillingdon Hospital - RAS01 | AQ172: 3D Short Stay Surgery
U173: Q70 | V173: RHM | W173: UNIVERSITY HOSPITAL SOUTHAMPTON NHS FOUNDATION TRUST | X173: RHM12 | Y173: Princess Anne Hospital - RHM12 | Z173: NEONATAL UNIT | AE173: RYR | AF173: YORK TEACHING HOSPITAL NHS FOUNDATION TRUST | AH173: RYR | AI173: YORK TEACHING HOSPITAL NHS FOUNDATION TRUST | AJ173: NYW02 | AK173: Hinchingbrooke Hospital - RQQ31 | AM173: RYR | AN173: YORK TEACHING HOSPITAL NHS FOUNDATION TRUST | AO173: NYW02 | AP173: Hinchingbrooke Hospital - RQQ31 | AQ173: 3E
U174: Q70 | V174: RHM | W174: UNIVERSITY HOSPITAL SOUTHAMPTON NHS FOUNDATION TRUST | X174: RHM12 | Y174: Princess Anne Hospital - RHM12 | Z174: W&N Bramshaw Womens Unit | AJ174: NYW03 | AK174: Hinckley & District Hospital - RWELH | AO174: NYW03 | AP174: Hinckley & District Hospital - RWELH | AQ174: 3F Surgical Admissions Unit
U175: Q70 | V175: RHM | W175: UNIVERSITY HOSPITAL SOUTHAMPTON NHS FOUNDATION TRUST | X175: RHM12 | Y175: Princess Anne Hospital - RHM12 | Z175: W&N Surgical day unit | AJ175: NYW04 | AK175: Homerton University Hospital - RQXM1 | AO175: NYW04 | AP175: Homerton University Hospital - RQXM1 | AQ175: 3M+4M - Ward 3 & 4
U176: Q70 | V176: RHM | W176: UNIVERSITY HOSPITAL SOUTHAMPTON NHS FOUNDATION TRUST | X176: RHM01 | Y176: Southampton General Hospital - RHM01 | Z176: BURSLEDON AUTISM DAY | AJ176: R1F01 | AK176: Horton General Hospital - RTH05 | AO176: R1F01 | AP176: Horton General Hospital - RTH05 | AQ176: 3X
U177: Q70 | V177: RHM | W177: UNIVERSITY HOSPITAL SOUTHAMPTON NHS FOUNDATION TRUST | X177: RHM01 | Y177: Southampton General Hospital - RHM01 | Z177: BURSLEDON HOUSE | AJ177: R1H12 | AK177: Horton NHS Treatment Centre - NVC25 | AO177: R1H12 | AP177: Horton NHS Treatment Centre - NVC25 | AQ177: 3Y
U178: Q70 | V178: RHM | W178: UNIVERSITY HOSPITAL SOUTHAMPTON NHS FOUNDATION TRUST | X178: RHM01 | Y178: Southampton General Hospital - RHM01 | Z178: BURSLEDON HOUSE DAY CARE | AJ178: R1H13 | AK178: Hospital Of St Cross - RKB03 | AO178: R1H13 | AP178: Hospital Of St Cross - RKB03 | AQ178: 4 South
U179: Q70 | V179: RHM | W179: UNIVERSITY HOSPITAL SOUTHAMPTON NHS FOUNDATION TRUST | X179: RHM01 | Y179: Southampton General Hospital - RHM01 | Z179: BURSLEDON PAEDIATRIC GASTRO | AJ179: R1HKH | AK179: Huddersfield Royal Infirmary - RWY01 | AO179: R1HKH | AP179: Huddersfield Royal Infirmary - RWY01 | AQ179: 4 South Ward
U180: Q70 | V180: RHM | W180: UNIVERSITY HOSPITAL SOUTHAMPTON NHS FOUNDATION TRUST | X180: RHM01 | Y180: Southampton General Hospital - RHM01 | Z180: C3 | AJ180: R1HM0 | AK180: Hull Royal Infirmary - RWA01 | AO180: R1HM0 | AP180: Hull Royal Infirmary - RWA01 | AQ180: 44 - Ward 44
U181: Q70 | V181: RHM | W181: UNIVERSITY HOSPITAL SOUTHAMPTON NHS FOUNDATION TRUST | X181: RHM01 | Y181: Southampton General Hospital - RHM01 | Z181: C7 HAMILTON FAIRLEY | AJ181: R1HNH | AK181: James Paget University Hospital - RGP75 | AO181: R1HNH | AP181: James Paget University Hospital - RGP75 | AQ181: 45 - Ward 45
U182: Q70 | V182: RHM | W182: UNIVERSITY HOSPITAL SOUTHAMPTON NHS FOUNDATION TRUST | X182: RHM01 | Y182: Southampton General Hospital - RHM01 | Z182: CAN C4 | AJ182: R1K01 | AK182: John Radcliffe Hospital - RTH08 | AO182: R1K01 | AP182: John Radcliffe Hospital - RTH08 | AQ182: 46 - Ward 46
U183: Q70 | V183: RHM | W183: UNIVERSITY HOSPITAL SOUTHAMPTON NHS FOUNDATION TRUST | X183: RHM01 | Y183: Southampton General Hospital - RHM01 | Z183: CAN C6 Leukemia & Transplant | AJ183: R1K02 | AK183: Kent and Canterbury Hospital - RVVKC | AO183: R1K02 | AP183: Kent and Canterbury Hospital - RVVKC | AQ183: 4A
U184: Q70 | V184: RHM | W184: UNIVERSITY HOSPITAL SOUTHAMPTON NHS FOUNDATION TRUST | X184: RHM01 | Y184: Southampton General Hospital - RHM01 | Z184: CAN C6 TYA Unit | AJ184: R1K04 | AK184: Kettering General Hospital - RNQ51 | AO184: R1K04 | AP184: Kettering General Hospital - RNQ51 | AQ184: 4A Cardiac Surgery
U185: Q70 | V185: RHM | W185: UNIVERSITY HOSPITAL SOUTHAMPTON NHS FOUNDATION TRUST | X185: RHM01 | Y185: Southampton General Hospital - RHM01 | Z185: CAN D3 Ward | AJ185: RA201 | AK185: Kidderminster Hospital - RWP31 | AO185: RA201 | AP185: Kidderminster Hospital - RWP31 | AQ185: 4B
U186: Q70 | V186: RHM | W186: UNIVERSITY HOSPITAL SOUTHAMPTON NHS FOUNDATION TRUST | X186: RHM01 | Y186: Southampton General Hospital - RHM01 | Z186: CAR Cardiac short stay | AJ186: RA301 | AK186: KIMS Hospital Ltd - ADP02 | AO186: RA301 | AP186: KIMS Hospital Ltd - ADP02 | AQ186: 4B Cardiac Surgery
U187: Q70 | V187: RHM | W187: UNIVERSITY HOSPITAL SOUTHAMPTON NHS FOUNDATION TRUST | X187: RHM01 | Y187: Southampton General Hospital - RHM01 | Z187: CAR CHDU | AJ187: RA430 | AK187: King Edward Vii Hospital - RHW03 | AO187: RA430 | AP187: King Edward Vii Hospital - RHW03 | AQ187: 4C
U188: Q70 | V188: RHM | W188: UNIVERSITY HOSPITAL SOUTHAMPTON NHS FOUNDATION TRUST | X188: RHM01 | Y188: Southampton General Hospital - RHM01 | Z188: CAR Coronary Care Unit | AJ188: RA701 | AK188: King George Hospital - RF4DG | AO188: RA701 | AP188: King George Hospital - RF4DG | AQ188: 4C Cardio daycase
U189: Q70 | V189: RHM | W189: UNIVERSITY HOSPITAL SOUTHAMPTON NHS FOUNDATION TRUST | X189: RHM01 | Y189: Southampton General Hospital - RHM01 | Z189: CAR E2 | AJ189: RA707 | AK189: King's College Hospital (Denmark Hill) - RJZ01 | AO189: RA707 | AP189: King's College Hospital (Denmark Hill) - RJZ01 | AQ189: 4D
U190: Q70 | V190: RHM | W190: UNIVERSITY HOSPITAL SOUTHAMPTON NHS FOUNDATION TRUST | X190: RHM01 | Y190: Southampton General Hospital - RHM01 | Z190: CAR Ward D4 Vascular | AJ190: RA708 | AK190: King's Mill Hospital - RK5BC | AO190: RA708 | AP190: King's Mill Hospital - RK5BC | AQ190: 5 East B
U191: Q70 | V191: RHM | W191: UNIVERSITY HOSPITAL SOUTHAMPTON NHS FOUNDATION TRUST | X191: RHM01 | Y191: Southampton General Hospital - RHM01 | Z191: CAR Ward E3 Cardiac | AJ191: RA709 | AK191: Kingston Hospital - RAX01 | AO191: RA709 | AP191: Kingston Hospital - RAX01 | AQ191: 5 North
U192: Q70 | V192: RHM | W192: UNIVERSITY HOSPITAL SOUTHAMPTON NHS FOUNDATION TRUST | X192: RHM01 | Y192: Southampton General Hospital - RHM01 | Z192: CAR Ward E4 Cardiac | AJ192: RA710 | AK192: Leeds Dental Hospital - RR802 | AO192: RA710 | AP192: Leeds Dental Hospital - RR802 | AQ192: 5 South
U193: Q70 | V193: RHM | W193: UNIVERSITY HOSPITAL SOUTHAMPTON NHS FOUNDATION TRUST | X193: RHM01 | Y193: Southampton General Hospital - RHM01 | Z193: CC - Surgical HDU | AJ193: RA723 | AK193: Leeds General Infirmary - RR801 | AO193: RA723 | AP193: Leeds General Infirmary - RR801 | AQ193: 5 West Ward
U194: Q70 | V194: RHM | W194: UNIVERSITY HOSPITAL SOUTHAMPTON NHS FOUNDATION TRUST | X194: RHM01 | Y194: Southampton General Hospital - RHM01 | Z194: CC Cardiac Intensive Care | AJ194: RA773 | AK194: Leicester General Hospital - RWEAK | AO194: RA773 | AP194: Leicester General Hospital - RWEAK | AQ194: 54 - Ward 54 Inpatients Reh
U195: Q70 | V195: RHM | W195: UNIVERSITY HOSPITAL SOUTHAMPTON NHS FOUNDATION TRUST | X195: RHM01 | Y195: Southampton General Hospital - RHM01 | Z195: CC General Intensive Care | AJ195: RA901 | AK195: Leicester Royal Infirmary - RWEAA | AO195: RA901 | AP195: Leicester Royal Infirmary - RWEAA | AQ195: 55I - Ward 55 Inpatients Reh
U196: Q70 | V196: RHM | W196: UNIVERSITY HOSPITAL SOUTHAMPTON NHS FOUNDATION TRUST | X196: RHM01 | Y196: Southampton General Hospital - RHM01 | Z196: CC NICU | AJ196: RAE01 | AK196: Leigh Infirmary - RRF01 | AO196: RAE01 | AP196: Leigh Infirmary - RRF01 | AQ196: 5A
U197: Q70 | V197: RHM | W197: UNIVERSITY HOSPITAL SOUTHAMPTON NHS FOUNDATION TRUST | X197: RHM01 | Y197: Southampton General Hospital - RHM01 | Z197: CHI E1 High Dependency | AJ197: RAE05 | AK197: Leighton Hospital - RBT20 | AO197: RAE05 | AP197: Leighton Hospital - RBT20 | AQ197: 5A
U198: Q70 | V198: RHM | W198: UNIVERSITY HOSPITAL SOUTHAMPTON NHS FOUNDATION TRUST | X198: RHM01 | Y198: Southampton General Hospital - RHM01 | Z198: CHI High Dependency Unit | AJ198: RAJ01 | AK198: Lincoln County Hospital - RWDDA | AO198: RAJ01 | AP198: Lincoln County Hospital - RWDDA | AQ198: 5AD
U199: Q70 | V199: RHM | W199: UNIVERSITY HOSPITAL SOUTHAMPTON NHS FOUNDATION TRUST | X199: RHM01 | Y199: Southampton General Hospital - RHM01 | Z199: CHI Paed Medical Unit | AJ199: RAL01 | AK199: Liskeard Community Hospital NAM04 | AO199: RAL01 | AP199: Liskeard Community Hospital NAM04 | AQ199: 5B
U200: Q70 | V200: RHM | W200: UNIVERSITY HOSPITAL SOUTHAMPTON NHS FOUNDATION TRUST | X200: RHM01 | Y200: Southampton General Hospital - RHM01 | Z200: CHI Paediatric Assessment Unit | AJ200: RAL26 | AK200: Lister Hospital - RWH01 | AO200: RAL26 | AP200: Lister Hospital - RWH01 | AQ200: 5B
... 2050 more rows
